Department,Entity,Date of Payment,Expense Type,Expense Area,Supplier,Transaction Number,Amount,Description,Supplier Post Code,Supplier Type
"Department for Business, Energy and Industrial Strategy","Department for Business, Energy and Industrial Strategy",03/10/2022,IT Services,Corporate Services - Commercial & Operations,Cabinet Office,425221,156000.00,MF Devolved Admin-IT Services,NP10 8FZ,WGA ONLY
"Department for Business, Energy and Industrial Strategy","Department for Business, Energy and Industrial Strategy",03/10/2022,External Legal Advice and Service,Market Frameworks - Office for Product Safety and Standards,Six Pump Court,445706,2462.50,OPSS: National Capacity Organisational Cross Cutting-External Legal Advice and Service,EC4Y 7AR,VENDOR
"Department for Business, Energy and Industrial Strategy","Department for Business, Energy and Industrial Strategy",10/10/2022,Central Telecommunications Services,"Corporate Services - Digital, Data & Technology",Vodafone Ltd,448791,2824.84,MF Devolved Admin-Central Telecommunications Services,RG14 2FN,VENDOR
"Department for Business, Energy and Industrial Strategy","Department for Business, Energy and Industrial Strategy",10/10/2022,Central Telecommunications Services,"Corporate Services - Digital, Data & Technology",Vodafone Ltd,448792,907.62,MF Devolved Admin-Central Telecommunications Services,RG14 2FN,VENDOR
"Department for Business, Energy and Industrial Strategy","Department for Business, Energy and Industrial Strategy",07/10/2022,Current Grants To Central Government,Energy Transformation and Clean Growth - INZ: Climate Finance & Strategy,"Foreign, Commonwealth and Development Office",449917,264.94,Climate Strategy And Engagement-Current Grants To Central Government,MK10 1PX,WGA ONLY
"Department for Business, Energy and Industrial Strategy","Department for Business, Energy and Industrial Strategy",11/10/2022,International Subscriptions,"Corporate Services - Digital, Data & Technology",Bureau Van Dijk Electronic Publishing Ltd,450702,-63000.00,MF Devolved Admin-International Subscriptions,E14 5FA,VENDOR
"Department for Business, Energy and Industrial Strategy","Department for Business, Energy and Industrial Strategy",20/10/2022,Recruitment Advice and Services,Corporate Services - CS COO Office,Cabinet Office,451051,17604.25,MF Devolved Admin-Recruitment Advice and Services,NP10 8FZ,WGA ONLY
"Department for Business, Energy and Industrial Strategy","Department for Business, Energy and Industrial Strategy",05/10/2022,Central Telecommunications Services,"Corporate Services - Digital, Data & Technology",Vodafone Ltd,452868,13.08,MF Devolved Admin-Central Telecommunications Services,RG14 2FN,VENDOR
"Department for Business, Energy and Industrial Strategy","Department for Business, Energy and Industrial Strategy",06/10/2022,Research and Development Expenditure,Energy Transformation and Clean Growth - Net Zero Buildings - Clean Heat,IFF RESEARCH LTD,455019,10945.87,Building & Electrification programme expenditure-Research and Development Expenditure,EC3R 6HD,VENDOR
"Department for Business, Energy and Industrial Strategy","Department for Business, Energy and Industrial Strategy",17/10/2022,Learning and Dev - CS Skills,Energy Transformation and Clean Growth - Net Zero Buildings - Clean Heat,KPMG LLP,455391,2531.00,Net Zero Costs - Admin-Learning and Dev - CS Skills,WD17 1DE,VENDOR
"Department for Business, Energy and Industrial Strategy","Department for Business, Energy and Industrial Strategy",11/10/2022,Research and Development Expenditure,Energy Transformation and Clean Growth - Smart Metering Implementation Programme,QUADRANGLE RESEARCH GROUP LTD,456333,24750.00,Roll-out of Smart Meters-Research and Development Expenditure,SE1 2YE,VENDOR
"Department for Business, Energy and Industrial Strategy","Department for Business, Energy and Industrial Strategy",05/10/2022,Central Telecommunications Services,"Corporate Services - Digital, Data & Technology",Vodafone Ltd,457626,8.51,MF Devolved Admin-Central Telecommunications Services,RG14 2FN,VENDOR
"Department for Business, Energy and Industrial Strategy","Department for Business, Energy and Industrial Strategy",10/10/2022,Central Telecommunications Services,"Corporate Services - Digital, Data & Technology",Vodafone Ltd,458089,2798.92,MF Devolved Admin-Central Telecommunications Services,RG14 2FN,VENDOR
"Department for Business, Energy and Industrial Strategy","Department for Business, Energy and Industrial Strategy",10/10/2022,Central Telecommunications Services,"Corporate Services - Digital, Data & Technology",Vodafone Ltd,458091,907.62,MF Devolved Admin-Central Telecommunications Services,RG14 2FN,VENDOR
"Department for Business, Energy and Industrial Strategy","Department for Business, Energy and Industrial Strategy",10/10/2022,Central Telecommunications Services,"Corporate Services - Digital, Data & Technology",Vodafone Ltd,458499,7.50,MF Devolved Admin-Central Telecommunications Services,RG14 2FN,VENDOR
"Department for Business, Energy and Industrial Strategy","Department for Business, Energy and Industrial Strategy",03/10/2022,Legal Services and Advice Agency,"Science, Innovation and Growth - Help to Grow Digital",TLT LLP,458502,2103.15,MF Devolved Admin-Legal Services and Advice Agency,BS1 6TP,VENDOR
"Department for Business, Energy and Industrial Strategy","Department for Business, Energy and Industrial Strategy",21/10/2022,R & D Current Grants to Private Sector - NPISH,"Science, Innovation and Growth - International Research and Innovation Directorate",THE WELLCOME TRUST LTD,458548,5628.15,Tactical Fund-R & D Current Grants to Private Sector - NPISH,NW1 2BE,VENDOR
"Department for Business, Energy and Industrial Strategy","Department for Business, Energy and Industrial Strategy",21/10/2022,R & D Current Grants to Private Sector - NPISH,"Science, Innovation and Growth - International Research and Innovation Directorate",THE WELLCOME TRUST LTD,458548,19626.76,Tactical Fund-R & D Current Grants to Private Sector - NPISH,NW1 2BE,VENDOR
"Department for Business, Energy and Industrial Strategy","Department for Business, Energy and Industrial Strategy",17/10/2022,Coaching,"Energy and Security - Nuclear Power, Infrastructure and Decommissioning",GENIUS WITHIN CIC,459248,1100.00,MF Devolved Admin-Coaching,BN7 3AL,GRANT
"Department for Business, Energy and Industrial Strategy","Department for Business, Energy and Industrial Strategy",27/10/2022,Clearing - Cost - Assets Under Construction - Internally Developed Software,Energy Transformation and Clean Growth - Net Zero Buildings - Domestic,Softwire Technology Ltd,459665,78750.00,Energy Savings Advice Service-Clearing - Cost - Assets Under Construction - Internally Developed Software,NW5 1TL,VENDOR
"Department for Business, Energy and Industrial Strategy","Department for Business, Energy and Industrial Strategy",11/10/2022,ICT Infrastructure Specific Service,"Corporate Services - Digital, Data & Technology",Amazon Web Services EMEA SARL,459814,1703.11,MF Devolved Admin-ICT Infrastructure Specific Service,EC2A 2FA,VENDOR
"Department for Business, Energy and Industrial Strategy","Department for Business, Energy and Industrial Strategy",03/10/2022,Legal Services and Advice Agency,"Science, Innovation and Growth - Help to Grow Digital",TLT LLP,460266,8715.52,MF Devolved Admin-Legal Services and Advice Agency,BS1 6TP,VENDOR
"Department for Business, Energy and Industrial Strategy","Department for Business, Energy and Industrial Strategy",18/10/2022,Scientific Equipment 2,Market Frameworks - Office for Product Safety and Standards,Shimadzu UK Ltd,460795,969.75,OPSS: National Capacity Testing-Scientific Equipment 2,MK12 5RD,VENDOR
"Department for Business, Energy and Industrial Strategy","Department for Business, Energy and Industrial Strategy",11/10/2022,ICT Infrastructure Specific Service,"Corporate Services - Digital, Data & Technology",Amazon Web Services EMEA SARL,461233,60848.41,MF Devolved Admin-ICT Infrastructure Specific Service,EC2A 2FA,VENDOR
"Department for Business, Energy and Industrial Strategy","Department for Business, Energy and Industrial Strategy",03/10/2022,Other Professional Services,Market Frameworks - Office for Product Safety and Standards,VWR International Ltd,461434,755.47,OPSS: National Capacity Testing-Other Professional Services,LE17 4XN,VENDOR
"Department for Business, Energy and Industrial Strategy","Department for Business, Energy and Industrial Strategy",11/10/2022,Central Telecommunications Services,"Corporate Services - Digital, Data & Technology",Vodafone Ltd,461585,30.00,MF Devolved Admin-Central Telecommunications Services,RG14 2FN,VENDOR
"Department for Business, Energy and Industrial Strategy","Department for Business, Energy and Industrial Strategy",03/10/2022,Other IT Consultancy,Net Zero Buildings and Industry (NZBI) - Industrial Decarbonisation and Emissions Trading,PA Consulting Services Ltd,461668,59364.30,UK role in EU ETS-Other IT Consultancy,SW1E 5DN,VENDOR
"Department for Business, Energy and Industrial Strategy","Department for Business, Energy and Industrial Strategy",21/10/2022,Recruitment Advice and Services,Energy and Security - Renewable Electricity Directorate,Cabinet Office,461798,15845.00,Net Zero Costs - Admin-Recruitment Advice and Services,NP10 8FZ,WGA ONLY
"Department for Business, Energy and Industrial Strategy","Department for Business, Energy and Industrial Strategy",12/10/2022,Hire of Agency Staff,Corporate Services - Commercial & Operations,Alexander Mann Solutions Ltd,462097,1757.99,MF Devolved Admin-Hire of Agency Staff,EC2N 3AQ,VENDOR
"Department for Business, Energy and Industrial Strategy","Department for Business, Energy and Industrial Strategy",12/10/2022,Hire of Agency Staff,Corporate Services - Commercial & Operations,Alexander Mann Solutions Ltd,462097,3986.64,MF Devolved Admin-Hire of Agency Staff,EC2N 3AQ,VENDOR
"Department for Business, Energy and Industrial Strategy","Department for Business, Energy and Industrial Strategy",05/10/2022,Rentals Under Non-PFI Operating Leases - Buildings,Corporate Services - Commercial & Operations,Government Property Agency,462139,138.26,MF Devolved Admin-Rentals Under Non-PFI Operating Leases - Buildings,EC4M 7HP,VENDOR
"Department for Business, Energy and Industrial Strategy","Department for Business, Energy and Industrial Strategy",05/10/2022,Accommodation & Building Management,Corporate Services - Commercial & Operations,Government Property Agency,462139,176.17,MF Devolved Admin-Accommodation & Building Management,EC4M 7HP,VENDOR
"Department for Business, Energy and Industrial Strategy","Department for Business, Energy and Industrial Strategy",05/10/2022,Rentals Under Non-PFI Operating Leases - Buildings,Corporate Services - Commercial & Operations,Government Property Agency,462139,1437.50,MF Devolved Admin-Rentals Under Non-PFI Operating Leases - Buildings,EC4M 7HP,VENDOR
"Department for Business, Energy and Industrial Strategy","Department for Business, Energy and Industrial Strategy",05/10/2022,Accommodation & Building Management,Corporate Services - Commercial & Operations,Government Property Agency,462139,1999.26,MF Devolved Admin-Accommodation & Building Management,EC4M 7HP,VENDOR
"Department for Business, Energy and Industrial Strategy","Department for Business, Energy and Industrial Strategy",05/10/2022,Accommodation & Building Management,Corporate Services - Commercial & Operations,Government Property Agency,462139,2140.00,MF Devolved Admin-Accommodation & Building Management,EC4M 7HP,VENDOR
"Department for Business, Energy and Industrial Strategy","Department for Business, Energy and Industrial Strategy",05/10/2022,Accommodation & Building Management,Corporate Services - Commercial & Operations,Government Property Agency,462139,3342.16,MF Devolved Admin-Accommodation & Building Management,EC4M 7HP,VENDOR
"Department for Business, Energy and Industrial Strategy","Department for Business, Energy and Industrial Strategy",05/10/2022,Rentals Under Non-PFI Operating Leases - Buildings,Corporate Services - Commercial & Operations,Government Property Agency,462139,6576.15,MF Devolved Admin-Rentals Under Non-PFI Operating Leases - Buildings,EC4M 7HP,VENDOR
"Department for Business, Energy and Industrial Strategy","Department for Business, Energy and Industrial Strategy",03/10/2022,Legal Services and Advice Agency,"Science, Innovation and Growth - Help to Grow Digital",TLT LLP,462564,2956.73,MF Devolved Admin-Legal Services and Advice Agency,BS1 6TP,VENDOR
"Department for Business, Energy and Industrial Strategy","Department for Business, Energy and Industrial Strategy",10/10/2022,Administration of Grants and Awards,Energy Transformation and Clean Growth - Net Zero Buildings - Domestic,Turner and Townsend Project Management Ltd,462785,476178.10,Social Housing Decarbonisation Fund (SHDF)-Administration of Grants and Awards,LS18 4GH,VENDOR
"Department for Business, Energy and Industrial Strategy","Department for Business, Energy and Industrial Strategy",05/10/2022,PPM Consultancy,"Science, Innovation and Growth - Business Growth",Allen Lane Ltd,462807,17884.80,MF Devolved Admin-PPM Consultancy,BN11 2BW,VENDOR
"Department for Business, Energy and Industrial Strategy","Department for Business, Energy and Industrial Strategy",05/10/2022,PPM Consultancy,"Science, Innovation and Growth - Business Growth",Allen Lane Ltd,462810,3576.96,MF Devolved Admin-PPM Consultancy,BN11 2BW,VENDOR
"Department for Business, Energy and Industrial Strategy","Department for Business, Energy and Industrial Strategy",05/10/2022,PPM Consultancy,"Science, Innovation and Growth - Business Growth",Allen Lane Ltd,462811,23250.24,MF Devolved Admin-PPM Consultancy,BN11 2BW,VENDOR
"Department for Business, Energy and Industrial Strategy","Department for Business, Energy and Industrial Strategy",05/10/2022,PPM Consultancy,"Science, Innovation and Growth - Business Growth",Allen Lane Ltd,462816,16096.32,MF Devolved Admin-PPM Consultancy,BN11 2BW,VENDOR
"Department for Business, Energy and Industrial Strategy","Department for Business, Energy and Industrial Strategy",12/10/2022,Consultancy Expenditure,"Trade, International, the Union & Analysis - Trade and Investment Negotiations Goods",Premier Publishing Ltd T/A Premier Publishing and Events,462819,2550.00,UK Conformity Assessment (new UK product marking) Implementation-Consultancy Expenditure,Dublin 12,VENDOR
"Department for Business, Energy and Industrial Strategy","Department for Business, Energy and Industrial Strategy",10/10/2022,Training And Development Expenditure,Market Frameworks - Office for Product Safety and Standards,KPMG LLP,462843,2200.00,OPSS: Cross Cutting-Training And Development Expenditure,WD17 1DE,VENDOR
"Department for Business, Energy and Industrial Strategy","Department for Business, Energy and Industrial Strategy",06/10/2022,R & D Research and Development Expenditure,Energy Transformation and Clean Growth - Science and Innovation,Alexander Mann Solutions Ltd,462954,277.23,Net Zero Innovation Technical support-R & D Research and Development Expenditure,EC2N 3AQ,VENDOR
"Department for Business, Energy and Industrial Strategy","Department for Business, Energy and Industrial Strategy",06/10/2022,R & D Research and Development Expenditure,Energy Transformation and Clean Growth - Science and Innovation,Alexander Mann Solutions Ltd,462954,1108.89,Net Zero Innovation Technical support-R & D Research and Development Expenditure,EC2N 3AQ,VENDOR
"Department for Business, Energy and Industrial Strategy","Department for Business, Energy and Industrial Strategy",14/10/2022,R & D Corporate Event Management and Marketing,"Science, Innovation and Growth - Government Office for Science",NSSC OPERATIONS LTD (NATIONAL SPACE CENTRE),463088,2469.00,Foresight: CSA Priorities & Science Capability-R & D Corporate Event Management and Marketing,LE4 5NS,GRANT
"Department for Business, Energy and Industrial Strategy","Department for Business, Energy and Industrial Strategy",03/10/2022,Other Professional Services,Market Frameworks - Office for Product Safety and Standards,VWR International Ltd,463287,23.30,OPSS: National Capacity Testing-Other Professional Services,LE17 4XN,VENDOR
"Department for Business, Energy and Industrial Strategy","Department for Business, Energy and Industrial Strategy",25/10/2022,Clearing Account   - Cost - Computer Equipment,"Corporate Services - Digital, Data & Technology",Bechtle Direct Ltd,463322,95.45,Digital Infrastructure and Maintenanc-Clearing Account   - Cost - Computer Equipment,SN14 0GF,VENDOR
"Department for Business, Energy and Industrial Strategy","Department for Business, Energy and Industrial Strategy",25/10/2022,Clearing Account   - Cost - Computer Equipment,"Corporate Services - Digital, Data & Technology",Bechtle Direct Ltd,463322,175.82,Digital Infrastructure and Maintenanc-Clearing Account   - Cost - Computer Equipment,SN14 0GF,VENDOR
"Department for Business, Energy and Industrial Strategy","Department for Business, Energy and Industrial Strategy",25/10/2022,Clearing Account   - Cost - Computer Equipment,"Corporate Services - Digital, Data & Technology",Bechtle Direct Ltd,463322,254.81,Digital Infrastructure and Maintenanc-Clearing Account   - Cost - Computer Equipment,SN14 0GF,VENDOR
"Department for Business, Energy and Industrial Strategy","Department for Business, Energy and Industrial Strategy",21/10/2022,Training And Development Expenditure,Energy Transformation and Clean Growth - Hydrogen and Industrial Carbon Capture,MCI Suisse SA,463456,2390.03,Net Zero Costs - Admin-Training And Development Expenditure,1242 Satigny,VENDOR
"Department for Business, Energy and Industrial Strategy","Department for Business, Energy and Industrial Strategy",06/10/2022,R & D Economic Consultancy and Research,"Trade, International, the Union & Analysis - Analysis Directorate",QUALTRICS LLC,463457,15000.00,Data Analytics and Business Statistics-R & D Economic Consultancy and Research,84604,VENDOR
"Department for Business, Energy and Industrial Strategy","Department for Business, Energy and Industrial Strategy",17/10/2022,Other Professional Services,Net Zero Buildings and Industry (NZBI) - Net Zero Buildings - Portfolio & Affordability,Nomensa Ltd,463466,32985.00,DWP Warm Home Discount Delivery-Other Professional Services,BS1 4NT,VENDOR
"Department for Business, Energy and Industrial Strategy","Department for Business, Energy and Industrial Strategy",03/10/2022,Consultancy Expenditure,Energy and Security - Nuclear Projects and Development Directorate,Alexander Mann Solutions Ltd,463839,10994.32,MF Devolved Admin-Consultancy Expenditure,EC2N 3AQ,VENDOR
"Department for Business, Energy and Industrial Strategy","Department for Business, Energy and Industrial Strategy",03/10/2022,Other Professional Services,Energy and Security - Nuclear Protection Directorate,Alexander Mann Solutions Ltd,463862,91.63,MF Devolved Admin-Other Professional Services,EC2N 3AQ,VENDOR
"Department for Business, Energy and Industrial Strategy","Department for Business, Energy and Industrial Strategy",03/10/2022,Contractor Expenditure,Vaccines Taskforce - Vaccines Taskforce,Alexander Mann Solutions Ltd,463938,4927.44,VTF Admin - COVID-19-Contractor Expenditure,EC2N 3AQ,VENDOR
"Department for Business, Energy and Industrial Strategy","Department for Business, Energy and Industrial Strategy",03/10/2022,Contractor Expenditure,Vaccines Taskforce - Vaccines Taskforce,Alexander Mann Solutions Ltd,463960,1201.07,VTF Admin - COVID-19-Contractor Expenditure,EC2N 3AQ,VENDOR
"Department for Business, Energy and Industrial Strategy","Department for Business, Energy and Industrial Strategy",05/10/2022,IT Software Licences and Software Maintenance,"Corporate Services - Digital, Data & Technology",Phoenix Software Ltd,463975,-101967.36,MF Devolved Admin-IT Software Licences and Software Maintenance,YO42 1NS,VENDOR
"Department for Business, Energy and Industrial Strategy","Department for Business, Energy and Industrial Strategy",26/10/2022,Training And Development Expenditure,Corporate Services - Human Resources,KPMG LLP,464092,1792.00,MF Non Devolved Admin-Training And Development Expenditure,E14 5GL,VENDOR
"Department for Business, Energy and Industrial Strategy","Department for Business, Energy and Industrial Strategy",04/10/2022,ICT Outsourcing & Maintenance/Support,"Trade, International, the Union & Analysis - Analysis Directorate",CoreAzure Ltd,464101,10096.60,MF Devolved Admin-ICT Outsourcing & Maintenance/Support,EC1N 9TS,VENDOR
"Department for Business, Energy and Industrial Strategy","Department for Business, Energy and Industrial Strategy",05/10/2022,Hire of Agency Staff,Energy Transformation and Clean Growth - Net Zero Buildings - Domestic,HM Revenue and Customs,464128,210.00,Net Zero Costs - Admin-Hire of Agency Staff,BN11 1UR,WGA ONLY
"Department for Business, Energy and Industrial Strategy","Department for Business, Energy and Industrial Strategy",05/10/2022,Hire of Agency Staff,Energy Transformation and Clean Growth - Net Zero Buildings - Domestic,HM Revenue and Customs,464129,3570.00,Net Zero Costs - Admin-Hire of Agency Staff,BN11 1UR,WGA ONLY
"Department for Business, Energy and Industrial Strategy","Department for Business, Energy and Industrial Strategy",07/10/2022,IT Software Licences and Software Maintenance,"Corporate Services - Digital, Data & Technology",Boxxe Ltd,464284,3657.60,MF Devolved Admin-IT Software Licences and Software Maintenance,YO31 7RE,VENDOR
"Department for Business, Energy and Industrial Strategy","Department for Business, Energy and Industrial Strategy",05/10/2022,R & D Research and Development Expenditure,Energy Transformation and Clean Growth - Science and Innovation,Office for Nuclear Regulation,464293,14872.31,Net Zero Innovation - Bioenergy and VC-R & D Research and Development Expenditure,L20 7HS,VENDOR
"Department for Business, Energy and Industrial Strategy","Department for Business, Energy and Industrial Strategy",03/10/2022,Grant-In-Aid to Arms Length Bodies,Market Frameworks - Labour Market,ACAS,464295,4500000.00,ACAS Non-Budget-Grant-In-Aid to Arms Length Bodies,SW1H 0TL,WGA ONLY
"Department for Business, Energy and Industrial Strategy","Department for Business, Energy and Industrial Strategy",03/10/2022,Health and Safety Consultancy,Market Frameworks - Business Frameworks,Thriiver Ltd,464335,960.00,MF Devolved Admin-Health and Safety Consultancy,RH17 5JF,VENDOR
"Department for Business, Energy and Industrial Strategy","Department for Business, Energy and Industrial Strategy",03/10/2022,R & D Economic Consultancy and Research,"Trade, International, the Union & Analysis - Analysis Directorate",Office for National Statistics,464337,2527.63,Energy Satistics Research and Analysis-R & D Economic Consultancy and Research,NP10 8XG,WGA ONLY
"Department for Business, Energy and Industrial Strategy","Department for Business, Energy and Industrial Strategy",03/10/2022,R & D Economic Consultancy and Research,"Trade, International, the Union & Analysis - Analysis Directorate",Office for National Statistics,464337,2527.63,Energy Satistics Research and Analysis-R & D Economic Consultancy and Research,NP10 8XG,WGA ONLY
"Department for Business, Energy and Industrial Strategy","Department for Business, Energy and Industrial Strategy",03/10/2022,R & D Economic Consultancy and Research,"Trade, International, the Union & Analysis - Analysis Directorate",Office for National Statistics,464337,2532.44,Energy Satistics Research and Analysis-R & D Economic Consultancy and Research,NP10 8XG,WGA ONLY
"Department for Business, Energy and Industrial Strategy","Department for Business, Energy and Industrial Strategy",03/10/2022,R & D Economic Consultancy and Research,"Trade, International, the Union & Analysis - Analysis Directorate",Office for National Statistics,464337,2649.64,Energy Satistics Research and Analysis-R & D Economic Consultancy and Research,NP10 8XG,WGA ONLY
"Department for Business, Energy and Industrial Strategy","Department for Business, Energy and Industrial Strategy",03/10/2022,CA - Other Receivables - Unclassified,Energy Transformation and Clean Growth - Net Zero Buildings - Clean Heat,Office of Gas and Electricity Markets (OFGEM),464347,7663738.00,RHI Domestic AME Payments-CA - Other Receivables - Unclassified,SW1P 3GE,GRANT
"Department for Business, Energy and Industrial Strategy","Department for Business, Energy and Industrial Strategy",04/10/2022,Capital Grants To Public Corporations (PCs),"Corporate Services - Digital, Data & Technology",UK Shared Business Services Ltd,464353,104509.12,UK SBS Service Charges Expenditure � Non Budget-Capital Grants To Public Corporations (PCs),SN2 1FF,VENDOR
"Department for Business, Energy and Industrial Strategy","Department for Business, Energy and Industrial Strategy",04/10/2022,Capital Grants To Public Corporations (PCs),"Corporate Services - Digital, Data & Technology",UK Shared Business Services Ltd,464353,1040000.00,UK SBS Service Charges Expenditure � Non Budget-Capital Grants To Public Corporations (PCs),SN2 1FF,VENDOR
"Department for Business, Energy and Industrial Strategy","Department for Business, Energy and Industrial Strategy",04/10/2022,R & D Current Grants to Private Sector - NPISH,Energy Transformation and Clean Growth - Science and Innovation,CARBON CLEAN SOLUTIONS LTD,464363,6552.61,Net Zero Innovation Industry and Carbon Capture Demonstration-R & D Current Grants to Private Sector - NPISH,SE1 8QH,VENDOR
"Department for Business, Energy and Industrial Strategy","Department for Business, Energy and Industrial Strategy",25/10/2022,Clearing Account   - Cost - Computer Equipment,"Corporate Services - Digital, Data & Technology",Bechtle Direct Ltd,464371,11.93,Digital Infrastructure and Maintenanc-Clearing Account   - Cost - Computer Equipment,SN14 0GF,VENDOR
"Department for Business, Energy and Industrial Strategy","Department for Business, Energy and Industrial Strategy",25/10/2022,Clearing Account   - Cost - Computer Equipment,"Corporate Services - Digital, Data & Technology",Bechtle Direct Ltd,464371,21.98,Digital Infrastructure and Maintenanc-Clearing Account   - Cost - Computer Equipment,SN14 0GF,VENDOR
"Department for Business, Energy and Industrial Strategy","Department for Business, Energy and Industrial Strategy",25/10/2022,Clearing Account   - Cost - Computer Equipment,"Corporate Services - Digital, Data & Technology",Bechtle Direct Ltd,464371,31.85,Digital Infrastructure and Maintenanc-Clearing Account   - Cost - Computer Equipment,SN14 0GF,VENDOR
"Department for Business, Energy and Industrial Strategy","Department for Business, Energy and Industrial Strategy",07/10/2022,IT Software Licences and Software Maintenance,"Corporate Services - Digital, Data & Technology",Boxxe Ltd,464376,8465.47,MF Devolved Admin-IT Software Licences and Software Maintenance,YO31 7RE,VENDOR
"Department for Business, Energy and Industrial Strategy","Department for Business, Energy and Industrial Strategy",04/10/2022,Financial Advice and Services,"Energy and Security - Energy Security, Networks and Markets",Ernst and Young LLP,464486,2780.93,Energy Security Projects-Financial Advice and Services,SE1 2AF,VENDOR
"Department for Business, Energy and Industrial Strategy","Department for Business, Energy and Industrial Strategy",04/10/2022,Financial Advice and Services,"Energy and Security - Energy Security, Networks and Markets",Ernst and Young LLP,464486,16095.50,Net Zero Costs - Admin-Financial Advice and Services,SE1 2AF,VENDOR
"Department for Business, Energy and Industrial Strategy","Department for Business, Energy and Industrial Strategy",07/10/2022,R & D Research and Development Expenditure,"Science, Innovation and Growth - International Research and Innovation Directorate",NPL MANAGEMENT LTD,464490,210000.00,NMS - Net Zero-R & D Research and Development Expenditure,TW11 0LW,VENDOR
"Department for Business, Energy and Industrial Strategy","Department for Business, Energy and Industrial Strategy",05/10/2022,R & D Research and Development Expenditure,"Science, Innovation and Growth - International Research and Innovation Directorate",TUV SUD LTD,464496,458162.00,NMS Flow Programme at NRL-R & D Research and Development Expenditure,G75 0QF,VENDOR
"Department for Business, Energy and Industrial Strategy","Department for Business, Energy and Industrial Strategy",03/10/2022,Training And Development Expenditure,Corporate Services - Human Resources,KPMG LLP,464497,1558.00,MF Non Devolved Admin-Training And Development Expenditure,WD17 1DE,VENDOR
"Department for Business, Energy and Industrial Strategy","Department for Business, Energy and Industrial Strategy",03/10/2022,Grant-In-Aid to Arms Length Bodies,Energy and Security - NDA,Nuclear Decommissioning Authority,464498,394000000.00,Nuclear Decommissioning Authority Grant in Aid-Grant-In-Aid to Arms Length Bodies,CA24 3HU,VENDOR
"Department for Business, Energy and Industrial Strategy","Department for Business, Energy and Industrial Strategy",31/10/2022,Training And Development Expenditure,Corporate Services - Human Resources,KPMG LLP,464499,1558.00,MF Non Devolved Admin-Training And Development Expenditure,WD17 1DE,VENDOR
"Department for Business, Energy and Industrial Strategy","Department for Business, Energy and Industrial Strategy",05/10/2022,R & D Research and Development Expenditure,"Science, Innovation and Growth - International Research and Innovation Directorate",TUV SUD LTD,464500,120000.00,NMS - Net Zero-R & D Research and Development Expenditure,G75 0QF,VENDOR
"Department for Business, Energy and Industrial Strategy","Department for Business, Energy and Industrial Strategy",03/10/2022,Subsidies To Public Corporations (PCs),Business Sectors - Services,Post Office Limited,464501,12500000.00,PO: Network Reforms-Subsidies To Public Corporations (PCs),S49 1PF,VENDOR
"Department for Business, Energy and Industrial Strategy","Department for Business, Energy and Industrial Strategy",03/10/2022,Utilisation of Provisions - British Energy,Energy and Security - British Energy Historic Payments,Nuclear Decommissioning Authority,464502,10264938.65,British Energy Historic Liabilities Funding-Utilisation of Provisions - British Energy,CA24 3HW,VENDOR
"Department for Business, Energy and Industrial Strategy","Department for Business, Energy and Industrial Strategy",05/10/2022,R & D Research and Development Expenditure,"Science, Innovation and Growth - International Research and Innovation Directorate",TUV SUD LTD,464504,44000.00,NMS Flow Programme at NRL-R & D Research and Development Expenditure,G75 0QF,VENDOR
"Department for Business, Energy and Industrial Strategy","Department for Business, Energy and Industrial Strategy",03/10/2022,Training And Development Expenditure,Corporate Services - Human Resources,KPMG LLP,464506,16129.00,MF Non Devolved Admin-Training And Development Expenditure,WD17 1DE,VENDOR
"Department for Business, Energy and Industrial Strategy","Department for Business, Energy and Industrial Strategy",03/10/2022,Capital Grants To Public Corporations (PCs),Business Sectors - Services,Post Office Limited,464511,37500000.00,PO: Network Reforms-Capital Grants To Public Corporations (PCs),S49 1PF,VENDOR
"Department for Business, Energy and Industrial Strategy","Department for Business, Energy and Industrial Strategy",13/10/2022,Current Grants To Local Government,Market Frameworks - Office for Product Safety and Standards,Glasgow City Council,464512,221.22,OPSS: National Capacity Testing-Current Grants To Local Government,G2 9AF,VENDOR
"Department for Business, Energy and Industrial Strategy","Department for Business, Energy and Industrial Strategy",04/10/2022,ICT Outsourcing & Maintenance/Support,"Trade, International, the Union & Analysis - Analysis Directorate",CoreAzure Ltd,464514,36000.00,MF Devolved Admin-ICT Outsourcing & Maintenance/Support,EC1N 9TS,VENDOR
"Department for Business, Energy and Industrial Strategy","Department for Business, Energy and Industrial Strategy",03/10/2022,Other Professional Services,Market Frameworks - Office for Product Safety and Standards,VWR International Ltd,464516,898.80,OPSS: National Capacity Testing-Other Professional Services,LE17 4XN,VENDOR
"Department for Business, Energy and Industrial Strategy","Department for Business, Energy and Industrial Strategy",14/10/2022,IT Software Licences and Software Maintenance,"Corporate Services - Digital, Data & Technology",SPECIALIST COMPUTER CENTRES (SSC),464517,6994.32,MF Devolved Admin-IT Software Licences and Software Maintenance,B11 2LE,VENDOR
"Department for Business, Energy and Industrial Strategy","Department for Business, Energy and Industrial Strategy",07/10/2022,IT Software Licences and Software Maintenance,"Corporate Services - Digital, Data & Technology",Boxxe Ltd,464527,88024.42,MF Devolved Admin-IT Software Licences and Software Maintenance,YO31 7RE,VENDOR
"Department for Business, Energy and Industrial Strategy","Department for Business, Energy and Industrial Strategy",14/10/2022,IT Software Licences and Software Maintenance,"Corporate Services - Digital, Data & Technology",SPECIALIST COMPUTER CENTRES (SSC),464529,291.41,MF Devolved Admin-IT Software Licences and Software Maintenance,B11 2LE,VENDOR
"Department for Business, Energy and Industrial Strategy","Department for Business, Energy and Industrial Strategy",07/10/2022,IT Software Licences and Software Maintenance,"Corporate Services - Digital, Data & Technology",Boxxe Ltd,464533,85631.64,MF Devolved Admin-IT Software Licences and Software Maintenance,YO31 7RE,VENDOR
"Department for Business, Energy and Industrial Strategy","Department for Business, Energy and Industrial Strategy",07/10/2022,R&D Current Grants to Public Corporations,"Science, Innovation and Growth - International Research and Innovation Directorate",NPL MANAGEMENT LTD,464536,50170.06,NPL Strategic Priorities Fund Analysis for Innovators-R&D Current Grants to Public Corporations,TW11 0LW,VENDOR
"Department for Business, Energy and Industrial Strategy","Department for Business, Energy and Industrial Strategy",07/10/2022,R & D Research and Development Expenditure,"Science, Innovation and Growth - International Research and Innovation Directorate",NPL MANAGEMENT LTD,464539,1008746.59,NMS - NPL Cross Sector-R & D Research and Development Expenditure,TW11 0LW,VENDOR
"Department for Business, Energy and Industrial Strategy","Department for Business, Energy and Industrial Strategy",07/10/2022,R & D Research and Development Expenditure,"Science, Innovation and Growth - International Research and Innovation Directorate",NPL MANAGEMENT LTD,464539,1148974.75,NMS - NPL Life Sciences and Health-R & D Research and Development Expenditure,TW11 0LW,VENDOR
"Department for Business, Energy and Industrial Strategy","Department for Business, Energy and Industrial Strategy",07/10/2022,R & D Research and Development Expenditure,"Science, Innovation and Growth - International Research and Innovation Directorate",NPL MANAGEMENT LTD,464539,1251757.00,NMS - NPL Digital-R & D Research and Development Expenditure,TW11 0LW,VENDOR
"Department for Business, Energy and Industrial Strategy","Department for Business, Energy and Industrial Strategy",07/10/2022,R & D Research and Development Expenditure,"Science, Innovation and Growth - International Research and Innovation Directorate",NPL MANAGEMENT LTD,464539,1435667.50,NMS - NPL Energy and Environment-R & D Research and Development Expenditure,TW11 0LW,VENDOR
"Department for Business, Energy and Industrial Strategy","Department for Business, Energy and Industrial Strategy",07/10/2022,R & D Research and Development Expenditure,"Science, Innovation and Growth - International Research and Innovation Directorate",NPL MANAGEMENT LTD,464539,1823543.83,NMS - NPL Advanced Manufacturing-R & D Research and Development Expenditure,TW11 0LW,VENDOR
"Department for Business, Energy and Industrial Strategy","Department for Business, Energy and Industrial Strategy",06/10/2022,Other Professional Services,Net Zero Buildings and Industry (NZBI) - Net Zero Buildings - Portfolio & Affordability,FCDO Services,464589,409.36,DWP Warm Home Discount Delivery-Other Professional Services,MK19 7BH,WGA ONLY
"Department for Business, Energy and Industrial Strategy","Department for Business, Energy and Industrial Strategy",05/10/2022,R & D Research and Development Expenditure,Energy Transformation and Clean Growth - Science and Innovation,Cadent Gas Ltd,464620,167028.90,Net Zero Innovation - Hydrogen-R & D Research and Development Expenditure,CV7 9JU,VENDOR
"Department for Business, Energy and Industrial Strategy","Department for Business, Energy and Industrial Strategy",06/10/2022,Outsourced Technical Support,"Corporate Services - Digital, Data & Technology",Hays Specialist Recruitment Ltd,464684,4496.70,MF Devolved Admin-Outsourced Technical Support,NW1 3BF,VENDOR
"Department for Business, Energy and Industrial Strategy","Department for Business, Energy and Industrial Strategy",07/10/2022,Outsourced Technical Support,"Corporate Services - Digital, Data & Technology",SIGHT AND SOUND TECHNOLOGY LTD,464685,395.00,MF Devolved Admin-Outsourced Technical Support,NN3 6WD,VENDOR
"Department for Business, Energy and Industrial Strategy","Department for Business, Energy and Industrial Strategy",03/10/2022,Professional Training,Market Frameworks - Business Frameworks,ILX Group Plc,464691,540.00,MF Devolved Admin-Professional Training,RG12 1WA,VENDOR
"Department for Business, Energy and Industrial Strategy","Department for Business, Energy and Industrial Strategy",19/10/2022,Other Professional Services,Energy and Security - Offshore Petroleum Regulator for Environment and Decommissioning,HARTLEY ANDERSON LTD,464698,11023.26,Offshore Energy Strategic Environmental Assessment-Other Professional Services,AB41 8ER,VENDOR
"Department for Business, Energy and Industrial Strategy","Department for Business, Energy and Industrial Strategy",19/10/2022,Other Professional Services,Energy and Security - Offshore Petroleum Regulator for Environment and Decommissioning,HARTLEY ANDERSON LTD,464698,84854.40,Offshore Energy Strategic Environmental Assessment-Other Professional Services,AB41 8ER,VENDOR
"Department for Business, Energy and Industrial Strategy","Department for Business, Energy and Industrial Strategy",04/10/2022,Protective Clothing,Market Frameworks - Office for Product Safety and Standards,Arco Ltd,464703,16.72,OPSS: Ports and Border-Protective Clothing,HU1 1BH,VENDOR
"Department for Business, Energy and Industrial Strategy","Department for Business, Energy and Industrial Strategy",03/10/2022,HR Advice and Services,Corporate Services - Human Resources,Ministry Of Justice,464705,101714.40,MF Devolved Admin-HR Advice and Services,NP20 9BB,WGA ONLY
"Department for Business, Energy and Industrial Strategy","Department for Business, Energy and Industrial Strategy",03/10/2022,Professional Subscriptions,Market Frameworks - Office for Product Safety and Standards,LEXISNEXIS (A DIVISION OF RELX (UK) LTD),464706,4200.00,OPSS: Cross Cutting-Professional Subscriptions,SM2 5AS,VENDOR
"Department for Business, Energy and Industrial Strategy","Department for Business, Energy and Industrial Strategy",03/10/2022,Grant-In-Aid to Arms Length Bodies,Net Zero Buildings and Industry (NZBI) - Net Zero Buildings - Portfolio & Affordability,SALIX FINANCE LTD,464711,807696.00,Salix - Grant in Aid.-Grant-In-Aid to Arms Length Bodies,EC4N 7BE,GRANT
"Department for Business, Energy and Industrial Strategy","Department for Business, Energy and Industrial Strategy",11/10/2022,Other Professional Services,Energy Transformation and Clean Growth - Net Zero Buildings - Domestic,IFF RESEARCH LTD,464717,27215.00,Social Housing Decarbonisation Fund (SHDF)-Other Professional Services,EC3R 6HD,VENDOR
"Department for Business, Energy and Industrial Strategy","Department for Business, Energy and Industrial Strategy",03/10/2022,R & D Economic Consultancy and Research,"Trade, International, the Union & Analysis - Trade, Cooperation and the Union Directorate (TCU)",IFF RESEARCH LTD,464718,10932.50,EU Exit: No specific DExEU issue PROG-R & D Economic Consultancy and Research,EC3R 6HD,VENDOR
"Department for Business, Energy and Industrial Strategy","Department for Business, Energy and Industrial Strategy",06/10/2022,Outsourced Programme Management,"Science, Innovation and Growth - Business Growth",Omnicom Media Group UK Ltd T/A Manning Gottlieb OMD,464726,4.05,Help to Grow: Management-Outsourced Programme Management,SE1 0SW,VENDOR
"Department for Business, Energy and Industrial Strategy","Department for Business, Energy and Industrial Strategy",06/10/2022,Outsourced Programme Management,"Science, Innovation and Growth - Business Growth",Omnicom Media Group UK Ltd T/A Manning Gottlieb OMD,464726,4089.04,Help to Grow: Management-Outsourced Programme Management,SE1 0SW,VENDOR
"Department for Business, Energy and Industrial Strategy","Department for Business, Energy and Industrial Strategy",07/10/2022,Marketing and Media,Market Frameworks - Labour Market,Omnicom Media Group UK Ltd T/A Manning Gottlieb OMD,464727,1.64,National Minimum Wage Enforcement-Marketing and Media,SE1 0SW,VENDOR
"Department for Business, Energy and Industrial Strategy","Department for Business, Energy and Industrial Strategy",07/10/2022,Marketing and Media,Market Frameworks - Labour Market,Omnicom Media Group UK Ltd T/A Manning Gottlieb OMD,464727,1660.59,National Minimum Wage Enforcement-Marketing and Media,SE1 0SW,VENDOR
"Department for Business, Energy and Industrial Strategy","Department for Business, Energy and Industrial Strategy",06/10/2022,Outsourced Programme Management,"Science, Innovation and Growth - Business Growth",Omnicom Media Group UK Ltd T/A Manning Gottlieb OMD,464728,6.18,Help to Grow: Management-Outsourced Programme Management,SE1 0SW,VENDOR
"Department for Business, Energy and Industrial Strategy","Department for Business, Energy and Industrial Strategy",06/10/2022,Outsourced Programme Management,"Science, Innovation and Growth - Business Growth",Omnicom Media Group UK Ltd T/A Manning Gottlieb OMD,464728,6245.47,Help to Grow: Management-Outsourced Programme Management,SE1 0SW,VENDOR
"Department for Business, Energy and Industrial Strategy","Department for Business, Energy and Industrial Strategy",03/10/2022,Grant-In-Aid to Arms Length Bodies,"Science, Innovation and Growth - International Research and Innovation Directorate",UKRI - Biotechnology and Biological Science Research Council,464729,24000000.00,BBSRC Financing-Grant-In-Aid to Arms Length Bodies,SN2 1FF,WGA ONLY
"Department for Business, Energy and Industrial Strategy","Department for Business, Energy and Industrial Strategy",03/10/2022,Grant-In-Aid to Arms Length Bodies,"Science, Innovation and Growth - International Research and Innovation Directorate",UKRI - Engineering and Physical Sciences Research Council,464730,30000000.00,EPSRC Financing-Grant-In-Aid to Arms Length Bodies,SN2 1FF,VENDOR
"Department for Business, Energy and Industrial Strategy","Department for Business, Energy and Industrial Strategy",03/10/2022,Grant-In-Aid to Arms Length Bodies,"Science, Innovation and Growth - International Research and Innovation Directorate",UKRI - Engineering and Physical Sciences Research Council,464731,15000000.00,EPSRC Financing-Grant-In-Aid to Arms Length Bodies,SN2 1FF,VENDOR
"Department for Business, Energy and Industrial Strategy","Department for Business, Energy and Industrial Strategy",03/10/2022,Grant-In-Aid to Arms Length Bodies,"Science, Innovation and Growth - International Research and Innovation Directorate",UKRI - Engineering and Physical Sciences Research Council,464732,40000000.00,EPSRC Financing-Grant-In-Aid to Arms Length Bodies,SN2 1FF,VENDOR
"Department for Business, Energy and Industrial Strategy","Department for Business, Energy and Industrial Strategy",03/10/2022,Grant-In-Aid to Arms Length Bodies,"Science, Innovation and Growth - International Research and Innovation Directorate",UKRI - Arts and Humanities Research Council,464733,7000000.00,AHRC Financing-Grant-In-Aid to Arms Length Bodies,SN2 1FL,WGA ONLY
"Department for Business, Energy and Industrial Strategy","Department for Business, Energy and Industrial Strategy",03/10/2022,Grant-In-Aid to Arms Length Bodies,"Science, Innovation and Growth - International Research and Innovation Directorate",Innovate UK,464734,103000000.00,TSB Financing-Grant-In-Aid to Arms Length Bodies,SN2 1FL,WGA ONLY
"Department for Business, Energy and Industrial Strategy","Department for Business, Energy and Industrial Strategy",06/10/2022,Outsourced Programme Management,"Science, Innovation and Growth - Business Growth",Omnicom Media Group UK Ltd T/A Manning Gottlieb OMD,464735,6.84,Help to Grow: Management-Outsourced Programme Management,SE1 0SW,VENDOR
"Department for Business, Energy and Industrial Strategy","Department for Business, Energy and Industrial Strategy",06/10/2022,Outsourced Programme Management,"Science, Innovation and Growth - Business Growth",Omnicom Media Group UK Ltd T/A Manning Gottlieb OMD,464735,6906.30,Help to Grow: Management-Outsourced Programme Management,SE1 0SW,VENDOR
"Department for Business, Energy and Industrial Strategy","Department for Business, Energy and Industrial Strategy",03/10/2022,Grant-In-Aid to Arms Length Bodies,"Science, Innovation and Growth - International Research and Innovation Directorate",UKRI - Natural Environment Research Council,464736,40000000.00,NERC Financing-Grant-In-Aid to Arms Length Bodies,SN2 1EU,WGA ONLY
"Department for Business, Energy and Industrial Strategy","Department for Business, Energy and Industrial Strategy",03/10/2022,Grant-In-Aid to Arms Length Bodies,"Science, Innovation and Growth - International Research and Innovation Directorate",UKRI - Medical Research Council,464737,49386000.00,MRC Financing-Grant-In-Aid to Arms Length Bodies,W1N 4AL,WGA ONLY
"Department for Business, Energy and Industrial Strategy","Department for Business, Energy and Industrial Strategy",03/10/2022,Grant-In-Aid to Arms Length Bodies,"Science, Innovation and Growth - International Research and Innovation Directorate",UKRI - Science and Technology Facilities Council,464738,40000000.00,STFC Financing-Grant-In-Aid to Arms Length Bodies,SN2 1FF,WGA ONLY
"Department for Business, Energy and Industrial Strategy","Department for Business, Energy and Industrial Strategy",07/10/2022,Marketing and Media,Market Frameworks - Labour Market,Omnicom Media Group UK Ltd T/A Manning Gottlieb OMD,464739,2.08,National Minimum Wage Enforcement-Marketing and Media,SE1 0SW,VENDOR
"Department for Business, Energy and Industrial Strategy","Department for Business, Energy and Industrial Strategy",07/10/2022,Marketing and Media,Market Frameworks - Labour Market,Omnicom Media Group UK Ltd T/A Manning Gottlieb OMD,464739,2096.02,National Minimum Wage Enforcement-Marketing and Media,SE1 0SW,VENDOR
"Department for Business, Energy and Industrial Strategy","Department for Business, Energy and Industrial Strategy",07/10/2022,Subsistence UK,"Trade, International, the Union & Analysis - Analysis Directorate","Personal Expense, Name Withheld",464795,4.00,MF Devolved Admin-Subsistence UK,,EMPLOYEE
"Department for Business, Energy and Industrial Strategy","Department for Business, Energy and Industrial Strategy",07/10/2022,Subsistence UK,"Trade, International, the Union & Analysis - Analysis Directorate","Personal Expense, Name Withheld",464795,4.80,MF Devolved Admin-Subsistence UK,,EMPLOYEE
"Department for Business, Energy and Industrial Strategy","Department for Business, Energy and Industrial Strategy",07/10/2022,Subsistence UK,"Trade, International, the Union & Analysis - Analysis Directorate","Personal Expense, Name Withheld",464795,8.00,MF Devolved Admin-Subsistence UK,,EMPLOYEE
"Department for Business, Energy and Industrial Strategy","Department for Business, Energy and Industrial Strategy",07/10/2022,Subsistence UK,"Trade, International, the Union & Analysis - Analysis Directorate","Personal Expense, Name Withheld",464795,9.55,MF Devolved Admin-Subsistence UK,,EMPLOYEE
"Department for Business, Energy and Industrial Strategy","Department for Business, Energy and Industrial Strategy",07/10/2022,Subsistence UK,"Trade, International, the Union & Analysis - Analysis Directorate","Personal Expense, Name Withheld",464795,15.00,MF Devolved Admin-Subsistence UK,,EMPLOYEE
"Department for Business, Energy and Industrial Strategy","Department for Business, Energy and Industrial Strategy",07/10/2022,Subsistence UK,"Trade, International, the Union & Analysis - Analysis Directorate","Personal Expense, Name Withheld",464795,15.00,MF Devolved Admin-Subsistence UK,,EMPLOYEE
"Department for Business, Energy and Industrial Strategy","Department for Business, Energy and Industrial Strategy",07/10/2022,Subsistence UK,"Trade, International, the Union & Analysis - Analysis Directorate","Personal Expense, Name Withheld",464795,15.00,MF Devolved Admin-Subsistence UK,,EMPLOYEE
"Department for Business, Energy and Industrial Strategy","Department for Business, Energy and Industrial Strategy",03/10/2022,Rail Travel UK,Energy Transformation and Clean Growth - INZ: Climate Finance & Strategy,"Personal Expense, Name Withheld",464860,261.75,Default-Rail Travel UK,,EMPLOYEE
"Department for Business, Energy and Industrial Strategy","Department for Business, Energy and Industrial Strategy",11/10/2022,Training And Development Expenditure,Corporate Services - Human Resources,Dods Group Ltd,464862,750.00,MF Non Devolved Admin-Training And Development Expenditure,SE1 9SG,VENDOR
"Department for Business, Energy and Industrial Strategy","Department for Business, Energy and Industrial Strategy",03/10/2022,Subsistence UK,Market Frameworks - Better Regulation Executive,"Personal Expense, Name Withheld",464863,6.70,Default-Subsistence UK,,EMPLOYEE
"Department for Business, Energy and Industrial Strategy","Department for Business, Energy and Industrial Strategy",03/10/2022,Rail Travel UK,Market Frameworks - Better Regulation Executive,"Personal Expense, Name Withheld",464863,72.30,Default-Rail Travel UK,,EMPLOYEE
"Department for Business, Energy and Industrial Strategy","Department for Business, Energy and Industrial Strategy",03/10/2022,Mileage Allowance UK,Market Frameworks - Better Regulation Executive,"Personal Expense, Name Withheld",464864,21.60,Default-Mileage Allowance UK,,EMPLOYEE
"Department for Business, Energy and Industrial Strategy","Department for Business, Energy and Industrial Strategy",03/10/2022,Rail Travel UK,Market Frameworks - Better Regulation Executive,"Personal Expense, Name Withheld",464864,126.68,Default-Rail Travel UK,,EMPLOYEE
"Department for Business, Energy and Industrial Strategy","Department for Business, Energy and Industrial Strategy",03/10/2022,Rail Travel UK,Energy and Security - Nuclear Protection Directorate,"Personal Expense, Name Withheld",464870,38.20,Default-Rail Travel UK,,
"Department for Business, Energy and Industrial Strategy","Department for Business, Energy and Industrial Strategy",03/10/2022,Air Travel UK,Energy and Security - Nuclear Protection Directorate,"Personal Expense, Name Withheld",464870,128.96,Default-Air Travel UK,,
"Department for Business, Energy and Industrial Strategy","Department for Business, Energy and Industrial Strategy",04/10/2022,Application Support Service,"Corporate Services - Digital, Data & Technology",CGI IT UK LTD,464873,36532.76,MF Devolved Admin-Application Support Service,EC3M 3BY,VENDOR
"Department for Business, Energy and Industrial Strategy","Department for Business, Energy and Industrial Strategy",03/10/2022,Application Support Service,"Corporate Services - Digital, Data & Technology",CGI IT UK LTD,464879,12735.00,MF Devolved Admin-Application Support Service,EC3M 3BY,VENDOR
"Department for Business, Energy and Industrial Strategy","Department for Business, Energy and Industrial Strategy",03/10/2022,Clearing Account - Cost - Assets Under Construction - Freehold building,Market Frameworks - Office for Product Safety and Standards,Government Property Agency,464881,67951.92,OPSS: National Capacity Organisational Cross Cutting-Clearing Account - Cost - Assets Under Construction - Freehold building,B2 5LS,VENDOR
"Department for Business, Energy and Industrial Strategy","Department for Business, Energy and Industrial Strategy",03/10/2022,Clearing Account - Cost - Assets Under Construction - Freehold building,Market Frameworks - Office for Product Safety and Standards,Government Property Agency,464882,6106.82,OPSS: National Capacity Organisational Cross Cutting-Clearing Account - Cost - Assets Under Construction - Freehold building,B2 5LS,VENDOR
"Department for Business, Energy and Industrial Strategy","Department for Business, Energy and Industrial Strategy",04/10/2022,CA - Other Receivables - Unclassified,Energy Transformation and Clean Growth - Net Zero Buildings - Clean Heat,Office of Gas and Electricity Markets (OFGEM),464886,65925307.00,RHI Non-Domestic AME Payments-CA - Other Receivables - Unclassified,SW1P 3GE,GRANT
"Department for Business, Energy and Industrial Strategy","Department for Business, Energy and Industrial Strategy",04/10/2022,Hire of Agency Staff,"Science, Innovation and Growth - Help to Grow Digital",Alexander Mann Solutions Ltd,464888,2205.18,Help to Grow: Digital-Hire of Agency Staff,EC2N 3AQ,VENDOR
"Department for Business, Energy and Industrial Strategy","Department for Business, Energy and Industrial Strategy",04/10/2022,Hire of Interim Managers,Corporate Services - Commercial & Operations,Alexander Mann Solutions Ltd,464890,3317.40,MF Devolved Admin-Hire of Interim Managers,EC2N 3AQ,VENDOR
"Department for Business, Energy and Industrial Strategy","Department for Business, Energy and Industrial Strategy",06/10/2022,Hire of Agency Staff,"Science, Innovation and Growth - Help to Grow Digital",Alexander Mann Solutions Ltd,464891,2835.24,Help to Grow: Digital-Hire of Agency Staff,EC2N 3AQ,VENDOR
"Department for Business, Energy and Industrial Strategy","Department for Business, Energy and Industrial Strategy",03/10/2022,Hire of Interim Managers,Corporate Services - Matrix Directorate,Alexander Mann Solutions Ltd,464893,2217.35,MF Devolved Admin-Hire of Interim Managers,EC2N 3AQ,VENDOR
"Department for Business, Energy and Industrial Strategy","Department for Business, Energy and Industrial Strategy",03/10/2022,Hire of Interim Managers,Corporate Services - Matrix Directorate,Alexander Mann Solutions Ltd,464894,1103.52,MF Devolved Admin-Hire of Interim Managers,EC2N 3AQ,VENDOR
"Department for Business, Energy and Industrial Strategy","Department for Business, Energy and Industrial Strategy",04/10/2022,Hire of Agency Staff,"Science, Innovation and Growth - Help to Grow Digital",Alexander Mann Solutions Ltd,464895,2205.18,Help to Grow: Digital-Hire of Agency Staff,EC2N 3AQ,VENDOR
"Department for Business, Energy and Industrial Strategy","Department for Business, Energy and Industrial Strategy",11/10/2022,Other Goods/Services,Business Sectors - Infrastructure and Materials,Alexander Mann Solutions Ltd,464896,755.96,MF Devolved Admin-Other Goods/Services,EC2N 3AQ,VENDOR
"Department for Business, Energy and Industrial Strategy","Department for Business, Energy and Industrial Strategy",03/10/2022,Consultancy Expenditure,Energy and Security - Nuclear Projects and Development Directorate,Alexander Mann Solutions Ltd,464897,4711.85,MF Devolved Admin-Consultancy Expenditure,EC2N 3AQ,VENDOR
"Department for Business, Energy and Industrial Strategy","Department for Business, Energy and Industrial Strategy",04/10/2022,Hire of Interim Managers,Energy and Security - Nuclear Protection Directorate,Alexander Mann Solutions Ltd,464898,2835.24,MF Devolved Admin-Hire of Interim Managers,EC2N 3AQ,VENDOR
"Department for Business, Energy and Industrial Strategy","Department for Business, Energy and Industrial Strategy",03/10/2022,Hire of Interim Managers,Corporate Services - Matrix Directorate,Alexander Mann Solutions Ltd,464899,3079.63,MF Devolved Admin-Hire of Interim Managers,EC2N 3AQ,VENDOR
"Department for Business, Energy and Industrial Strategy","Department for Business, Energy and Industrial Strategy",04/10/2022,Hire of Agency Staff,"Science, Innovation and Growth - Help to Grow Digital",Alexander Mann Solutions Ltd,464900,2268.19,Help to Grow: Digital-Hire of Agency Staff,EC2N 3AQ,VENDOR
"Department for Business, Energy and Industrial Strategy","Department for Business, Energy and Industrial Strategy",03/10/2022,Hire of Interim Managers,Corporate Services - Commercial & Operations,Alexander Mann Solutions Ltd,464901,2835.24,MF Devolved Admin-Hire of Interim Managers,EC2N 3AQ,VENDOR
"Department for Business, Energy and Industrial Strategy","Department for Business, Energy and Industrial Strategy",03/10/2022,Hire of Agency Staff,"Science, Innovation and Growth - Help to Grow Digital",Alexander Mann Solutions Ltd,464902,1045.46,Help to Grow: Digital-Hire of Agency Staff,EC2N 3AQ,VENDOR
"Department for Business, Energy and Industrial Strategy","Department for Business, Energy and Industrial Strategy",03/10/2022,PPM Consultancy,"Science, Innovation and Growth - Help to Grow Digital",Alexander Mann Solutions Ltd,464903,3729.94,MF Devolved Admin-PPM Consultancy,EC2N 3AQ,VENDOR
"Department for Business, Energy and Industrial Strategy","Department for Business, Energy and Industrial Strategy",03/10/2022,Other Professional Services,Energy and Security - Nuclear Protection Directorate,Alexander Mann Solutions Ltd,464904,137.45,MF Devolved Admin-Other Professional Services,EC2N 3AQ,VENDOR
"Department for Business, Energy and Industrial Strategy","Department for Business, Energy and Industrial Strategy",06/10/2022,Hire of Agency Staff,"Science, Innovation and Growth - Help to Grow Digital",Alexander Mann Solutions Ltd,464905,2835.24,Help to Grow: Digital-Hire of Agency Staff,EC2N 3AQ,VENDOR
"Department for Business, Energy and Industrial Strategy","Department for Business, Energy and Industrial Strategy",03/10/2022,Hire of Interim Managers,Corporate Services - Commercial & Operations,Alexander Mann Solutions Ltd,464906,4003.56,MF Devolved Admin-Hire of Interim Managers,EC2N 3AQ,VENDOR
"Department for Business, Energy and Industrial Strategy","Department for Business, Energy and Industrial Strategy",06/10/2022,Hire of Agency Staff,"Science, Innovation and Growth - Help to Grow Digital",Alexander Mann Solutions Ltd,464907,2800.36,Help to Grow: Digital-Hire of Agency Staff,EC2N 3AQ,VENDOR
"Department for Business, Energy and Industrial Strategy","Department for Business, Energy and Industrial Strategy",06/10/2022,Hire of Agency Staff,"Science, Innovation and Growth - Help to Grow Digital",Alexander Mann Solutions Ltd,464908,2800.36,Help to Grow: Digital-Hire of Agency Staff,EC2N 3AQ,VENDOR
"Department for Business, Energy and Industrial Strategy","Department for Business, Energy and Industrial Strategy",06/10/2022,Hire of Agency Staff,"Science, Innovation and Growth - Help to Grow Digital",Alexander Mann Solutions Ltd,464909,2800.36,Help to Grow: Digital-Hire of Agency Staff,EC2N 3AQ,VENDOR
"Department for Business, Energy and Industrial Strategy","Department for Business, Energy and Industrial Strategy",03/10/2022,Hire of Agency Staff,"Science, Innovation and Growth - Help to Grow Digital",Alexander Mann Solutions Ltd,464910,2800.36,Help to Grow: Digital-Hire of Agency Staff,EC2N 3AQ,VENDOR
"Department for Business, Energy and Industrial Strategy","Department for Business, Energy and Industrial Strategy",03/10/2022,R & D Training and Development Expenditure,"Science, Innovation and Growth - Government Office for Science",The Carbon Literacy Trust T/A The Carbon Literacy Project,464911,90.00,Go Science Staff - Pay and Non-Pay Costs-R & D Training and Development Expenditure,M1 5GD,VENDOR
"Department for Business, Energy and Industrial Strategy","Department for Business, Energy and Industrial Strategy",03/10/2022,External Legal Advice and Service,Business Sectors - Services,Hodge Jones and Allen Solicitors Ltd,464922,17812.60,MF Devolved Admin-External Legal Advice and Service,NW1 2NB,VENDOR
"Department for Business, Energy and Industrial Strategy","Department for Business, Energy and Industrial Strategy",03/10/2022,Protective Clothing,Market Frameworks - Office for Product Safety and Standards,Arco Ltd,464923,17.98,OPSS: Ports and Border-Protective Clothing,HU1 1BH,VENDOR
"Department for Business, Energy and Industrial Strategy","Department for Business, Energy and Industrial Strategy",03/10/2022,Protective Clothing,Market Frameworks - Office for Product Safety and Standards,Arco Ltd,464924,17.98,OPSS: Ports and Border-Protective Clothing,HU1 1BH,VENDOR
"Department for Business, Energy and Industrial Strategy","Department for Business, Energy and Industrial Strategy",03/10/2022,Protective Clothing,Market Frameworks - Office for Product Safety and Standards,Arco Ltd,464925,30.01,OPSS: Ports and Border-Protective Clothing,HU1 1BH,VENDOR
"Department for Business, Energy and Industrial Strategy","Department for Business, Energy and Industrial Strategy",24/10/2022,R & D Professional Subscriptions,"Science, Innovation and Growth - Government Office for Science",Digital Science and Research Solutions Inc,464928,49660.00,Insights & EmTech-R & D Professional Subscriptions,2139,VENDOR
"Department for Business, Energy and Industrial Strategy","Department for Business, Energy and Industrial Strategy",03/10/2022,Protective Clothing,Market Frameworks - Office for Product Safety and Standards,Arco Ltd,464929,24.07,OPSS: Ports and Border-Protective Clothing,HU1 1BH,VENDOR
"Department for Business, Energy and Industrial Strategy","Department for Business, Energy and Industrial Strategy",03/10/2022,Air Travel UK,Market Frameworks - Office of Manpower Economics,"Personal Expense, Name Withheld",464932,20.00,MF Devolved Admin-Air Travel UK,,EMPLOYEE
"Department for Business, Energy and Industrial Strategy","Department for Business, Energy and Industrial Strategy",03/10/2022,Rail Travel UK,Market Frameworks - Office of Manpower Economics,"Personal Expense, Name Withheld",464932,51.00,MF Devolved Admin-Rail Travel UK,,EMPLOYEE
"Department for Business, Energy and Industrial Strategy","Department for Business, Energy and Industrial Strategy",03/10/2022,Consultancy Expenditure,Corporate Services - Commercial & Operations,Docusign Inc,464933,7912.00,MF Devolved Admin-Consultancy Expenditure,CA94105,VENDOR
"Department for Business, Energy and Industrial Strategy","Department for Business, Energy and Industrial Strategy",03/10/2022,Sale of Professional Services,"Science, Innovation and Growth - International Research and Innovation Directorate",Zoonou Ltd,464934,1750.00,Advanced Research and Invention Agency (ARIA)-Sale of Professional Services,BN21 3UX,VENDOR
"Department for Business, Energy and Industrial Strategy","Department for Business, Energy and Industrial Strategy",03/10/2022,Other Travel,Market Frameworks - Office of Manpower Economics,"Personal Expense, Name Withheld",464936,4.90,MF Devolved Admin-Other Travel,,EMPLOYEE
"Department for Business, Energy and Industrial Strategy","Department for Business, Energy and Industrial Strategy",03/10/2022,Subsistence UK,Market Frameworks - Office of Manpower Economics,"Personal Expense, Name Withheld",464936,9.98,MF Devolved Admin-Subsistence UK,,EMPLOYEE
"Department for Business, Energy and Industrial Strategy","Department for Business, Energy and Industrial Strategy",03/10/2022,Taxi Services UK,Market Frameworks - Office of Manpower Economics,"Personal Expense, Name Withheld",464936,20.00,MF Devolved Admin-Taxi Services UK,,EMPLOYEE
"Department for Business, Energy and Industrial Strategy","Department for Business, Energy and Industrial Strategy",03/10/2022,Rail Travel UK,Market Frameworks - Office of Manpower Economics,"Personal Expense, Name Withheld",464936,53.90,MF Devolved Admin-Rail Travel UK,,EMPLOYEE
"Department for Business, Energy and Industrial Strategy","Department for Business, Energy and Industrial Strategy",03/10/2022,Protective Clothing,Market Frameworks - Office for Product Safety and Standards,Arco Ltd,464937,66.82,OPSS: Ports and Border-Protective Clothing,HU1 1BH,VENDOR
"Department for Business, Energy and Industrial Strategy","Department for Business, Energy and Industrial Strategy",04/10/2022,Utilisation of Provisions - Purchase of Goods & Services - Other,Energy and Security - Energy Development and Resilience,CPL DISTRIBUTION LTD,464938,13200.00,"Concessionary Fuel Scheme Costs (Includes Supply, Distribution and Contract Mana-Utilisation of Provisions - Purchase of Goods & Services - Other",S21 1TZ,VENDOR
"Department for Business, Energy and Industrial Strategy","Department for Business, Energy and Industrial Strategy",04/10/2022,Protective Clothing,Market Frameworks - Office for Product Safety and Standards,Arco Ltd,464939,44.74,OPSS: Ports and Border-Protective Clothing,HU1 1BH,VENDOR
"Department for Business, Energy and Industrial Strategy","Department for Business, Energy and Industrial Strategy",05/10/2022,Utilisation of Provisions - Social Assistance Benefits - Concessionary,Energy and Security - Energy Development and Resilience,CPL DISTRIBUTION LTD,464940,394700.61,"Concessionary Fuel Scheme Costs (Includes Supply, Distribution and Contract Mana-Utilisation of Provisions - Social Assistance Benefits - Concessionary",S21 1TZ,VENDOR
"Department for Business, Energy and Industrial Strategy","Department for Business, Energy and Industrial Strategy",04/10/2022,Protective Clothing,Market Frameworks - Office for Product Safety and Standards,Arco Ltd,464941,30.01,OPSS: Ports and Border-Protective Clothing,HU1 1BH,VENDOR
"Department for Business, Energy and Industrial Strategy","Department for Business, Energy and Industrial Strategy",04/10/2022,Protective Clothing,Market Frameworks - Office for Product Safety and Standards,Arco Ltd,464942,17.98,OPSS: Ports and Border-Protective Clothing,HU1 1BH,VENDOR
"Department for Business, Energy and Industrial Strategy","Department for Business, Energy and Industrial Strategy",03/10/2022,Protective Clothing,Market Frameworks - Office for Product Safety and Standards,Arco Ltd,464943,30.01,OPSS: Ports and Border-Protective Clothing,HU1 1BH,VENDOR
"Department for Business, Energy and Industrial Strategy","Department for Business, Energy and Industrial Strategy",04/10/2022,Other Admin Expenditure,"Energy and Security - Energy Security, Networks and Markets",EEC Trading Limited,464944,887.50,Net Zero Costs - Admin-Other Admin Expenditure,SW1P 3DW,VENDOR
"Department for Business, Energy and Industrial Strategy","Department for Business, Energy and Industrial Strategy",04/10/2022,Protective Clothing,Market Frameworks - Office for Product Safety and Standards,Arco Ltd,464945,30.01,OPSS: Ports and Border-Protective Clothing,HU1 1BH,VENDOR
"Department for Business, Energy and Industrial Strategy","Department for Business, Energy and Industrial Strategy",03/10/2022,Protective Clothing,Market Frameworks - Office for Product Safety and Standards,Arco Ltd,464946,30.01,OPSS: Ports and Border-Protective Clothing,HU1 1BH,VENDOR
"Department for Business, Energy and Industrial Strategy","Department for Business, Energy and Industrial Strategy",04/10/2022,R & D Strategy Consultancy,"Science, Innovation and Growth - International Research and Innovation Directorate",THE DEXTROUS WEB LTD T/A DXW,464947,33862.50,GCRF - Transformation Project - ODA Reporting Tool (ODART)-R & D Strategy Consultancy,LS2 7EW,VENDOR
"Department for Business, Energy and Industrial Strategy","Department for Business, Energy and Industrial Strategy",04/10/2022,Protective Clothing,Market Frameworks - Office for Product Safety and Standards,Arco Ltd,464948,30.01,OPSS: Ports and Border-Protective Clothing,HU1 1BH,VENDOR
"Department for Business, Energy and Industrial Strategy","Department for Business, Energy and Industrial Strategy",04/10/2022,Training And Development Expenditure,Corporate Services - Human Resources,THE CHARTERED INSTITUTE OF PUBLIC FINANCE AND ACCOUNTANCY (CIPFA),464949,2500.00,MF Non Devolved Admin-Training And Development Expenditure,E1 8AN,VENDOR
"Department for Business, Energy and Industrial Strategy","Department for Business, Energy and Industrial Strategy",04/10/2022,Publications,"Corporate Services - Policy, Strategy and Private Office",JONES YARRELL LEADENHALL (Menzies Distribution Ltd),464952,651.06,MF Devolved Admin-Publications,EH12 9DJ,VENDOR
"Department for Business, Energy and Industrial Strategy","Department for Business, Energy and Industrial Strategy",05/10/2022,Contractor Expenditure,Vaccines Taskforce - Vaccines Taskforce,Alexander Mann Solutions Ltd,464954,4095.36,VTF Admin - COVID-19-Contractor Expenditure,EC2N 3AQ,VENDOR
"Department for Business, Energy and Industrial Strategy","Department for Business, Energy and Industrial Strategy",05/10/2022,Contractor Expenditure,Vaccines Taskforce - Vaccines Taskforce,Alexander Mann Solutions Ltd,464955,4865.88,VTF Admin - COVID-19-Contractor Expenditure,EC2N 3AQ,VENDOR
"Department for Business, Energy and Industrial Strategy","Department for Business, Energy and Industrial Strategy",05/10/2022,Contractor Expenditure,Vaccines Taskforce - Vaccines Taskforce,Alexander Mann Solutions Ltd,464956,3941.95,VTF Admin - COVID-19-Contractor Expenditure,EC2N 3AQ,VENDOR
"Department for Business, Energy and Industrial Strategy","Department for Business, Energy and Industrial Strategy",03/10/2022,Talent and BEIS Exclusive training,Corporate Services - Human Resources,KPMG LLP,464957,1044.00,MF Non Devolved Admin-Talent and BEIS Exclusive training,E14 5GL,VENDOR
"Department for Business, Energy and Industrial Strategy","Department for Business, Energy and Industrial Strategy",03/10/2022,Talent and BEIS Exclusive training,Corporate Services - Human Resources,KPMG LLP,464958,249.00,MF Non Devolved Admin-Talent and BEIS Exclusive training,E14 5GL,VENDOR
"Department for Business, Energy and Industrial Strategy","Department for Business, Energy and Industrial Strategy",03/10/2022,Publications,Corporate Services - Communications,JONES YARRELL LEADENHALL (Menzies Distribution Ltd),464959,375.15,MF Devolved Admin-Publications,EH12 9DJ,VENDOR
"Department for Business, Energy and Industrial Strategy","Department for Business, Energy and Industrial Strategy",03/10/2022,Publications,Corporate Services - Communications,Precise Media Monitoring Ltd,464961,1618.06,MF Devolved Admin-Publications,WC1X 8HB,VENDOR
"Department for Business, Energy and Industrial Strategy","Department for Business, Energy and Industrial Strategy",03/10/2022,Telephone Helpline Services,Market Frameworks - Labour Market,BRITISH TELECOMMUNICATIONS plc (BT),464963,32.34,EAS Enforcement-Telephone Helpline Services,DH98 1BT,VENDOR
"Department for Business, Energy and Industrial Strategy","Department for Business, Energy and Industrial Strategy",03/10/2022,Hire of Interim Managers,Corporate Services - Commercial & Operations,Alexander Mann Solutions Ltd,464965,3300.00,MF Devolved Admin-Hire of Interim Managers,EC2N 3AQ,VENDOR
"Department for Business, Energy and Industrial Strategy","Department for Business, Energy and Industrial Strategy",03/10/2022,Clearing Account - Cost - Assets Under Construction - Freehold building,Market Frameworks - Office for Product Safety and Standards,Government Property Agency,464966,18405.93,OPSS: National Capacity Organisational Cross Cutting-Clearing Account - Cost - Assets Under Construction - Freehold building,B2 5LS,VENDOR
"Department for Business, Energy and Industrial Strategy","Department for Business, Energy and Industrial Strategy",03/10/2022,Procurement Consultancy,"Science, Innovation and Growth - Help to Grow Digital",Alexander Mann Solutions Ltd,464967,1568.20,Help to Grow: Digital-Procurement Consultancy,EC2N 3AQ,VENDOR
"Department for Business, Energy and Industrial Strategy","Department for Business, Energy and Industrial Strategy",03/10/2022,Clearing Account - Cost - Assets Under Construction - Freehold building,Market Frameworks - Office for Product Safety and Standards,Government Property Agency,464968,18405.93,OPSS: National Capacity Organisational Cross Cutting-Clearing Account - Cost - Assets Under Construction - Freehold building,B2 5LS,VENDOR
"Department for Business, Energy and Industrial Strategy","Department for Business, Energy and Industrial Strategy",03/10/2022,Clearing Account - Cost - Assets Under Construction - Freehold building,Market Frameworks - Office for Product Safety and Standards,Government Property Agency,464969,9408.26,OPSS: National Capacity Organisational Cross Cutting-Clearing Account - Cost - Assets Under Construction - Freehold building,B2 5LS,VENDOR
"Department for Business, Energy and Industrial Strategy","Department for Business, Energy and Industrial Strategy",03/10/2022,Clearing Account - Cost - Assets Under Construction - Freehold building,Market Frameworks - Office for Product Safety and Standards,Government Property Agency,464970,14853.38,OPSS: National Capacity Organisational Cross Cutting-Clearing Account - Cost - Assets Under Construction - Freehold building,B2 5LS,VENDOR
"Department for Business, Energy and Industrial Strategy","Department for Business, Energy and Industrial Strategy",05/10/2022,Contractor Expenditure,Vaccines Taskforce - Vaccines Taskforce,Alexander Mann Solutions Ltd,464973,1724.59,VTF Admin - COVID-19-Contractor Expenditure,EC2N 3AQ,VENDOR
"Department for Business, Energy and Industrial Strategy","Department for Business, Energy and Industrial Strategy",05/10/2022,Contractor Expenditure,Vaccines Taskforce - Vaccines Taskforce,Alexander Mann Solutions Ltd,464974,3803.39,VTF Admin - COVID-19-Contractor Expenditure,EC2N 3AQ,VENDOR
"Department for Business, Energy and Industrial Strategy","Department for Business, Energy and Industrial Strategy",03/10/2022,Hire of Agency Staff,Energy and Security - Nuclear Projects and Development Directorate,Alexander Mann Solutions Ltd,464976,3465.30,MF Devolved Admin-Hire of Agency Staff,EC2N 3AQ,VENDOR
"Department for Business, Energy and Industrial Strategy","Department for Business, Energy and Industrial Strategy",03/10/2022,Facilities Management Contract,Market Frameworks - Office for Product Safety and Standards,Government Property Agency,464979,97150.68,OPSS: National Capacity Organisational Cross Cutting-Facilities Management Contract,B2 5LS,VENDOR
"Department for Business, Energy and Industrial Strategy","Department for Business, Energy and Industrial Strategy",07/10/2022,R & D Current Grants to Central Government,"Science, Innovation and Growth - International Research and Innovation Directorate","Foreign, Commonwealth and Development Office",464984,5.03,NEWTON FUND - Colombia-R & D Current Grants to Central Government,MK10 1PX,WGA ONLY
"Department for Business, Energy and Industrial Strategy","Department for Business, Energy and Industrial Strategy",03/10/2022,R & D Current Grants to Central Government,"Science, Innovation and Growth - International Research and Innovation Directorate","Foreign, Commonwealth and Development Office",464986,8143.13,NEWTON FUND - Colombia-R & D Current Grants to Central Government,MK10 1PX,WGA ONLY
"Department for Business, Energy and Industrial Strategy","Department for Business, Energy and Industrial Strategy",05/10/2022,Contractor Expenditure,Vaccines Taskforce - Vaccines Taskforce,Alexander Mann Solutions Ltd,464989,3818.76,VTF Admin - COVID-19-Contractor Expenditure,EC2N 3AQ,VENDOR
"Department for Business, Energy and Industrial Strategy","Department for Business, Energy and Industrial Strategy",04/10/2022,Hire of Agency Staff,Corporate Services - Human Resources,Alexander Mann Solutions Ltd,464990,801.78,MF Devolved Admin-Hire of Agency Staff,EC2N 3AQ,VENDOR
"Department for Business, Energy and Industrial Strategy","Department for Business, Energy and Industrial Strategy",10/10/2022,Consultancy Expenditure,Vaccines Taskforce - Vaccines Taskforce,Alexander Mann Solutions Ltd,464991,3695.58,VTF Admin - COVID-19-Consultancy Expenditure,EC2N 3AQ,VENDOR
"Department for Business, Energy and Industrial Strategy","Department for Business, Energy and Industrial Strategy",05/10/2022,R & D Research and Development Expenditure,Energy Transformation and Clean Growth - Science and Innovation,Alexander Mann Solutions Ltd,464992,1108.90,Net Zero Innovation Technical support-R & D Research and Development Expenditure,EC2N 3AQ,VENDOR
"Department for Business, Energy and Industrial Strategy","Department for Business, Energy and Industrial Strategy",03/10/2022,Hire of Interim Managers,Corporate Services - Commercial & Operations,Alexander Mann Solutions Ltd,464994,729.83,MF Devolved Admin-Hire of Interim Managers,EC2N 3AQ,VENDOR
"Department for Business, Energy and Industrial Strategy","Department for Business, Energy and Industrial Strategy",05/10/2022,Contractor Expenditure,Vaccines Taskforce - Vaccines Taskforce,Alexander Mann Solutions Ltd,464995,12712.86,VTF Admin - COVID-19-Contractor Expenditure,EC2N 3AQ,VENDOR
"Department for Business, Energy and Industrial Strategy","Department for Business, Energy and Industrial Strategy",05/10/2022,Contractor Expenditure,Vaccines Taskforce - Vaccines Taskforce,Alexander Mann Solutions Ltd,464996,5851.38,VTF Admin - COVID-19-Contractor Expenditure,EC2N 3AQ,VENDOR
"Department for Business, Energy and Industrial Strategy","Department for Business, Energy and Industrial Strategy",05/10/2022,Contractor Expenditure,Vaccines Taskforce - Vaccines Taskforce,Alexander Mann Solutions Ltd,464999,5912.93,VTF Admin - COVID-19-Contractor Expenditure,EC2N 3AQ,VENDOR
"Department for Business, Energy and Industrial Strategy","Department for Business, Energy and Industrial Strategy",10/10/2022,Contractor Expenditure,Vaccines Taskforce - Vaccines Taskforce,Alexander Mann Solutions Ltd,465000,2217.35,VTF Admin - COVID-19-Contractor Expenditure,EC2N 3AQ,VENDOR
"Department for Business, Energy and Industrial Strategy","Department for Business, Energy and Industrial Strategy",03/10/2022,Procurement Consultancy,"Science, Innovation and Growth - Help to Grow Digital",Alexander Mann Solutions Ltd,465002,1120.14,Help to Grow: Digital-Procurement Consultancy,EC2N 3AQ,VENDOR
"Department for Business, Energy and Industrial Strategy","Department for Business, Energy and Industrial Strategy",07/10/2022,Computer Consumables,"Corporate Services - Digital, Data & Technology",Bechtle Direct Ltd,465005,273.05,MF Devolved Admin-Computer Consumables,SN14 0GF,VENDOR
"Department for Business, Energy and Industrial Strategy","Department for Business, Energy and Industrial Strategy",07/10/2022,Computer Consumables,"Corporate Services - Digital, Data & Technology",Bechtle Direct Ltd,465005,331.86,MF Devolved Admin-Computer Consumables,SN14 0GF,VENDOR
"Department for Business, Energy and Industrial Strategy","Department for Business, Energy and Industrial Strategy",07/10/2022,Computer Consumables,"Corporate Services - Digital, Data & Technology",Bechtle Direct Ltd,465005,955.43,MF Devolved Admin-Computer Consumables,SN14 0GF,VENDOR
"Department for Business, Energy and Industrial Strategy","Department for Business, Energy and Industrial Strategy",03/10/2022,Other Professional Services,Market Frameworks - Office for Product Safety and Standards,Royal Holloway and Bedford New College (RHBNC),465006,26830.00,OPSS: National Capacity Scientific and Technical-Other Professional Services,TW20 0EX,VENDOR
"Department for Business, Energy and Industrial Strategy","Department for Business, Energy and Industrial Strategy",10/10/2022,Contractor Expenditure,Vaccines Taskforce - Vaccines Taskforce,Alexander Mann Solutions Ltd,465007,5142.00,VTF Admin - COVID-19-Contractor Expenditure,EC2N 3AQ,VENDOR
"Department for Business, Energy and Industrial Strategy","Department for Business, Energy and Industrial Strategy",05/10/2022,Contractor Expenditure,Vaccines Taskforce - Vaccines Taskforce,Alexander Mann Solutions Ltd,465009,4557.90,VTF Admin - COVID-19-Contractor Expenditure,EC2N 3AQ,VENDOR
"Department for Business, Energy and Industrial Strategy","Department for Business, Energy and Industrial Strategy",03/10/2022,Minor Works,Corporate Services - Commercial & Operations,Dr NipNip Ltd,465010,1488.00,MF Devolved Admin-Minor Works,SE1 1PE,VENDOR
"Department for Business, Energy and Industrial Strategy","Department for Business, Energy and Industrial Strategy",03/10/2022,Minor Works,Corporate Services - Commercial & Operations,Dr NipNip Ltd,465010,4200.00,MF Devolved Admin-Minor Works,SE1 1PE,VENDOR
"Department for Business, Energy and Industrial Strategy","Department for Business, Energy and Industrial Strategy",05/10/2022,Contractor Expenditure,Vaccines Taskforce - Vaccines Taskforce,Alexander Mann Solutions Ltd,465011,4927.44,VTF Admin - COVID-19-Contractor Expenditure,EC2N 3AQ,VENDOR
"Department for Business, Energy and Industrial Strategy","Department for Business, Energy and Industrial Strategy",03/10/2022,Technical Advice / Services & Support,"Corporate Services - Digital, Data & Technology",Broadlight Ltd,465012,7700.00,MF Devolved Admin-Technical Advice / Services & Support,EC4N 6HL,VENDOR
"Department for Business, Energy and Industrial Strategy","Department for Business, Energy and Industrial Strategy",05/10/2022,Consultancy Expenditure,Vaccines Taskforce - Vaccines Taskforce,Alexander Mann Solutions Ltd,465013,4157.52,VTF Admin - COVID-19-Consultancy Expenditure,EC2N 3AQ,VENDOR
"Department for Business, Energy and Industrial Strategy","Department for Business, Energy and Industrial Strategy",03/10/2022,Mileage Allowance UK,Energy and Security - Offshore Petroleum Regulator for Environment and Decommissioning,"Personal Expense, Name Withheld",465015,15.75,Offshore Environmental Regulation-Mileage Allowance UK,,EMPLOYEE
"Department for Business, Energy and Industrial Strategy","Department for Business, Energy and Industrial Strategy",03/10/2022,Taxi Services Overseas,Energy and Security - Nuclear Projects and Development Directorate,"Personal Expense, Name Withheld",465017,43.50,MF Devolved Admin-Taxi Services Overseas,,EMPLOYEE
"Department for Business, Energy and Industrial Strategy","Department for Business, Energy and Industrial Strategy",03/10/2022,Subsistence Overseas,Energy and Security - Nuclear Protection Directorate,"Personal Expense, Name Withheld",465019,9.82,MF Devolved Admin-Subsistence Overseas,,EMPLOYEE
"Department for Business, Energy and Industrial Strategy","Department for Business, Energy and Industrial Strategy",03/10/2022,Subsistence Overseas,Energy and Security - Nuclear Protection Directorate,"Personal Expense, Name Withheld",465019,16.04,MF Devolved Admin-Subsistence Overseas,,EMPLOYEE
"Department for Business, Energy and Industrial Strategy","Department for Business, Energy and Industrial Strategy",03/10/2022,Subsistence Overseas,Energy and Security - Nuclear Protection Directorate,"Personal Expense, Name Withheld",465019,16.70,MF Devolved Admin-Subsistence Overseas,,EMPLOYEE
"Department for Business, Energy and Industrial Strategy","Department for Business, Energy and Industrial Strategy",03/10/2022,Subsistence Overseas,Energy and Security - Nuclear Protection Directorate,"Personal Expense, Name Withheld",465019,16.70,MF Devolved Admin-Subsistence Overseas,,EMPLOYEE
"Department for Business, Energy and Industrial Strategy","Department for Business, Energy and Industrial Strategy",03/10/2022,Subsistence Overseas,Energy and Security - Nuclear Protection Directorate,"Personal Expense, Name Withheld",465019,22.33,MF Devolved Admin-Subsistence Overseas,,EMPLOYEE
"Department for Business, Energy and Industrial Strategy","Department for Business, Energy and Industrial Strategy",03/10/2022,Subsistence Overseas,Energy and Security - Nuclear Protection Directorate,"Personal Expense, Name Withheld",465019,41.97,MF Devolved Admin-Subsistence Overseas,,EMPLOYEE
"Department for Business, Energy and Industrial Strategy","Department for Business, Energy and Industrial Strategy",03/10/2022,Subsistence Overseas,Energy and Security - Nuclear Protection Directorate,"Personal Expense, Name Withheld",465019,44.65,MF Devolved Admin-Subsistence Overseas,,EMPLOYEE
"Department for Business, Energy and Industrial Strategy","Department for Business, Energy and Industrial Strategy",03/10/2022,Rail Travel Overseas,Energy and Security - Nuclear Protection Directorate,"Personal Expense, Name Withheld",465019,51.35,MF Devolved Admin-Rail Travel Overseas,,EMPLOYEE
"Department for Business, Energy and Industrial Strategy","Department for Business, Energy and Industrial Strategy",03/10/2022,Subsistence Overseas,Energy and Security - Nuclear Protection Directorate,"Personal Expense, Name Withheld",465019,53.58,MF Devolved Admin-Subsistence Overseas,,EMPLOYEE
"Department for Business, Energy and Industrial Strategy","Department for Business, Energy and Industrial Strategy",03/10/2022,Hotel & Accommodation Overseas,Energy and Security - Nuclear Protection Directorate,"Personal Expense, Name Withheld",465019,363.94,MF Devolved Admin-Hotel & Accommodation Overseas,,EMPLOYEE
"Department for Business, Energy and Industrial Strategy","Department for Business, Energy and Industrial Strategy",03/10/2022,Mileage Allowance UK,Business Sectors - Business Investment Directorate,"Personal Expense, Name Withheld",465020,13.50,MF Devolved Admin-Mileage Allowance UK,,EMPLOYEE
"Department for Business, Energy and Industrial Strategy","Department for Business, Energy and Industrial Strategy",03/10/2022,Mileage Allowance UK,Business Sectors - Business Investment Directorate,"Personal Expense, Name Withheld",465020,13.50,MF Devolved Admin-Mileage Allowance UK,,EMPLOYEE
"Department for Business, Energy and Industrial Strategy","Department for Business, Energy and Industrial Strategy",03/10/2022,Other Relocation Costs,Corporate Services - Human Resources,"Personal Expense, Name Withheld",465021,66.19,MF Devolved Admin-Other Relocation Costs,,EMPLOYEE
"Department for Business, Energy and Industrial Strategy","Department for Business, Energy and Industrial Strategy",03/10/2022,Motor Vehicle Hire,Business Sectors - Business Investment Directorate,"Personal Expense, Name Withheld",465022,45.03,MF Devolved Admin-Motor Vehicle Hire,,EMPLOYEE
"Department for Business, Energy and Industrial Strategy","Department for Business, Energy and Industrial Strategy",03/10/2022,Other Travel,Business Sectors - Business Investment Directorate,"Personal Expense, Name Withheld",465024,1.65,MF Devolved Admin-Other Travel,,EMPLOYEE
"Department for Business, Energy and Industrial Strategy","Department for Business, Energy and Industrial Strategy",03/10/2022,Rail Travel UK,Business Sectors - Business Investment Directorate,"Personal Expense, Name Withheld",465024,2.05,MF Devolved Admin-Rail Travel UK,,EMPLOYEE
"Department for Business, Energy and Industrial Strategy","Department for Business, Energy and Industrial Strategy",03/10/2022,Rail Travel UK,Business Sectors - Business Investment Directorate,"Personal Expense, Name Withheld",465024,2.05,MF Devolved Admin-Rail Travel UK,,EMPLOYEE
"Department for Business, Energy and Industrial Strategy","Department for Business, Energy and Industrial Strategy",03/10/2022,Subsistence UK,Business Sectors - Business Investment Directorate,"Personal Expense, Name Withheld",465024,3.90,MF Devolved Admin-Subsistence UK,,EMPLOYEE
"Department for Business, Energy and Industrial Strategy","Department for Business, Energy and Industrial Strategy",03/10/2022,Subsistence UK,Business Sectors - Business Investment Directorate,"Personal Expense, Name Withheld",465024,5.00,MF Devolved Admin-Subsistence UK,,EMPLOYEE
"Department for Business, Energy and Industrial Strategy","Department for Business, Energy and Industrial Strategy",03/10/2022,Taxi Services UK,Business Sectors - Business Investment Directorate,"Personal Expense, Name Withheld",465024,30.00,MF Devolved Admin-Taxi Services UK,,EMPLOYEE
"Department for Business, Energy and Industrial Strategy","Department for Business, Energy and Industrial Strategy",03/10/2022,Taxi Services UK,Business Sectors - Business Investment Directorate,"Personal Expense, Name Withheld",465024,38.00,MF Devolved Admin-Taxi Services UK,,EMPLOYEE
"Department for Business, Energy and Industrial Strategy","Department for Business, Energy and Industrial Strategy",03/10/2022,Rail Travel UK,Business Sectors - Business Investment Directorate,"Personal Expense, Name Withheld",465024,81.30,MF Devolved Admin-Rail Travel UK,,EMPLOYEE
"Department for Business, Energy and Industrial Strategy","Department for Business, Energy and Industrial Strategy",03/10/2022,Subsistence UK,Market Frameworks - Office for Product Safety and Standards,"Personal Expense, Name Withheld",465025,5.00,OPSS: Central/Core-Subsistence UK,,EMPLOYEE
"Department for Business, Energy and Industrial Strategy","Department for Business, Energy and Industrial Strategy",03/10/2022,Rail Travel UK,Market Frameworks - Office for Product Safety and Standards,"Personal Expense, Name Withheld",465025,14.10,OPSS: Central/Core-Rail Travel UK,,EMPLOYEE
"Department for Business, Energy and Industrial Strategy","Department for Business, Energy and Industrial Strategy",03/10/2022,Rail Travel,Energy and Security - Nuclear Projects and Development Directorate,"Personal Expense, Name Withheld",465027,13.00,MF Devolved Admin-Rail Travel,,EMPLOYEE
"Department for Business, Energy and Industrial Strategy","Department for Business, Energy and Industrial Strategy",03/10/2022,Subsistence UK,Energy Transformation and Clean Growth - Net Zero Buildings - Domestic,"Personal Expense, Name Withheld",465028,1.55,Net Zero Costs - Admin-Subsistence UK,,EMPLOYEE
"Department for Business, Energy and Industrial Strategy","Department for Business, Energy and Industrial Strategy",03/10/2022,Subsistence UK,Energy Transformation and Clean Growth - Net Zero Buildings - Domestic,"Personal Expense, Name Withheld",465028,5.05,Net Zero Costs - Admin-Subsistence UK,,EMPLOYEE
"Department for Business, Energy and Industrial Strategy","Department for Business, Energy and Industrial Strategy",03/10/2022,Subsistence UK,Energy Transformation and Clean Growth - Net Zero Buildings - Domestic,"Personal Expense, Name Withheld",465028,5.30,Net Zero Costs - Admin-Subsistence UK,,EMPLOYEE
"Department for Business, Energy and Industrial Strategy","Department for Business, Energy and Industrial Strategy",03/10/2022,Subsistence UK,Energy Transformation and Clean Growth - Net Zero Buildings - Domestic,"Personal Expense, Name Withheld",465028,5.75,Net Zero Costs - Admin-Subsistence UK,,EMPLOYEE
"Department for Business, Energy and Industrial Strategy","Department for Business, Energy and Industrial Strategy",03/10/2022,Subsistence UK,Energy and Security - Offshore Petroleum Regulator for Environment and Decommissioning,"Personal Expense, Name Withheld",465029,5.00,Offshore Environmental Regulation-Subsistence UK,,EMPLOYEE
"Department for Business, Energy and Industrial Strategy","Department for Business, Energy and Industrial Strategy",03/10/2022,Taxi Services UK,Energy and Security - Offshore Petroleum Regulator for Environment and Decommissioning,"Personal Expense, Name Withheld",465029,9.00,Offshore Environmental Regulation-Taxi Services UK,,EMPLOYEE
"Department for Business, Energy and Industrial Strategy","Department for Business, Energy and Industrial Strategy",03/10/2022,Mileage Allowance UK,Energy and Security - Offshore Petroleum Regulator for Environment and Decommissioning,"Personal Expense, Name Withheld",465029,9.45,Offshore Environmental Regulation-Mileage Allowance UK,,EMPLOYEE
"Department for Business, Energy and Industrial Strategy","Department for Business, Energy and Industrial Strategy",03/10/2022,Air Travel UK,Energy and Security - Offshore Petroleum Regulator for Environment and Decommissioning,"Personal Expense, Name Withheld",465029,10.00,Offshore Environmental Regulation-Air Travel UK,,EMPLOYEE
"Department for Business, Energy and Industrial Strategy","Department for Business, Energy and Industrial Strategy",03/10/2022,Taxi Services UK,Energy and Security - Offshore Petroleum Regulator for Environment and Decommissioning,"Personal Expense, Name Withheld",465029,10.60,Offshore Environmental Regulation-Taxi Services UK,,EMPLOYEE
"Department for Business, Energy and Industrial Strategy","Department for Business, Energy and Industrial Strategy",03/10/2022,Subsistence UK,Energy and Security - Offshore Petroleum Regulator for Environment and Decommissioning,"Personal Expense, Name Withheld",465029,15.00,Offshore Environmental Regulation-Subsistence UK,,EMPLOYEE
"Department for Business, Energy and Industrial Strategy","Department for Business, Energy and Industrial Strategy",03/10/2022,Mileage Allowance UK,Energy and Security - Offshore Petroleum Regulator for Environment and Decommissioning,"Personal Expense, Name Withheld",465029,18.18,Offshore Environmental Regulation-Mileage Allowance UK,,EMPLOYEE
"Department for Business, Energy and Industrial Strategy","Department for Business, Energy and Industrial Strategy",03/10/2022,Taxi Services UK,Energy and Security - Offshore Petroleum Regulator for Environment and Decommissioning,"Personal Expense, Name Withheld",465029,20.00,Offshore Environmental Regulation-Taxi Services UK,,EMPLOYEE
"Department for Business, Energy and Industrial Strategy","Department for Business, Energy and Industrial Strategy",03/10/2022,Other Travel,Energy and Security - Offshore Petroleum Regulator for Environment and Decommissioning,"Personal Expense, Name Withheld",465029,21.20,Offshore Environmental Regulation-Other Travel,,EMPLOYEE
"Department for Business, Energy and Industrial Strategy","Department for Business, Energy and Industrial Strategy",03/10/2022,Taxi Services UK,Energy and Security - Offshore Petroleum Regulator for Environment and Decommissioning,"Personal Expense, Name Withheld",465030,20.00,Offshore Environmental Regulation-Taxi Services UK,,EMPLOYEE
"Department for Business, Energy and Industrial Strategy","Department for Business, Energy and Industrial Strategy",03/10/2022,Taxi Services UK,Energy and Security - Offshore Petroleum Regulator for Environment and Decommissioning,"Personal Expense, Name Withheld",465030,20.00,Offshore Environmental Regulation-Taxi Services UK,,EMPLOYEE
"Department for Business, Energy and Industrial Strategy","Department for Business, Energy and Industrial Strategy",03/10/2022,Other Travel,Business Sectors - Business Investment Directorate,"Personal Expense, Name Withheld",465031,54.87,MF Devolved Admin-Other Travel,,EMPLOYEE
"Department for Business, Energy and Industrial Strategy","Department for Business, Energy and Industrial Strategy",03/10/2022,Mileage Allowance UK,Business Sectors - Business Investment Directorate,"Personal Expense, Name Withheld",465032,8.10,MF Devolved Admin-Mileage Allowance UK,,EMPLOYEE
"Department for Business, Energy and Industrial Strategy","Department for Business, Energy and Industrial Strategy",03/10/2022,Subsistence UK,Market Frameworks - Office for Product Safety and Standards,"Personal Expense, Name Withheld",465034,3.99,OPSS: Central/Core-Subsistence UK,,EMPLOYEE
"Department for Business, Energy and Industrial Strategy","Department for Business, Energy and Industrial Strategy",03/10/2022,Subsistence UK,Market Frameworks - Office for Product Safety and Standards,"Personal Expense, Name Withheld",465034,5.00,OPSS: Central/Core-Subsistence UK,,EMPLOYEE
"Department for Business, Energy and Industrial Strategy","Department for Business, Energy and Industrial Strategy",03/10/2022,Subsistence UK,Market Frameworks - Office for Product Safety and Standards,"Personal Expense, Name Withheld",465034,12.75,OPSS: Central/Core-Subsistence UK,,EMPLOYEE
"Department for Business, Energy and Industrial Strategy","Department for Business, Energy and Industrial Strategy",03/10/2022,Subsistence UK,Corporate Services - Human Resources,"Personal Expense, Name Withheld",465035,5.00,MF Devolved Admin-Subsistence UK,,EMPLOYEE
"Department for Business, Energy and Industrial Strategy","Department for Business, Energy and Industrial Strategy",03/10/2022,Taxi Services UK,Corporate Services - Human Resources,"Personal Expense, Name Withheld",465035,7.31,MF Devolved Admin-Taxi Services UK,,EMPLOYEE
"Department for Business, Energy and Industrial Strategy","Department for Business, Energy and Industrial Strategy",07/10/2022,Subsistence UK,Energy Transformation and Clean Growth - Net Zero Buildings - Domestic,"Personal Expense, Name Withheld",465036,5.00,Net Zero Costs - Admin-Subsistence UK,,EMPLOYEE
"Department for Business, Energy and Industrial Strategy","Department for Business, Energy and Industrial Strategy",07/10/2022,Subsistence UK,Energy Transformation and Clean Growth - Net Zero Buildings - Domestic,"Personal Expense, Name Withheld",465036,5.00,Net Zero Costs - Admin-Subsistence UK,,EMPLOYEE
"Department for Business, Energy and Industrial Strategy","Department for Business, Energy and Industrial Strategy",07/10/2022,Subsistence UK,Energy Transformation and Clean Growth - Net Zero Buildings - Domestic,"Personal Expense, Name Withheld",465036,5.90,Net Zero Costs - Admin-Subsistence UK,,EMPLOYEE
"Department for Business, Energy and Industrial Strategy","Department for Business, Energy and Industrial Strategy",07/10/2022,Subsistence UK,Energy Transformation and Clean Growth - Net Zero Buildings - Domestic,"Personal Expense, Name Withheld",465036,6.00,Net Zero Costs - Admin-Subsistence UK,,EMPLOYEE
"Department for Business, Energy and Industrial Strategy","Department for Business, Energy and Industrial Strategy",07/10/2022,Subsistence UK,Energy Transformation and Clean Growth - Net Zero Buildings - Domestic,"Personal Expense, Name Withheld",465036,7.50,Net Zero Costs - Admin-Subsistence UK,,EMPLOYEE
"Department for Business, Energy and Industrial Strategy","Department for Business, Energy and Industrial Strategy",07/10/2022,Subsistence UK,Energy Transformation and Clean Growth - Net Zero Buildings - Domestic,"Personal Expense, Name Withheld",465036,14.00,Net Zero Costs - Admin-Subsistence UK,,EMPLOYEE
"Department for Business, Energy and Industrial Strategy","Department for Business, Energy and Industrial Strategy",03/10/2022,Taxi Services UK,Energy and Security - Offshore Petroleum Regulator for Environment and Decommissioning,"Personal Expense, Name Withheld",465037,18.00,Offshore Environmental Regulation-Taxi Services UK,,EMPLOYEE
"Department for Business, Energy and Industrial Strategy","Department for Business, Energy and Industrial Strategy",03/10/2022,Taxi Services UK,Energy and Security - Offshore Petroleum Regulator for Environment and Decommissioning,"Personal Expense, Name Withheld",465037,18.00,Offshore Environmental Regulation-Taxi Services UK,,EMPLOYEE
"Department for Business, Energy and Industrial Strategy","Department for Business, Energy and Industrial Strategy",03/10/2022,Subsistence UK,Market Frameworks - Labour Market,"Personal Expense, Name Withheld",465038,3.99,EAS Enforcement-Subsistence UK,,EMPLOYEE
"Department for Business, Energy and Industrial Strategy","Department for Business, Energy and Industrial Strategy",03/10/2022,Subsistence UK,Market Frameworks - Labour Market,"Personal Expense, Name Withheld",465038,4.06,EAS Enforcement-Subsistence UK,,EMPLOYEE
"Department for Business, Energy and Industrial Strategy","Department for Business, Energy and Industrial Strategy",03/10/2022,Subsistence UK,Market Frameworks - Labour Market,"Personal Expense, Name Withheld",465038,4.81,EAS Enforcement-Subsistence UK,,EMPLOYEE
"Department for Business, Energy and Industrial Strategy","Department for Business, Energy and Industrial Strategy",03/10/2022,Subsistence UK,Market Frameworks - Labour Market,"Personal Expense, Name Withheld",465038,5.20,EAS Enforcement-Subsistence UK,,EMPLOYEE
"Department for Business, Energy and Industrial Strategy","Department for Business, Energy and Industrial Strategy",03/10/2022,Subsistence UK,Market Frameworks - Labour Market,"Personal Expense, Name Withheld",465038,7.20,EAS Enforcement-Subsistence UK,,EMPLOYEE
"Department for Business, Energy and Industrial Strategy","Department for Business, Energy and Industrial Strategy",03/10/2022,Other Travel,Market Frameworks - Labour Market,"Personal Expense, Name Withheld",465038,9.00,EAS Enforcement-Other Travel,,EMPLOYEE
"Department for Business, Energy and Industrial Strategy","Department for Business, Energy and Industrial Strategy",03/10/2022,Subsistence UK,Market Frameworks - Labour Market,"Personal Expense, Name Withheld",465038,15.00,EAS Enforcement-Subsistence UK,,EMPLOYEE
"Department for Business, Energy and Industrial Strategy","Department for Business, Energy and Industrial Strategy",03/10/2022,Subsistence UK,Market Frameworks - Labour Market,"Personal Expense, Name Withheld",465038,17.30,EAS Enforcement-Subsistence UK,,EMPLOYEE
"Department for Business, Energy and Industrial Strategy","Department for Business, Energy and Industrial Strategy",03/10/2022,Subsistence UK,Market Frameworks - Labour Market,"Personal Expense, Name Withheld",465039,5.00,EAS Enforcement-Subsistence UK,,EMPLOYEE
"Department for Business, Energy and Industrial Strategy","Department for Business, Energy and Industrial Strategy",03/10/2022,Subsistence UK,Market Frameworks - Labour Market,"Personal Expense, Name Withheld",465039,5.00,EAS Enforcement-Subsistence UK,,EMPLOYEE
"Department for Business, Energy and Industrial Strategy","Department for Business, Energy and Industrial Strategy",03/10/2022,Subsistence UK,Market Frameworks - Labour Market,"Personal Expense, Name Withheld",465039,5.35,EAS Enforcement-Subsistence UK,,EMPLOYEE
"Department for Business, Energy and Industrial Strategy","Department for Business, Energy and Industrial Strategy",03/10/2022,Mileage Allowance UK,Market Frameworks - Labour Market,"Personal Expense, Name Withheld",465039,5.85,EAS Enforcement-Mileage Allowance UK,,EMPLOYEE
"Department for Business, Energy and Industrial Strategy","Department for Business, Energy and Industrial Strategy",03/10/2022,Rail Travel UK,Market Frameworks - Labour Market,"Personal Expense, Name Withheld",465039,7.85,EAS Enforcement-Rail Travel UK,,EMPLOYEE
"Department for Business, Energy and Industrial Strategy","Department for Business, Energy and Industrial Strategy",03/10/2022,Rail Travel UK,Market Frameworks - Labour Market,"Personal Expense, Name Withheld",465039,13.70,EAS Enforcement-Rail Travel UK,,EMPLOYEE
"Department for Business, Energy and Industrial Strategy","Department for Business, Energy and Industrial Strategy",03/10/2022,Mileage Allowance UK,Market Frameworks - Labour Market,"Personal Expense, Name Withheld",465039,20.25,EAS Enforcement-Mileage Allowance UK,,EMPLOYEE
"Department for Business, Energy and Industrial Strategy","Department for Business, Energy and Industrial Strategy",03/10/2022,Subsistence UK,Market Frameworks - Labour Market,"Personal Expense, Name Withheld",465040,5.00,EAS Enforcement-Subsistence UK,,EMPLOYEE
"Department for Business, Energy and Industrial Strategy","Department for Business, Energy and Industrial Strategy",03/10/2022,Subsistence UK,Market Frameworks - Labour Market,"Personal Expense, Name Withheld",465040,7.00,EAS Enforcement-Subsistence UK,,EMPLOYEE
"Department for Business, Energy and Industrial Strategy","Department for Business, Energy and Industrial Strategy",03/10/2022,Subsistence UK,Market Frameworks - Labour Market,"Personal Expense, Name Withheld",465040,11.10,EAS Enforcement-Subsistence UK,,EMPLOYEE
"Department for Business, Energy and Industrial Strategy","Department for Business, Energy and Industrial Strategy",03/10/2022,Subsistence UK,Market Frameworks - Labour Market,"Personal Expense, Name Withheld",465040,15.00,EAS Enforcement-Subsistence UK,,EMPLOYEE
"Department for Business, Energy and Industrial Strategy","Department for Business, Energy and Industrial Strategy",03/10/2022,Other Travel,Market Frameworks - Labour Market,"Personal Expense, Name Withheld",465040,30.01,EAS Enforcement-Other Travel,,EMPLOYEE
"Department for Business, Energy and Industrial Strategy","Department for Business, Energy and Industrial Strategy",03/10/2022,Other Travel,Market Frameworks - Labour Market,"Personal Expense, Name Withheld",465040,42.00,EAS Enforcement-Other Travel,,EMPLOYEE
"Department for Business, Energy and Industrial Strategy","Department for Business, Energy and Industrial Strategy",03/10/2022,Other Travel,Market Frameworks - Labour Market,"Personal Expense, Name Withheld",465040,50.07,EAS Enforcement-Other Travel,,EMPLOYEE
"Department for Business, Energy and Industrial Strategy","Department for Business, Energy and Industrial Strategy",03/10/2022,Mileage Allowance UK,Energy Transformation and Clean Growth - Science and Innovation,"Personal Expense, Name Withheld",465042,2.88,Hadley Centre Recharges-Mileage Allowance UK,,EMPLOYEE
"Department for Business, Energy and Industrial Strategy","Department for Business, Energy and Industrial Strategy",03/10/2022,Subsistence UK,Energy Transformation and Clean Growth - Science and Innovation,"Personal Expense, Name Withheld",465042,5.00,Hadley Centre Recharges-Subsistence UK,,EMPLOYEE
"Department for Business, Energy and Industrial Strategy","Department for Business, Energy and Industrial Strategy",03/10/2022,Subsistence UK,Energy Transformation and Clean Growth - Science and Innovation,"Personal Expense, Name Withheld",465042,5.00,Hadley Centre Recharges-Subsistence UK,,EMPLOYEE
"Department for Business, Energy and Industrial Strategy","Department for Business, Energy and Industrial Strategy",03/10/2022,Other Travel,Energy Transformation and Clean Growth - Science and Innovation,"Personal Expense, Name Withheld",465042,8.00,Hadley Centre Recharges-Other Travel,,EMPLOYEE
"Department for Business, Energy and Industrial Strategy","Department for Business, Energy and Industrial Strategy",03/10/2022,Subsistence UK,Energy Transformation and Clean Growth - Science and Innovation,"Personal Expense, Name Withheld",465042,13.90,Hadley Centre Recharges-Subsistence UK,,EMPLOYEE
"Department for Business, Energy and Industrial Strategy","Department for Business, Energy and Industrial Strategy",03/10/2022,Subsistence UK,Energy Transformation and Clean Growth - Science and Innovation,"Personal Expense, Name Withheld",465042,15.00,Hadley Centre Recharges-Subsistence UK,,EMPLOYEE
"Department for Business, Energy and Industrial Strategy","Department for Business, Energy and Industrial Strategy",03/10/2022,Mileage Allowance UK,Energy Transformation and Clean Growth - Science and Innovation,"Personal Expense, Name Withheld",465042,85.05,Hadley Centre Recharges-Mileage Allowance UK,,EMPLOYEE
"Department for Business, Energy and Industrial Strategy","Department for Business, Energy and Industrial Strategy",03/10/2022,Mileage Allowance UK,Energy Transformation and Clean Growth - Science and Innovation,"Personal Expense, Name Withheld",465042,85.14,Hadley Centre Recharges-Mileage Allowance UK,,EMPLOYEE
"Department for Business, Energy and Industrial Strategy","Department for Business, Energy and Industrial Strategy",03/10/2022,Rail Travel UK,Market Frameworks - Office for Product Safety and Standards,"Personal Expense, Name Withheld",465043,2.80,OPSS: Central/Core-Rail Travel UK,,EMPLOYEE
"Department for Business, Energy and Industrial Strategy","Department for Business, Energy and Industrial Strategy",03/10/2022,Mileage Allowance UK,Market Frameworks - Office for Product Safety and Standards,"Personal Expense, Name Withheld",465043,3.60,OPSS: Central/Core-Mileage Allowance UK,,EMPLOYEE
"Department for Business, Energy and Industrial Strategy","Department for Business, Energy and Industrial Strategy",03/10/2022,Mileage Allowance UK,Market Frameworks - Office for Product Safety and Standards,"Personal Expense, Name Withheld",465043,3.60,OPSS: Central/Core-Mileage Allowance UK,,EMPLOYEE
"Department for Business, Energy and Industrial Strategy","Department for Business, Energy and Industrial Strategy",03/10/2022,Subsistence UK,Market Frameworks - Office for Product Safety and Standards,"Personal Expense, Name Withheld",465043,4.75,OPSS: Central/Core-Subsistence UK,,EMPLOYEE
"Department for Business, Energy and Industrial Strategy","Department for Business, Energy and Industrial Strategy",03/10/2022,Subsistence UK,Market Frameworks - Office for Product Safety and Standards,"Personal Expense, Name Withheld",465043,5.00,OPSS: Central/Core-Subsistence UK,,EMPLOYEE
"Department for Business, Energy and Industrial Strategy","Department for Business, Energy and Industrial Strategy",03/10/2022,Subsistence UK,Market Frameworks - Office for Product Safety and Standards,"Personal Expense, Name Withheld",465043,5.00,OPSS: Central/Core-Subsistence UK,,EMPLOYEE
"Department for Business, Energy and Industrial Strategy","Department for Business, Energy and Industrial Strategy",03/10/2022,Subsistence UK,Market Frameworks - Office for Product Safety and Standards,"Personal Expense, Name Withheld",465043,5.00,OPSS: Central/Core-Subsistence UK,,EMPLOYEE
"Department for Business, Energy and Industrial Strategy","Department for Business, Energy and Industrial Strategy",03/10/2022,Subsistence UK,Market Frameworks - Office for Product Safety and Standards,"Personal Expense, Name Withheld",465043,5.00,OPSS: Central/Core-Subsistence UK,,EMPLOYEE
"Department for Business, Energy and Industrial Strategy","Department for Business, Energy and Industrial Strategy",03/10/2022,Subsistence UK,Market Frameworks - Office for Product Safety and Standards,"Personal Expense, Name Withheld",465043,5.00,OPSS: Central/Core-Subsistence UK,,EMPLOYEE
"Department for Business, Energy and Industrial Strategy","Department for Business, Energy and Industrial Strategy",03/10/2022,Taxi Services UK,Market Frameworks - Office for Product Safety and Standards,"Personal Expense, Name Withheld",465043,10.00,OPSS: Central/Core-Taxi Services UK,,EMPLOYEE
"Department for Business, Energy and Industrial Strategy","Department for Business, Energy and Industrial Strategy",03/10/2022,Professional Subscriptions,Market Frameworks - Office for Product Safety and Standards,"Personal Expense, Name Withheld",465043,10.08,OPSS: Central/Core-Professional Subscriptions,,EMPLOYEE
"Department for Business, Energy and Industrial Strategy","Department for Business, Energy and Industrial Strategy",03/10/2022,Professional Subscriptions,Market Frameworks - Office for Product Safety and Standards,"Personal Expense, Name Withheld",465043,10.08,OPSS: Central/Core-Professional Subscriptions,,EMPLOYEE
"Department for Business, Energy and Industrial Strategy","Department for Business, Energy and Industrial Strategy",03/10/2022,Rail Travel UK,Market Frameworks - Office for Product Safety and Standards,"Personal Expense, Name Withheld",465043,11.80,OPSS: Central/Core-Rail Travel UK,,EMPLOYEE
"Department for Business, Energy and Industrial Strategy","Department for Business, Energy and Industrial Strategy",03/10/2022,Subsistence UK,Market Frameworks - Office for Product Safety and Standards,"Personal Expense, Name Withheld",465043,13.55,OPSS: Central/Core-Subsistence UK,,EMPLOYEE
"Department for Business, Energy and Industrial Strategy","Department for Business, Energy and Industrial Strategy",03/10/2022,Rail Travel UK,Market Frameworks - Office for Product Safety and Standards,"Personal Expense, Name Withheld",465043,14.30,OPSS: Central/Core-Rail Travel UK,,EMPLOYEE
"Department for Business, Energy and Industrial Strategy","Department for Business, Energy and Industrial Strategy",03/10/2022,Subsistence UK,Market Frameworks - Office for Product Safety and Standards,"Personal Expense, Name Withheld",465043,15.00,OPSS: Central/Core-Subsistence UK,,EMPLOYEE
"Department for Business, Energy and Industrial Strategy","Department for Business, Energy and Industrial Strategy",03/10/2022,Subsistence UK,Market Frameworks - Office for Product Safety and Standards,"Personal Expense, Name Withheld",465043,15.00,OPSS: Central/Core-Subsistence UK,,EMPLOYEE
"Department for Business, Energy and Industrial Strategy","Department for Business, Energy and Industrial Strategy",03/10/2022,Subsistence UK,Market Frameworks - Office for Product Safety and Standards,"Personal Expense, Name Withheld",465043,15.00,OPSS: Central/Core-Subsistence UK,,EMPLOYEE
"Department for Business, Energy and Industrial Strategy","Department for Business, Energy and Industrial Strategy",03/10/2022,Other Travel,Business Sectors - Cities and Local Growth,"Personal Expense, Name Withheld",465044,3.20,EU Exit Core BEIS Staff: No specific DExEU issue ADM-Other Travel,,EMPLOYEE
"Department for Business, Energy and Industrial Strategy","Department for Business, Energy and Industrial Strategy",03/10/2022,Mileage Allowance UK,Business Sectors - Cities and Local Growth,"Personal Expense, Name Withheld",465045,33.84,EU Exit Core BEIS Staff: No specific DExEU issue ADM-Mileage Allowance UK,,EMPLOYEE
"Department for Business, Energy and Industrial Strategy","Department for Business, Energy and Industrial Strategy",03/10/2022,Subsistence UK,Business Sectors - Advanced Manufacturing,"Personal Expense, Name Withheld",465046,2.61,MF Devolved Admin-Subsistence UK,,EMPLOYEE
"Department for Business, Energy and Industrial Strategy","Department for Business, Energy and Industrial Strategy",03/10/2022,Subsistence UK,Business Sectors - Advanced Manufacturing,"Personal Expense, Name Withheld",465046,11.15,MF Devolved Admin-Subsistence UK,,EMPLOYEE
"Department for Business, Energy and Industrial Strategy","Department for Business, Energy and Industrial Strategy",03/10/2022,Taxi Services UK,Business Sectors - Advanced Manufacturing,"Personal Expense, Name Withheld",465046,44.50,MF Devolved Admin-Taxi Services UK,,EMPLOYEE
"Department for Business, Energy and Industrial Strategy","Department for Business, Energy and Industrial Strategy",03/10/2022,Mileage Allowance UK,Business Sectors - Business Investment Directorate,"Personal Expense, Name Withheld",465050,37.35,MF Devolved Admin-Mileage Allowance UK,,EMPLOYEE
"Department for Business, Energy and Industrial Strategy","Department for Business, Energy and Industrial Strategy",03/10/2022,Mileage Allowance UK,Business Sectors - Business Investment Directorate,"Personal Expense, Name Withheld",465050,37.35,MF Devolved Admin-Mileage Allowance UK,,EMPLOYEE
"Department for Business, Energy and Industrial Strategy","Department for Business, Energy and Industrial Strategy",03/10/2022,Taxi Services Overseas,Energy Transformation and Clean Growth - INZ: Climate Finance & Strategy,"Personal Expense, Name Withheld",465051,26.27,MF Devolved Admin-Taxi Services Overseas,,EMPLOYEE
"Department for Business, Energy and Industrial Strategy","Department for Business, Energy and Industrial Strategy",03/10/2022,Taxi Services Overseas,Energy Transformation and Clean Growth - INZ: Climate Finance & Strategy,"Personal Expense, Name Withheld",465051,38.60,MF Devolved Admin-Taxi Services Overseas,,EMPLOYEE
"Department for Business, Energy and Industrial Strategy","Department for Business, Energy and Industrial Strategy",03/10/2022,Taxi Services Overseas,Energy Transformation and Clean Growth - INZ: Climate Finance & Strategy,"Personal Expense, Name Withheld",465051,48.64,MF Devolved Admin-Taxi Services Overseas,,EMPLOYEE
"Department for Business, Energy and Industrial Strategy","Department for Business, Energy and Industrial Strategy",03/10/2022,Taxi Services Overseas,Energy Transformation and Clean Growth - INZ: Climate Finance & Strategy,"Personal Expense, Name Withheld",465051,61.52,MF Devolved Admin-Taxi Services Overseas,,EMPLOYEE
"Department for Business, Energy and Industrial Strategy","Department for Business, Energy and Industrial Strategy",03/10/2022,Taxi Services Overseas,Energy Transformation and Clean Growth - INZ: Climate Finance & Strategy,"Personal Expense, Name Withheld",465051,91.21,MF Devolved Admin-Taxi Services Overseas,,EMPLOYEE
"Department for Business, Energy and Industrial Strategy","Department for Business, Energy and Industrial Strategy",03/10/2022,Hotel & Accommodation Overseas,Energy Transformation and Clean Growth - INZ: Climate Finance & Strategy,"Personal Expense, Name Withheld",465051,373.19,MF Devolved Admin-Hotel & Accommodation Overseas,,EMPLOYEE
"Department for Business, Energy and Industrial Strategy","Department for Business, Energy and Industrial Strategy",03/10/2022,Subsistence Overseas,Energy Transformation and Clean Growth - Net Zero Buildings - Domestic,"Personal Expense, Name Withheld",465058,7.62,Net Zero Costs - Admin-Subsistence Overseas,,EMPLOYEE
"Department for Business, Energy and Industrial Strategy","Department for Business, Energy and Industrial Strategy",03/10/2022,Subsistence Overseas,Energy Transformation and Clean Growth - Net Zero Buildings - Domestic,"Personal Expense, Name Withheld",465058,7.62,Net Zero Costs - Admin-Subsistence Overseas,,EMPLOYEE
"Department for Business, Energy and Industrial Strategy","Department for Business, Energy and Industrial Strategy",03/10/2022,Subsistence Overseas,Energy Transformation and Clean Growth - Net Zero Buildings - Domestic,"Personal Expense, Name Withheld",465058,14.34,Net Zero Costs - Admin-Subsistence Overseas,,EMPLOYEE
"Department for Business, Energy and Industrial Strategy","Department for Business, Energy and Industrial Strategy",03/10/2022,Subsistence Overseas,Energy Transformation and Clean Growth - Net Zero Buildings - Domestic,"Personal Expense, Name Withheld",465058,14.78,Net Zero Costs - Admin-Subsistence Overseas,,EMPLOYEE
"Department for Business, Energy and Industrial Strategy","Department for Business, Energy and Industrial Strategy",03/10/2022,Subsistence Overseas,Energy Transformation and Clean Growth - Net Zero Buildings - Domestic,"Personal Expense, Name Withheld",465058,15.23,Net Zero Costs - Admin-Subsistence Overseas,,EMPLOYEE
"Department for Business, Energy and Industrial Strategy","Department for Business, Energy and Industrial Strategy",03/10/2022,Taxi Services Overseas,Energy Transformation and Clean Growth - Net Zero Buildings - Domestic,"Personal Expense, Name Withheld",465058,16.03,Net Zero Costs - Admin-Taxi Services Overseas,,EMPLOYEE
"Department for Business, Energy and Industrial Strategy","Department for Business, Energy and Industrial Strategy",03/10/2022,Taxi Services Overseas,Energy Transformation and Clean Growth - Net Zero Buildings - Domestic,"Personal Expense, Name Withheld",465058,25.98,Net Zero Costs - Admin-Taxi Services Overseas,,EMPLOYEE
"Department for Business, Energy and Industrial Strategy","Department for Business, Energy and Industrial Strategy",03/10/2022,Taxi Services Overseas,Energy Transformation and Clean Growth - Net Zero Buildings - Domestic,"Personal Expense, Name Withheld",465058,25.98,Net Zero Costs - Admin-Taxi Services Overseas,,EMPLOYEE
"Department for Business, Energy and Industrial Strategy","Department for Business, Energy and Industrial Strategy",03/10/2022,Subsistence UK,"Science, Innovation and Growth - Business Growth","Personal Expense, Name Withheld",465059,7.45,MF Devolved Admin-Subsistence UK,,EMPLOYEE
"Department for Business, Energy and Industrial Strategy","Department for Business, Energy and Industrial Strategy",03/10/2022,Subsistence UK,"Science, Innovation and Growth - Business Growth","Personal Expense, Name Withheld",465059,8.70,MF Devolved Admin-Subsistence UK,,EMPLOYEE
"Department for Business, Energy and Industrial Strategy","Department for Business, Energy and Industrial Strategy",03/10/2022,Subsistence UK,"Science, Innovation and Growth - Business Growth","Personal Expense, Name Withheld",465059,23.32,MF Devolved Admin-Subsistence UK,,EMPLOYEE
"Department for Business, Energy and Industrial Strategy","Department for Business, Energy and Industrial Strategy",03/10/2022,Rail Travel UK,"Science, Innovation and Growth - Business Growth","Personal Expense, Name Withheld",465059,42.84,MF Devolved Admin-Rail Travel UK,,EMPLOYEE
"Department for Business, Energy and Industrial Strategy","Department for Business, Energy and Industrial Strategy",03/10/2022,Rail Travel UK,"Science, Innovation and Growth - Business Growth","Personal Expense, Name Withheld",465059,111.29,MF Devolved Admin-Rail Travel UK,,EMPLOYEE
"Department for Business, Energy and Industrial Strategy","Department for Business, Energy and Industrial Strategy",03/10/2022,Other Relocation Costs,Corporate Services - Human Resources,"Personal Expense, Name Withheld",465061,118.82,MF Devolved Admin-Other Relocation Costs,,EMPLOYEE
"Department for Business, Energy and Industrial Strategy","Department for Business, Energy and Industrial Strategy",03/10/2022,Other Relocation Costs,Corporate Services - Human Resources,"Personal Expense, Name Withheld",465062,1860.40,MF Devolved Admin-Other Relocation Costs,,EMPLOYEE
"Department for Business, Energy and Industrial Strategy","Department for Business, Energy and Industrial Strategy",03/10/2022,Subsistence UK,Market Frameworks - Office for Product Safety and Standards,"Personal Expense, Name Withheld",465063,13.29,OPSS: Central/Core-Subsistence UK,,EMPLOYEE
"Department for Business, Energy and Industrial Strategy","Department for Business, Energy and Industrial Strategy",03/10/2022,Mileage Allowance UK,Market Frameworks - Office for Product Safety and Standards,"Personal Expense, Name Withheld",465063,198.00,OPSS: Central/Core-Mileage Allowance UK,,EMPLOYEE
"Department for Business, Energy and Industrial Strategy","Department for Business, Energy and Industrial Strategy",03/10/2022,Subsistence UK,"Science, Innovation and Growth - International Research and Innovation Directorate","Personal Expense, Name Withheld",465064,3.55,Research Collaboration Advice Team-Subsistence UK,,EMPLOYEE
"Department for Business, Energy and Industrial Strategy","Department for Business, Energy and Industrial Strategy",03/10/2022,Subsistence UK,"Science, Innovation and Growth - International Research and Innovation Directorate","Personal Expense, Name Withheld",465064,13.99,Research Collaboration Advice Team-Subsistence UK,,EMPLOYEE
"Department for Business, Energy and Industrial Strategy","Department for Business, Energy and Industrial Strategy",03/10/2022,Rail Travel UK,"Science, Innovation and Growth - International Research and Innovation Directorate","Personal Expense, Name Withheld",465064,18.30,Research Collaboration Advice Team-Rail Travel UK,,EMPLOYEE
"Department for Business, Energy and Industrial Strategy","Department for Business, Energy and Industrial Strategy",03/10/2022,Rail Travel UK,"Science, Innovation and Growth - International Research and Innovation Directorate","Personal Expense, Name Withheld",465065,47.90,Research Collaboration Advice Team-Rail Travel UK,,EMPLOYEE
"Department for Business, Energy and Industrial Strategy","Department for Business, Energy and Industrial Strategy",03/10/2022,Rail Travel UK,"Science, Innovation and Growth - International Research and Innovation Directorate","Personal Expense, Name Withheld",465066,3.65,Research Collaboration Advice Team-Rail Travel UK,,EMPLOYEE
"Department for Business, Energy and Industrial Strategy","Department for Business, Energy and Industrial Strategy",03/10/2022,Subsistence UK,"Science, Innovation and Growth - International Research and Innovation Directorate","Personal Expense, Name Withheld",465066,4.99,Research Collaboration Advice Team-Subsistence UK,,EMPLOYEE
"Department for Business, Energy and Industrial Strategy","Department for Business, Energy and Industrial Strategy",03/10/2022,Subsistence UK,"Science, Innovation and Growth - International Research and Innovation Directorate","Personal Expense, Name Withheld",465067,9.00,Research Collaboration Advice Team-Subsistence UK,,EMPLOYEE
"Department for Business, Energy and Industrial Strategy","Department for Business, Energy and Industrial Strategy",03/10/2022,Other Relocation Costs,Corporate Services - Human Resources,"Personal Expense, Name Withheld",465068,695.00,MF Devolved Admin-Other Relocation Costs,,EMPLOYEE
"Department for Business, Energy and Industrial Strategy","Department for Business, Energy and Industrial Strategy",03/10/2022,Other Relocation Costs,Corporate Services - Human Resources,"Personal Expense, Name Withheld",465068,2870.00,MF Devolved Admin-Other Relocation Costs,,EMPLOYEE
"Department for Business, Energy and Industrial Strategy","Department for Business, Energy and Industrial Strategy",03/10/2022,Other Travel,Business Sectors - Business Investment Directorate,"Personal Expense, Name Withheld",465069,3.00,BLG Devolved Admin-Other Travel,,EMPLOYEE
"Department for Business, Energy and Industrial Strategy","Department for Business, Energy and Industrial Strategy",03/10/2022,Subsistence UK,Business Sectors - Business Investment Directorate,"Personal Expense, Name Withheld",465069,4.00,BLG Devolved Admin-Subsistence UK,,EMPLOYEE
"Department for Business, Energy and Industrial Strategy","Department for Business, Energy and Industrial Strategy",03/10/2022,Subsistence UK,Business Sectors - Business Investment Directorate,"Personal Expense, Name Withheld",465069,5.00,BLG Devolved Admin-Subsistence UK,,EMPLOYEE
"Department for Business, Energy and Industrial Strategy","Department for Business, Energy and Industrial Strategy",03/10/2022,Subsistence UK,Business Sectors - Business Investment Directorate,"Personal Expense, Name Withheld",465069,5.00,BLG Devolved Admin-Subsistence UK,,EMPLOYEE
"Department for Business, Energy and Industrial Strategy","Department for Business, Energy and Industrial Strategy",03/10/2022,Taxi Services UK,Business Sectors - Business Investment Directorate,"Personal Expense, Name Withheld",465069,9.40,BLG Devolved Admin-Taxi Services UK,,EMPLOYEE
"Department for Business, Energy and Industrial Strategy","Department for Business, Energy and Industrial Strategy",03/10/2022,Subsistence UK,Business Sectors - Business Investment Directorate,"Personal Expense, Name Withheld",465069,14.50,BLG Devolved Admin-Subsistence UK,,EMPLOYEE
"Department for Business, Energy and Industrial Strategy","Department for Business, Energy and Industrial Strategy",03/10/2022,Subsistence UK,Business Sectors - Business Investment Directorate,"Personal Expense, Name Withheld",465069,15.00,BLG Devolved Admin-Subsistence UK,,EMPLOYEE
"Department for Business, Energy and Industrial Strategy","Department for Business, Energy and Industrial Strategy",03/10/2022,Taxi Services UK,Business Sectors - Business Investment Directorate,"Personal Expense, Name Withheld",465069,17.50,BLG Devolved Admin-Taxi Services UK,,EMPLOYEE
"Department for Business, Energy and Industrial Strategy","Department for Business, Energy and Industrial Strategy",03/10/2022,Taxi Services UK,Business Sectors - Business Investment Directorate,"Personal Expense, Name Withheld",465069,23.75,BLG Devolved Admin-Taxi Services UK,,EMPLOYEE
"Department for Business, Energy and Industrial Strategy","Department for Business, Energy and Industrial Strategy",03/10/2022,Motor Vehicle Hire,Business Sectors - Business Investment Directorate,"Personal Expense, Name Withheld",465069,50.01,BLG Devolved Admin-Motor Vehicle Hire,,EMPLOYEE
"Department for Business, Energy and Industrial Strategy","Department for Business, Energy and Industrial Strategy",03/10/2022,Mileage Allowance UK,Market Frameworks - Office for Product Safety and Standards,"Personal Expense, Name Withheld",465070,144.00,OPSS: Central/Core-Mileage Allowance UK,,EMPLOYEE
"Department for Business, Energy and Industrial Strategy","Department for Business, Energy and Industrial Strategy",03/10/2022,Subsistence UK,Market Frameworks - Office for Product Safety and Standards,"Personal Expense, Name Withheld",465071,5.00,OPSS: Central/Core-Subsistence UK,,EMPLOYEE
"Department for Business, Energy and Industrial Strategy","Department for Business, Energy and Industrial Strategy",03/10/2022,Subsistence UK,Market Frameworks - Office for Product Safety and Standards,"Personal Expense, Name Withheld",465071,15.00,OPSS: Central/Core-Subsistence UK,,EMPLOYEE
"Department for Business, Energy and Industrial Strategy","Department for Business, Energy and Industrial Strategy",03/10/2022,Subsistence UK,Market Frameworks - Office for Product Safety and Standards,"Personal Expense, Name Withheld",465072,5.00,OPSS: Central/Core-Subsistence UK,,EMPLOYEE
"Department for Business, Energy and Industrial Strategy","Department for Business, Energy and Industrial Strategy",03/10/2022,Subsistence UK,Energy and Security - Nuclear Protection Directorate,"Personal Expense, Name Withheld",465150,5.00,MF Devolved Admin-Subsistence UK,,EMPLOYEE
"Department for Business, Energy and Industrial Strategy","Department for Business, Energy and Industrial Strategy",03/10/2022,Subsistence UK,Energy and Security - Nuclear Protection Directorate,"Personal Expense, Name Withheld",465150,5.00,MF Devolved Admin-Subsistence UK,,EMPLOYEE
"Department for Business, Energy and Industrial Strategy","Department for Business, Energy and Industrial Strategy",03/10/2022,Other Travel,Energy and Security - Nuclear Protection Directorate,"Personal Expense, Name Withheld",465150,5.00,MF Devolved Admin-Other Travel,,EMPLOYEE
"Department for Business, Energy and Industrial Strategy","Department for Business, Energy and Industrial Strategy",03/10/2022,Subsistence UK,Energy and Security - Nuclear Protection Directorate,"Personal Expense, Name Withheld",465150,12.68,MF Devolved Admin-Subsistence UK,,EMPLOYEE
"Department for Business, Energy and Industrial Strategy","Department for Business, Energy and Industrial Strategy",03/10/2022,Motor Vehicle Hire,Energy and Security - Nuclear Protection Directorate,"Personal Expense, Name Withheld",465150,22.74,MF Devolved Admin-Motor Vehicle Hire,,EMPLOYEE
"Department for Business, Energy and Industrial Strategy","Department for Business, Energy and Industrial Strategy",03/10/2022,Technical Advice / Services & Support,Energy Transformation and Clean Growth - Smart Metering Implementation Programme,PA Consulting Services Ltd,465159,45208.80,Roll-out of Smart Meters-Technical Advice / Services & Support,SG8 6DP,VENDOR
"Department for Business, Energy and Industrial Strategy","Department for Business, Energy and Industrial Strategy",03/10/2022,External Legal Advice and Service,"Trade, International, the Union & Analysis - Trade and Investment Negotiations Goods",Personal Data Withheld,465160,1940.00,MF Devolved Admin-External Legal Advice and Service,WC2A ,VENDOR
"Department for Business, Energy and Industrial Strategy","Department for Business, Energy and Industrial Strategy",11/10/2022,Training & Skills - Consultancy,Corporate Services - Human Resources,BIRKBECK COLLEGE,465163,4400.00,MF Devolved Admin-Training & Skills - Consultancy,WC1E 7HX,VENDOR
"Department for Business, Energy and Industrial Strategy","Department for Business, Energy and Industrial Strategy",11/10/2022,Training & Skills - Consultancy,Corporate Services - Human Resources,BIRKBECK COLLEGE,465163,40.00,MF Devolved Admin-Training & Skills - Consultancy,WC1E 7HX,VENDOR
"Department for Business, Energy and Industrial Strategy","Department for Business, Energy and Industrial Strategy",05/10/2022,Misc. Non Procurement Spend,Corporate Services - Human Resources,Ernst and Young LLP,465166,560.00,MF Non Devolved Admin-Misc. Non Procurement Spend,SE1 7EU,VENDOR
"Department for Business, Energy and Industrial Strategy","Department for Business, Energy and Industrial Strategy",03/10/2022,Other Technical Professional Services,Net Zero Buildings and Industry (NZBI) - Net Zero Buildings and Industry DG Office,BARINGA PARTNERS LLP,465167,48099.36,Roll-out of Smart Meters-Other Technical Professional Services,SW1E 6AJ,VENDOR
"Department for Business, Energy and Industrial Strategy","Department for Business, Energy and Industrial Strategy",03/10/2022,Other Technical Professional Services,Energy Transformation and Clean Growth - Smart Metering Implementation Programme,BARINGA PARTNERS LLP,465167,99043.44,Roll-out of Smart Meters-Other Technical Professional Services,SW1E 6AJ,VENDOR
"Department for Business, Energy and Industrial Strategy","Department for Business, Energy and Industrial Strategy",03/10/2022,Other Technical Professional Services,Energy Transformation and Clean Growth - Smart Metering Implementation Programme,BARINGA PARTNERS LLP,465170,17704.20,Roll-out of Smart Meters-Other Technical Professional Services,SW1E 6AJ,VENDOR
"Department for Business, Energy and Industrial Strategy","Department for Business, Energy and Industrial Strategy",03/10/2022,Other Technical Professional Services,Energy Transformation and Clean Growth - Smart Metering Implementation Programme,BARINGA PARTNERS LLP,465171,18451.80,Roll-out of Smart Meters-Other Technical Professional Services,SW1E 6AJ,VENDOR
"Department for Business, Energy and Industrial Strategy","Department for Business, Energy and Industrial Strategy",03/10/2022,Other Technical Professional Services,Energy Transformation and Clean Growth - Smart Metering Implementation Programme,BARINGA PARTNERS LLP,465173,33719.40,Roll-out of Smart Meters-Other Technical Professional Services,SW1E 6AJ,VENDOR
"Department for Business, Energy and Industrial Strategy","Department for Business, Energy and Industrial Strategy",05/10/2022,Contractor Expenditure,Vaccines Taskforce - Vaccines Taskforce,Alexander Mann Solutions Ltd,465177,3980.88,VTF Admin - COVID-19-Contractor Expenditure,EC2N 3AQ,VENDOR
"Department for Business, Energy and Industrial Strategy","Department for Business, Energy and Industrial Strategy",03/10/2022,Other Technical Professional Services,Energy Transformation and Clean Growth - Smart Metering Implementation Programme,BARINGA PARTNERS LLP,465183,27950.40,Roll-out of Smart Meters-Other Technical Professional Services,SW1E 6AJ,VENDOR
"Department for Business, Energy and Industrial Strategy","Department for Business, Energy and Industrial Strategy",03/10/2022,Other Technical Professional Services,Energy Transformation and Clean Growth - Smart Metering Implementation Programme,BARINGA PARTNERS LLP,465184,931.80,Roll-out of Smart Meters-Other Technical Professional Services,SW1E 6AJ,VENDOR
"Department for Business, Energy and Industrial Strategy","Department for Business, Energy and Industrial Strategy",03/10/2022,Other Technical Professional Services,Energy Transformation and Clean Growth - Smart Metering Implementation Programme,BARINGA PARTNERS LLP,465184,6522.60,Roll-out of Smart Meters-Other Technical Professional Services,SW1E 6AJ,VENDOR
"Department for Business, Energy and Industrial Strategy","Department for Business, Energy and Industrial Strategy",07/10/2022,IT Services,"Corporate Services - Digital, Data & Technology",Aiimi Ltd,465185,55192.50,MF Devolved Admin-IT Services,MK9 1FH,VENDOR
"Department for Business, Energy and Industrial Strategy","Department for Business, Energy and Industrial Strategy",04/10/2022,Current Grants To Private Sector - NPISH,"Science, Innovation and Growth - Business Growth",The Chartered Association of Business Schools,465187,1121673.19,Help to Grow: Management-Current Grants To Private Sector - NPISH,EC4R 1DD,GRANT
"Department for Business, Energy and Industrial Strategy","Department for Business, Energy and Industrial Strategy",03/10/2022,Finance & Accounting Advice,Business Sectors - Services,Freeths LLP,465188,209.20,MF Devolved Admin-Finance & Accounting Advice,LS1 4LT,VENDOR
"Department for Business, Energy and Industrial Strategy","Department for Business, Energy and Industrial Strategy",04/10/2022,Clearing Account - Cost - Leasehold Improvements,Corporate Services - Commercial & Operations,Government Property Agency,465189,19805.30,Estates Infrastructure and Maintenance-Clearing Account - Cost - Leasehold Improvements,B2 2QQ,VENDOR
"Department for Business, Energy and Industrial Strategy","Department for Business, Energy and Industrial Strategy",11/10/2022,Computer Consumables,"Corporate Services - Digital, Data & Technology",Bechtle Direct Ltd,465190,965.79,MF Devolved Admin-Computer Consumables,SN14 0GF,VENDOR
"Department for Business, Energy and Industrial Strategy","Department for Business, Energy and Industrial Strategy",11/10/2022,Computer Consumables,"Corporate Services - Digital, Data & Technology",Bechtle Direct Ltd,465190,1173.81,MF Devolved Admin-Computer Consumables,SN14 0GF,VENDOR
"Department for Business, Energy and Industrial Strategy","Department for Business, Energy and Industrial Strategy",11/10/2022,Computer Consumables,"Corporate Services - Digital, Data & Technology",Bechtle Direct Ltd,465190,3379.44,MF Devolved Admin-Computer Consumables,SN14 0GF,VENDOR
"Department for Business, Energy and Industrial Strategy","Department for Business, Energy and Industrial Strategy",05/10/2022,Training And Development Expenditure,Corporate Services - Human Resources,Chartered Institute for Securities and Investment,465191,324.00,MF Non Devolved Admin-Training And Development Expenditure,EC3M 3BY,VENDOR
"Department for Business, Energy and Industrial Strategy","Department for Business, Energy and Industrial Strategy",06/10/2022,Contractor Expenditure,Vaccines Taskforce - Vaccines Taskforce,PA Consulting Services Ltd,465192,48960.00,VTF Admin - COVID-19-Contractor Expenditure,SW1E 5DN,VENDOR
"Department for Business, Energy and Industrial Strategy","Department for Business, Energy and Industrial Strategy",05/10/2022,External Legal Advice and Service,Business Sectors - Services,Howe and Co Solicitors,465193,5726.25,MF Devolved Admin-External Legal Advice and Service,TW8 9BA,VENDOR
"Department for Business, Energy and Industrial Strategy","Department for Business, Energy and Industrial Strategy",03/10/2022,Hire of Interim Managers,Corporate Services - Commercial & Operations,Investigo Ltd,465194,4116.00,MF Devolved Admin-Hire of Interim Managers,EC2M 2QS,VENDOR
"Department for Business, Energy and Industrial Strategy","Department for Business, Energy and Industrial Strategy",04/10/2022,Clearing Account - Cost - Leasehold Improvements,Corporate Services - Commercial & Operations,Government Property Agency,465195,374294.62,Estates Infrastructure and Maintenance-Clearing Account - Cost - Leasehold Improvements,B2 2QQ,VENDOR
"Department for Business, Energy and Industrial Strategy","Department for Business, Energy and Industrial Strategy",03/10/2022,Hire of Interim Managers,Corporate Services - Commercial & Operations,Investigo Ltd,465197,3292.80,MF Devolved Admin-Hire of Interim Managers,EC2M 2QS,VENDOR
"Department for Business, Energy and Industrial Strategy","Department for Business, Energy and Industrial Strategy",03/10/2022,Hire of Interim Managers,Corporate Services - Commercial & Operations,Investigo Ltd,465198,3292.80,MF Devolved Admin-Hire of Interim Managers,EC2M 2QS,VENDOR
"Department for Business, Energy and Industrial Strategy","Department for Business, Energy and Industrial Strategy",03/10/2022,Hire of Interim Managers,Corporate Services - Commercial & Operations,Investigo Ltd,465199,3292.80,MF Devolved Admin-Hire of Interim Managers,EC2M 2QS,VENDOR
"Department for Business, Energy and Industrial Strategy","Department for Business, Energy and Industrial Strategy",03/10/2022,Finance & Accounting Advice,Business Sectors - Services,Freeths LLP,465200,58037.00,MF Devolved Admin-Finance & Accounting Advice,LS1 4LT,VENDOR
"Department for Business, Energy and Industrial Strategy","Department for Business, Energy and Industrial Strategy",05/10/2022,R & D Economic Consultancy and Research,"Trade, International, the Union & Analysis - Analysis Directorate",Kantar Public UK Ltd,465205,110264.75,Construction: Statistics and Other Sponsorship Activities-R & D Economic Consultancy and Research,SE1 2QY,VENDOR
"Department for Business, Energy and Industrial Strategy","Department for Business, Energy and Industrial Strategy",05/10/2022,R & D Salaries - Seconded UK Staff,Energy Transformation and Clean Growth - Science and Innovation,London South Bank University,465206,3501.00,Net Zero Innovation - Built-R & D Salaries - Seconded UK Staff,SE1 0AA,VENDOR
"Department for Business, Energy and Industrial Strategy","Department for Business, Energy and Industrial Strategy",04/10/2022,R & D Research and Development Expenditure,Energy Transformation and Clean Growth - Science and Innovation,Catagen Ltd,465208,80199.42,Net Zero Innovation - Hydrogen-R & D Research and Development Expenditure,BT3 9DT,VENDOR
"Department for Business, Energy and Industrial Strategy","Department for Business, Energy and Industrial Strategy",04/10/2022,Stationery,Market Frameworks - Office of Manpower Economics,OFFICE DEPOT INTERNATIONAL (UK) LTD T/A VIKING DIRECT,465209,11.98,MF Devolved Admin-Stationery,LE41 9GS,VENDOR
"Department for Business, Energy and Industrial Strategy","Department for Business, Energy and Industrial Strategy",04/10/2022,Stationery,Market Frameworks - Office of Manpower Economics,OFFICE DEPOT INTERNATIONAL (UK) LTD T/A VIKING DIRECT,465209,126.78,MF Devolved Admin-Stationery,LE41 9GS,VENDOR
"Department for Business, Energy and Industrial Strategy","Department for Business, Energy and Industrial Strategy",03/10/2022,R & D Research and Development Expenditure,Energy Transformation and Clean Growth - Science and Innovation,Black Bull Biochar Ltd,465210,30137.46,Net Zero Innovation - Bioenergy and VC-R & D Research and Development Expenditure,SE15 5QS,VENDOR
"Department for Business, Energy and Industrial Strategy","Department for Business, Energy and Industrial Strategy",03/10/2022,Utilisation of Provisions - Purchase of Goods & Services - Other,Energy and Security - Energy Development and Resilience,MHL Solicitors,465211,1708.26,Vosper Gap DEL-Utilisation of Provisions - Purchase of Goods & Services - Other,OL16 1PQ,GRANT
"Department for Business, Energy and Industrial Strategy","Department for Business, Energy and Industrial Strategy",05/10/2022,Clearing Account   - Cost - Information Technology,"Trade, International, the Union & Analysis - National Security and International",Acubed IT Solutions Ltd,465212,185820.00,NSI - Case Management System-Clearing Account   - Cost - Information Technology,RG2 9FL,VENDOR
"Department for Business, Energy and Industrial Strategy","Department for Business, Energy and Industrial Strategy",14/10/2022,Administration of Grants and Awards,Energy Transformation and Clean Growth - Net Zero Buildings - Domestic,RICARDO-AEA LTD,465213,4803.04,Net Zero Costs - Admin-Administration of Grants and Awards,OX11 0QR,VENDOR
"Department for Business, Energy and Industrial Strategy","Department for Business, Energy and Industrial Strategy",07/10/2022,Administration of Grants and Awards,Energy Transformation and Clean Growth - Net Zero Buildings - Domestic,RICARDO-AEA LTD,465214,111871.48,Social Housing Decarbonisation Fund (SHDF)-Administration of Grants and Awards,OX11 0QR,VENDOR
"Department for Business, Energy and Industrial Strategy","Department for Business, Energy and Industrial Strategy",04/10/2022,Reprographic Services,Corporate Services - Commercial & Operations,Allied Publicity Services (Manchester) Ltd T/A APS Group,465215,2758.91,MF Devolved Admin-Reprographic Services,SK3 0ZP,VENDOR
"Department for Business, Energy and Industrial Strategy","Department for Business, Energy and Industrial Strategy",04/10/2022,Reprographic Services,Corporate Services - Commercial & Operations,Allied Publicity Services (Manchester) Ltd T/A APS Group,465215,5363.88,MF Devolved Admin-Reprographic Services,SK3 0ZP,VENDOR
"Department for Business, Energy and Industrial Strategy","Department for Business, Energy and Industrial Strategy",03/10/2022,R & D Current Grants to Private Sector - NPISH,Energy Transformation and Clean Growth - Science and Innovation,Keadby Generation Ltd,465216,49973.70,Net Zero Innovation Industry and Carbon Capture Demonstration-R & D Current Grants to Private Sector - NPISH,DN17 3EF,VENDOR
"Department for Business, Energy and Industrial Strategy","Department for Business, Energy and Industrial Strategy",03/10/2022,R & D Research and Development Expenditure,Energy Transformation and Clean Growth - Science and Innovation,Catagen Ltd,465217,130442.93,Net Zero Innovation - Hydrogen-R & D Research and Development Expenditure,BT3 9DT,VENDOR
"Department for Business, Energy and Industrial Strategy","Department for Business, Energy and Industrial Strategy",06/10/2022,Grant-In-Aid to Arms Length Bodies,Energy Transformation and Clean Growth - Net Zero Strategy,THE COMMITTEE ON CLIMATE CHANGE,465223,817708.00,Committee on Climate Change Grant in Aid Payments-Grant-In-Aid to Arms Length Bodies,YO1 7PX,GRANT
"Department for Business, Energy and Industrial Strategy","Department for Business, Energy and Industrial Strategy",05/10/2022,Hire of Interim Managers,Corporate Services - Commercial & Operations,Alexander Mann Solutions Ltd,465224,1890.18,MF Devolved Admin-Hire of Interim Managers,EC2N 3AQ,VENDOR
"Department for Business, Energy and Industrial Strategy","Department for Business, Energy and Industrial Strategy",03/10/2022,IT Services,Corporate Services - Commercial & Operations,Cabinet Office,465225,-156000.00,MF Devolved Admin-IT Services,NP10 8FZ,WGA ONLY
"Department for Business, Energy and Industrial Strategy","Department for Business, Energy and Industrial Strategy",05/10/2022,Training And Development Expenditure,Corporate Services - Human Resources,LSR TRAINING & DEVELOPMENT LTD,465226,690.00,MF Non Devolved Admin-Training And Development Expenditure,YO42 4RE,VENDOR
"Department for Business, Energy and Industrial Strategy","Department for Business, Energy and Industrial Strategy",05/10/2022,Clearing Account - Cost - Leasehold Improvements,Corporate Services - Commercial & Operations,Government Property Agency,465229,49999.11,Estates Infrastructure and Maintenance-Clearing Account - Cost - Leasehold Improvements,B2 5LS,VENDOR
"Department for Business, Energy and Industrial Strategy","Department for Business, Energy and Industrial Strategy",05/10/2022,Clearing Account - Cost - Leasehold Improvements,Corporate Services - Commercial & Operations,Government Property Agency,465230,1106.88,Estates Infrastructure and Maintenance-Clearing Account - Cost - Leasehold Improvements,B2 2QQ,VENDOR
"Department for Business, Energy and Industrial Strategy","Department for Business, Energy and Industrial Strategy",05/10/2022,R & D Outsourced Other,Energy Transformation and Clean Growth - Science and Innovation,UK Centre for Ecology and Hydrology,465231,21419.45,Climate Science Capability-R & D Outsourced Other,OX10 8BB,VENDOR
"Department for Business, Energy and Industrial Strategy","Department for Business, Energy and Industrial Strategy",05/10/2022,Recruitment Advice and Services,"Science, Innovation and Growth - International Research and Innovation Directorate",Personal Data Withheld,465232,1000.00,MF Devolved Admin-Recruitment Advice and Services,IP29 ,VENDOR
"Department for Business, Energy and Industrial Strategy","Department for Business, Energy and Industrial Strategy",06/10/2022,Consultancy Expenditure,Vaccines Taskforce - Vaccines Taskforce,"Department for Levelling Up, Housing and Communities",465233,49999.99,VTF Admin - COVID-19-Consultancy Expenditure,HP2 4XN,WGA ONLY
"Department for Business, Energy and Industrial Strategy","Department for Business, Energy and Industrial Strategy",06/10/2022,Other Professional Services,"Corporate Services - Digital, Data & Technology",Fujitsu Services Ltd,465234,16690.00,MF Devolved Admin-Other Professional Services,WA3 9BD,VENDOR
"Department for Business, Energy and Industrial Strategy","Department for Business, Energy and Industrial Strategy",05/10/2022,Health and Safety Consultancy,Corporate Services - Partnerships,RNIB (The Royal National Institute of Blind People),465244,850.00,MF Non Devolved Admin-Health and Safety Consultancy,WC1H 9NE,VENDOR
"Department for Business, Energy and Industrial Strategy","Department for Business, Energy and Industrial Strategy",07/10/2022,Grant-In-Aid to Arms Length Bodies,Energy and Security - Energy Development and Resilience,Coal Authority,465245,4000000.00,Payment Of Grant in Aid To The Coal Authority-Grant-In-Aid to Arms Length Bodies,NG18 4RG,VENDOR
"Department for Business, Energy and Industrial Strategy","Department for Business, Energy and Industrial Strategy",07/10/2022,CA - BEIS Coal Health GBS Account,Energy and Security - Energy Development and Resilience,BEIS Coal Health,465254,200000.00,Liabilities To Ex-British Coal Employees And Other Liabilities Transferred From-CA - BEIS Coal Health GBS Account,SW1H 0ET,VENDOR
"Department for Business, Energy and Industrial Strategy","Department for Business, Energy and Industrial Strategy",05/10/2022,R & D Current Grants to Private Sector - NPISH,"Science, Innovation and Growth - International Research and Innovation Directorate",The Royal Society,465255,90615.00,Royal Society transitional measures and talent offer-R & D Current Grants to Private Sector - NPISH,SW1Y 5AG,GRANT
"Department for Business, Energy and Industrial Strategy","Department for Business, Energy and Industrial Strategy",05/10/2022,R & D Current Grants to Private Sector - NPISH,"Science, Innovation and Growth - International Research and Innovation Directorate",The Royal Society,465255,1110000.00,Royal Society-R & D Current Grants to Private Sector - NPISH,SW1Y 5AG,GRANT
"Department for Business, Energy and Industrial Strategy","Department for Business, Energy and Industrial Strategy",06/10/2022,RES - NPF - Agencies - General Fund,"Science, Innovation and Growth - Space",UK SPACE AGENCY,465256,10000000.00,UK Space Agency - Supply Funding-RES - NPF - Agencies - General Fund,SN2 1SZ,WGA ONLY
"Department for Business, Energy and Industrial Strategy","Department for Business, Energy and Industrial Strategy",05/10/2022,R & D Current Grants to Private Sector - NPISH,"Science, Innovation and Growth - International Research and Innovation Directorate",THE BRITISH ACADEMY,465257,53257.00,British Academy transitional measures and talent offer-R & D Current Grants to Private Sector - NPISH,SW1Y 5AH,VENDOR
"Department for Business, Energy and Industrial Strategy","Department for Business, Energy and Industrial Strategy",05/10/2022,R & D Current Grants to Private Sector - NPISH,"Science, Innovation and Growth - International Research and Innovation Directorate",THE BRITISH ACADEMY,465257,1799668.00,British Academy-R & D Current Grants to Private Sector - NPISH,SW1Y 5AH,VENDOR
"Department for Business, Energy and Industrial Strategy","Department for Business, Energy and Industrial Strategy",05/10/2022,R & D Current Grants to Private Sector - NPISH,"Science, Innovation and Growth - International Research and Innovation Directorate",ROYAL ACADEMY OF ENGINEERING RAE,465258,33333.00,Royal Academy of Engineering transitional measures and talent offer-R & D Current Grants to Private Sector - NPISH,SW1Y 5DG,VENDOR
"Department for Business, Energy and Industrial Strategy","Department for Business, Energy and Industrial Strategy",05/10/2022,R & D Current Grants to Private Sector - NPISH,"Science, Innovation and Growth - International Research and Innovation Directorate",ROYAL ACADEMY OF ENGINEERING RAE,465258,5002573.00,Royal Academy Of Engineering-R & D Current Grants to Private Sector - NPISH,SW1Y 5DG,VENDOR
"Department for Business, Energy and Industrial Strategy","Department for Business, Energy and Industrial Strategy",05/10/2022,R & D Current Grants to Private Sector - NPISH,"Science, Innovation and Growth - International Research and Innovation Directorate",ACADEMY OF MEDICAL SCIENCES,465259,680436.00,Academy of Medical Sciences transitional measures and talent offer-R & D Current Grants to Private Sector - NPISH,W1B 1QH,GRANT
"Department for Business, Energy and Industrial Strategy","Department for Business, Energy and Industrial Strategy",05/10/2022,R & D Current Grants to Private Sector - NPISH,"Science, Innovation and Growth - International Research and Innovation Directorate",ACADEMY OF MEDICAL SCIENCES,465259,2229503.00,Academy of Medical Sciences-R & D Current Grants to Private Sector - NPISH,W1B 1QH,GRANT
"Department for Business, Energy and Industrial Strategy","Department for Business, Energy and Industrial Strategy",04/10/2022,Mileage Allowance UK,"Energy and Security - Nuclear Power, Infrastructure and Decommissioning","Personal Expense, Name Withheld",465261,9.00,MF Devolved Admin-Mileage Allowance UK,,
"Department for Business, Energy and Industrial Strategy","Department for Business, Energy and Industrial Strategy",04/10/2022,Rail Travel UK,"Energy and Security - Nuclear Power, Infrastructure and Decommissioning","Personal Expense, Name Withheld",465261,91.70,MF Devolved Admin-Rail Travel UK,,
"Department for Business, Energy and Industrial Strategy","Department for Business, Energy and Industrial Strategy",04/10/2022,Subsistence UK,"Energy and Security - Nuclear Power, Infrastructure and Decommissioning","Personal Expense, Name Withheld",465261,94.50,MF Devolved Admin-Subsistence UK,,
"Department for Business, Energy and Industrial Strategy","Department for Business, Energy and Industrial Strategy",04/10/2022,Air Travel UK,"Energy and Security - Nuclear Power, Infrastructure and Decommissioning","Personal Expense, Name Withheld",465261,421.66,MF Devolved Admin-Air Travel UK,,
"Department for Business, Energy and Industrial Strategy","Department for Business, Energy and Industrial Strategy",04/10/2022,Mileage Allowance UK,"Energy and Security - Nuclear Power, Infrastructure and Decommissioning","Personal Expense, Name Withheld",465262,28.80,MF Devolved Admin-Mileage Allowance UK,,EMPLOYEE
"Department for Business, Energy and Industrial Strategy","Department for Business, Energy and Industrial Strategy",04/10/2022,Rail Travel UK,"Energy and Security - Nuclear Power, Infrastructure and Decommissioning","Personal Expense, Name Withheld",465262,73.19,MF Devolved Admin-Rail Travel UK,,EMPLOYEE
"Department for Business, Energy and Industrial Strategy","Department for Business, Energy and Industrial Strategy",04/10/2022,Subsistence UK,"Energy and Security - Nuclear Power, Infrastructure and Decommissioning","Personal Expense, Name Withheld",465262,89.99,MF Devolved Admin-Subsistence UK,,EMPLOYEE
"Department for Business, Energy and Industrial Strategy","Department for Business, Energy and Industrial Strategy",04/10/2022,Air Travel UK,"Energy and Security - Nuclear Power, Infrastructure and Decommissioning","Personal Expense, Name Withheld",465262,238.52,MF Devolved Admin-Air Travel UK,,EMPLOYEE
"Department for Business, Energy and Industrial Strategy","Department for Business, Energy and Industrial Strategy",11/10/2022,Misc. Non Procurement Spend,Corporate Services - Human Resources,Ernst and Young LLP,465263,3384.48,MF Non Devolved Admin-Misc. Non Procurement Spend,SE1 7EU,VENDOR
"Department for Business, Energy and Industrial Strategy","Department for Business, Energy and Industrial Strategy",04/10/2022,Mileage Allowance UK,"Energy and Security - Nuclear Power, Infrastructure and Decommissioning","Personal Expense, Name Withheld",465264,7.20,MF Devolved Admin-Mileage Allowance UK,,EMPLOYEE
"Department for Business, Energy and Industrial Strategy","Department for Business, Energy and Industrial Strategy",04/10/2022,Taxi Services UK,"Energy and Security - Nuclear Power, Infrastructure and Decommissioning","Personal Expense, Name Withheld",465264,20.00,MF Devolved Admin-Taxi Services UK,,EMPLOYEE
"Department for Business, Energy and Industrial Strategy","Department for Business, Energy and Industrial Strategy",04/10/2022,Subsistence UK,"Energy and Security - Nuclear Power, Infrastructure and Decommissioning","Personal Expense, Name Withheld",465264,60.60,MF Devolved Admin-Subsistence UK,,EMPLOYEE
"Department for Business, Energy and Industrial Strategy","Department for Business, Energy and Industrial Strategy",04/10/2022,Rail Travel UK,"Energy and Security - Nuclear Power, Infrastructure and Decommissioning","Personal Expense, Name Withheld",465264,171.05,MF Devolved Admin-Rail Travel UK,,EMPLOYEE
"Department for Business, Energy and Industrial Strategy","Department for Business, Energy and Industrial Strategy",04/10/2022,Mileage Allowance UK,"Energy and Security - Nuclear Power, Infrastructure and Decommissioning","Personal Expense, Name Withheld",465265,4.05,MF Devolved Admin-Mileage Allowance UK,,EMPLOYEE
"Department for Business, Energy and Industrial Strategy","Department for Business, Energy and Industrial Strategy",04/10/2022,Taxi Services UK,"Energy and Security - Nuclear Power, Infrastructure and Decommissioning","Personal Expense, Name Withheld",465265,32.94,MF Devolved Admin-Taxi Services UK,,EMPLOYEE
"Department for Business, Energy and Industrial Strategy","Department for Business, Energy and Industrial Strategy",04/10/2022,Subsistence UK,"Energy and Security - Nuclear Power, Infrastructure and Decommissioning","Personal Expense, Name Withheld",465265,35.00,MF Devolved Admin-Subsistence UK,,EMPLOYEE
"Department for Business, Energy and Industrial Strategy","Department for Business, Energy and Industrial Strategy",04/10/2022,Rail Travel UK,"Energy and Security - Nuclear Power, Infrastructure and Decommissioning","Personal Expense, Name Withheld",465265,103.59,MF Devolved Admin-Rail Travel UK,,EMPLOYEE
"Department for Business, Energy and Industrial Strategy","Department for Business, Energy and Industrial Strategy",05/10/2022,Advertising,Corporate Services - Communications,PRgloo Ltd,465266,691.59,MF Devolved Admin-Advertising,WC2A 2JR,VENDOR
"Department for Business, Energy and Industrial Strategy","Department for Business, Energy and Industrial Strategy",11/10/2022,Training And Development Expenditure,Corporate Services - Human Resources,Bespoke Speechwriting Services Ltd,465267,850.00,MF Non Devolved Admin-Training And Development Expenditure,WC2N 6AA,VENDOR
"Department for Business, Energy and Industrial Strategy","Department for Business, Energy and Industrial Strategy",11/10/2022,Training And Development Expenditure,Corporate Services - Human Resources,Bespoke Speechwriting Services Ltd,465267,850.00,MF Non Devolved Admin-Training And Development Expenditure,WC2N 6AA,VENDOR
"Department for Business, Energy and Industrial Strategy","Department for Business, Energy and Industrial Strategy",05/10/2022,Technical Advice / Services & Support,Business Sectors - Services,TLT LLP,465269,211437.05,MF Devolved Admin-Legal Services and Advice Agency,BS1 6TP,VENDOR
"Department for Business, Energy and Industrial Strategy","Department for Business, Energy and Industrial Strategy",05/10/2022,R & D Economic Consultancy and Research,"Trade, International, the Union & Analysis - Analysis Directorate",RICARDO-AEA LTD,465270,2713.20,Energy Satistics Research and Analysis-R & D Economic Consultancy and Research,OX11 0QR,VENDOR
"Department for Business, Energy and Industrial Strategy","Department for Business, Energy and Industrial Strategy",05/10/2022,R & D Economic Consultancy and Research,"Trade, International, the Union & Analysis - Analysis Directorate",RICARDO-AEA LTD,465270,8519.78,Energy Satistics Research and Analysis-R & D Economic Consultancy and Research,OX11 0QR,VENDOR
"Department for Business, Energy and Industrial Strategy","Department for Business, Energy and Industrial Strategy",26/10/2022,Clearing Account   - Cost - Computer Equipment,Market Frameworks - Office for Product Safety and Standards,Little Fish (UK) Ltd,465271,13156.20,OPSS - IT infrastructure for labs in Teddington-Clearing Account   - Cost - Computer Equipment,NG1 1LS,VENDOR
"Department for Business, Energy and Industrial Strategy","Department for Business, Energy and Industrial Strategy",05/10/2022,Hire of Interim Managers,Energy and Security - Nuclear Protection Directorate,Hays Specialist Recruitment Ltd,465274,4449.72,MF Devolved Admin-Hire of Interim Managers,NW1 3BF,VENDOR
"Department for Business, Energy and Industrial Strategy","Department for Business, Energy and Industrial Strategy",04/10/2022,Subsistence Overseas,Energy Transformation and Clean Growth - INZ: Climate Finance & Strategy,"Personal Expense, Name Withheld",465279,2.58,International Climate Finance (ICF)-Subsistence Overseas,,EMPLOYEE
"Department for Business, Energy and Industrial Strategy","Department for Business, Energy and Industrial Strategy",04/10/2022,Subsistence Overseas,Energy Transformation and Clean Growth - INZ: Climate Finance & Strategy,"Personal Expense, Name Withheld",465279,3.20,International Climate Finance (ICF)-Subsistence Overseas,,EMPLOYEE
"Department for Business, Energy and Industrial Strategy","Department for Business, Energy and Industrial Strategy",04/10/2022,Subsistence Overseas,Energy Transformation and Clean Growth - INZ: Climate Finance & Strategy,"Personal Expense, Name Withheld",465279,3.85,International Climate Finance (ICF)-Subsistence Overseas,,EMPLOYEE
"Department for Business, Energy and Industrial Strategy","Department for Business, Energy and Industrial Strategy",04/10/2022,Subsistence Overseas,Energy Transformation and Clean Growth - INZ: Climate Finance & Strategy,"Personal Expense, Name Withheld",465279,3.85,International Climate Finance (ICF)-Subsistence Overseas,,EMPLOYEE
"Department for Business, Energy and Industrial Strategy","Department for Business, Energy and Industrial Strategy",04/10/2022,Subsistence Overseas,Energy Transformation and Clean Growth - INZ: Climate Finance & Strategy,"Personal Expense, Name Withheld",465279,4.62,International Climate Finance (ICF)-Subsistence Overseas,,EMPLOYEE
"Department for Business, Energy and Industrial Strategy","Department for Business, Energy and Industrial Strategy",04/10/2022,Subsistence Overseas,Energy Transformation and Clean Growth - INZ: Climate Finance & Strategy,"Personal Expense, Name Withheld",465279,5.20,International Climate Finance (ICF)-Subsistence Overseas,,EMPLOYEE
"Department for Business, Energy and Industrial Strategy","Department for Business, Energy and Industrial Strategy",04/10/2022,Subsistence Overseas,Energy Transformation and Clean Growth - INZ: Climate Finance & Strategy,"Personal Expense, Name Withheld",465279,6.67,International Climate Finance (ICF)-Subsistence Overseas,,EMPLOYEE
"Department for Business, Energy and Industrial Strategy","Department for Business, Energy and Industrial Strategy",04/10/2022,Taxi Services Overseas,Energy Transformation and Clean Growth - INZ: Climate Finance & Strategy,"Personal Expense, Name Withheld",465279,7.00,International Climate Finance (ICF)-Taxi Services Overseas,,EMPLOYEE
"Department for Business, Energy and Industrial Strategy","Department for Business, Energy and Industrial Strategy",04/10/2022,Subsistence Overseas,Energy Transformation and Clean Growth - INZ: Climate Finance & Strategy,"Personal Expense, Name Withheld",465279,9.08,International Climate Finance (ICF)-Subsistence Overseas,,EMPLOYEE
"Department for Business, Energy and Industrial Strategy","Department for Business, Energy and Industrial Strategy",04/10/2022,Subsistence Overseas,Energy Transformation and Clean Growth - INZ: Climate Finance & Strategy,"Personal Expense, Name Withheld",465279,9.25,International Climate Finance (ICF)-Subsistence Overseas,,EMPLOYEE
"Department for Business, Energy and Industrial Strategy","Department for Business, Energy and Industrial Strategy",04/10/2022,Subsistence Overseas,Energy Transformation and Clean Growth - INZ: Climate Finance & Strategy,"Personal Expense, Name Withheld",465279,9.43,International Climate Finance (ICF)-Subsistence Overseas,,EMPLOYEE
"Department for Business, Energy and Industrial Strategy","Department for Business, Energy and Industrial Strategy",04/10/2022,Subsistence Overseas,Energy Transformation and Clean Growth - INZ: Climate Finance & Strategy,"Personal Expense, Name Withheld",465279,10.06,International Climate Finance (ICF)-Subsistence Overseas,,EMPLOYEE
"Department for Business, Energy and Industrial Strategy","Department for Business, Energy and Industrial Strategy",04/10/2022,Subsistence Overseas,Energy Transformation and Clean Growth - INZ: Climate Finance & Strategy,"Personal Expense, Name Withheld",465279,10.23,International Climate Finance (ICF)-Subsistence Overseas,,EMPLOYEE
"Department for Business, Energy and Industrial Strategy","Department for Business, Energy and Industrial Strategy",04/10/2022,Subsistence Overseas,Energy Transformation and Clean Growth - INZ: Climate Finance & Strategy,"Personal Expense, Name Withheld",465279,11.48,International Climate Finance (ICF)-Subsistence Overseas,,EMPLOYEE
"Department for Business, Energy and Industrial Strategy","Department for Business, Energy and Industrial Strategy",04/10/2022,Subsistence Overseas,Energy Transformation and Clean Growth - INZ: Climate Finance & Strategy,"Personal Expense, Name Withheld",465279,12.53,International Climate Finance (ICF)-Subsistence Overseas,,EMPLOYEE
"Department for Business, Energy and Industrial Strategy","Department for Business, Energy and Industrial Strategy",04/10/2022,Subsistence Overseas,Energy Transformation and Clean Growth - INZ: Climate Finance & Strategy,"Personal Expense, Name Withheld",465279,13.09,International Climate Finance (ICF)-Subsistence Overseas,,EMPLOYEE
"Department for Business, Energy and Industrial Strategy","Department for Business, Energy and Industrial Strategy",04/10/2022,Subsistence Overseas,Energy Transformation and Clean Growth - INZ: Climate Finance & Strategy,"Personal Expense, Name Withheld",465279,16.90,International Climate Finance (ICF)-Subsistence Overseas,,EMPLOYEE
"Department for Business, Energy and Industrial Strategy","Department for Business, Energy and Industrial Strategy",04/10/2022,Subsistence Overseas,Energy Transformation and Clean Growth - INZ: Climate Finance & Strategy,"Personal Expense, Name Withheld",465279,17.00,International Climate Finance (ICF)-Subsistence Overseas,,EMPLOYEE
"Department for Business, Energy and Industrial Strategy","Department for Business, Energy and Industrial Strategy",04/10/2022,Subsistence Overseas,Energy Transformation and Clean Growth - INZ: Climate Finance & Strategy,"Personal Expense, Name Withheld",465279,17.79,International Climate Finance (ICF)-Subsistence Overseas,,EMPLOYEE
"Department for Business, Energy and Industrial Strategy","Department for Business, Energy and Industrial Strategy",04/10/2022,Subsistence Overseas,Energy Transformation and Clean Growth - INZ: Climate Finance & Strategy,"Personal Expense, Name Withheld",465279,20.20,International Climate Finance (ICF)-Subsistence Overseas,,EMPLOYEE
"Department for Business, Energy and Industrial Strategy","Department for Business, Energy and Industrial Strategy",04/10/2022,Subsistence Overseas,Energy Transformation and Clean Growth - INZ: Climate Finance & Strategy,"Personal Expense, Name Withheld",465279,107.40,International Climate Finance (ICF)-Subsistence Overseas,,EMPLOYEE
"Department for Business, Energy and Industrial Strategy","Department for Business, Energy and Industrial Strategy",04/10/2022,Subsistence Overseas,Energy Transformation and Clean Growth - INZ: Climate Finance & Strategy,"Personal Expense, Name Withheld",465280,6.48,International Climate Finance (ICF)-Subsistence Overseas,,EMPLOYEE
"Department for Business, Energy and Industrial Strategy","Department for Business, Energy and Industrial Strategy",04/10/2022,Rail Travel Overseas,Energy Transformation and Clean Growth - INZ: Climate Finance & Strategy,"Personal Expense, Name Withheld",465281,6.73,MF Devolved Admin-Rail Travel Overseas,,EMPLOYEE
"Department for Business, Energy and Industrial Strategy","Department for Business, Energy and Industrial Strategy",04/10/2022,Rail Travel Overseas,Energy Transformation and Clean Growth - INZ: Climate Finance & Strategy,"Personal Expense, Name Withheld",465281,7.06,MF Devolved Admin-Rail Travel Overseas,,EMPLOYEE
"Department for Business, Energy and Industrial Strategy","Department for Business, Energy and Industrial Strategy",04/10/2022,Subsistence Overseas,Energy Transformation and Clean Growth - INZ: Climate Finance & Strategy,"Personal Expense, Name Withheld",465281,10.08,MF Devolved Admin-Subsistence Overseas,,EMPLOYEE
"Department for Business, Energy and Industrial Strategy","Department for Business, Energy and Industrial Strategy",04/10/2022,Rail Travel Overseas,Energy Transformation and Clean Growth - INZ: Climate Finance & Strategy,"Personal Expense, Name Withheld",465281,10.65,MF Devolved Admin-Rail Travel Overseas,,EMPLOYEE
"Department for Business, Energy and Industrial Strategy","Department for Business, Energy and Industrial Strategy",04/10/2022,Rail Travel Overseas,Energy Transformation and Clean Growth - INZ: Climate Finance & Strategy,"Personal Expense, Name Withheld",465281,14.09,MF Devolved Admin-Rail Travel Overseas,,EMPLOYEE
"Department for Business, Energy and Industrial Strategy","Department for Business, Energy and Industrial Strategy",04/10/2022,Subsistence Overseas,Energy Transformation and Clean Growth - INZ: Climate Finance & Strategy,"Personal Expense, Name Withheld",465281,15.64,MF Devolved Admin-Subsistence Overseas,,EMPLOYEE
"Department for Business, Energy and Industrial Strategy","Department for Business, Energy and Industrial Strategy",04/10/2022,Subsistence Overseas,Energy Transformation and Clean Growth - INZ: Climate Finance & Strategy,"Personal Expense, Name Withheld",465281,17.57,MF Devolved Admin-Subsistence Overseas,,EMPLOYEE
"Department for Business, Energy and Industrial Strategy","Department for Business, Energy and Industrial Strategy",04/10/2022,Subsistence Overseas,Energy Transformation and Clean Growth - INZ: Climate Finance & Strategy,"Personal Expense, Name Withheld",465281,17.64,MF Devolved Admin-Subsistence Overseas,,EMPLOYEE
"Department for Business, Energy and Industrial Strategy","Department for Business, Energy and Industrial Strategy",04/10/2022,Subsistence Overseas,Energy Transformation and Clean Growth - INZ: Climate Finance & Strategy,"Personal Expense, Name Withheld",465281,17.67,MF Devolved Admin-Subsistence Overseas,,EMPLOYEE
"Department for Business, Energy and Industrial Strategy","Department for Business, Energy and Industrial Strategy",04/10/2022,Subsistence Overseas,Energy Transformation and Clean Growth - INZ: Climate Finance & Strategy,"Personal Expense, Name Withheld",465281,24.36,MF Devolved Admin-Subsistence Overseas,,EMPLOYEE
"Department for Business, Energy and Industrial Strategy","Department for Business, Energy and Industrial Strategy",04/10/2022,Subsistence Overseas,Energy Transformation and Clean Growth - INZ: Climate Finance & Strategy,"Personal Expense, Name Withheld",465281,25.40,MF Devolved Admin-Subsistence Overseas,,EMPLOYEE
"Department for Business, Energy and Industrial Strategy","Department for Business, Energy and Industrial Strategy",04/10/2022,Subsistence Overseas,Energy Transformation and Clean Growth - INZ: Climate Finance & Strategy,"Personal Expense, Name Withheld",465281,28.97,MF Devolved Admin-Subsistence Overseas,,EMPLOYEE
"Department for Business, Energy and Industrial Strategy","Department for Business, Energy and Industrial Strategy",04/10/2022,Rail Travel UK,Energy Transformation and Clean Growth - Science and Innovation,"Personal Expense, Name Withheld",465282,2.50,Net Zero Costs - Admin-Rail Travel UK,,EMPLOYEE
"Department for Business, Energy and Industrial Strategy","Department for Business, Energy and Industrial Strategy",04/10/2022,Hospitality - UK,Energy Transformation and Clean Growth - Science and Innovation,"Personal Expense, Name Withheld",465282,7.19,Net Zero Costs - Admin-Hospitality - UK,,EMPLOYEE
"Department for Business, Energy and Industrial Strategy","Department for Business, Energy and Industrial Strategy",04/10/2022,Subsistence UK,Energy Transformation and Clean Growth - Science and Innovation,"Personal Expense, Name Withheld",465282,8.59,Net Zero Costs - Admin-Subsistence UK,,EMPLOYEE
"Department for Business, Energy and Industrial Strategy","Department for Business, Energy and Industrial Strategy",04/10/2022,Subsistence UK,Energy Transformation and Clean Growth - Science and Innovation,"Personal Expense, Name Withheld",465282,10.89,Net Zero Costs - Admin-Subsistence UK,,EMPLOYEE
"Department for Business, Energy and Industrial Strategy","Department for Business, Energy and Industrial Strategy",04/10/2022,Subsistence UK,Energy Transformation and Clean Growth - Science and Innovation,"Personal Expense, Name Withheld",465282,13.15,Net Zero Costs - Admin-Subsistence UK,,EMPLOYEE
"Department for Business, Energy and Industrial Strategy","Department for Business, Energy and Industrial Strategy",04/10/2022,Taxi Services UK,Energy Transformation and Clean Growth - Science and Innovation,"Personal Expense, Name Withheld",465282,13.20,Net Zero Costs - Admin-Taxi Services UK,,EMPLOYEE
"Department for Business, Energy and Industrial Strategy","Department for Business, Energy and Industrial Strategy",04/10/2022,Subsistence UK,Energy Transformation and Clean Growth - Science and Innovation,"Personal Expense, Name Withheld",465282,13.31,Net Zero Costs - Admin-Subsistence UK,,EMPLOYEE
"Department for Business, Energy and Industrial Strategy","Department for Business, Energy and Industrial Strategy",04/10/2022,Hotel & Accommodation UK,Energy Transformation and Clean Growth - Science and Innovation,"Personal Expense, Name Withheld",465282,14.14,Net Zero Costs - Admin-Hotel & Accommodation UK,,EMPLOYEE
"Department for Business, Energy and Industrial Strategy","Department for Business, Energy and Industrial Strategy",04/10/2022,Subsistence UK,Energy Transformation and Clean Growth - Science and Innovation,"Personal Expense, Name Withheld",465282,15.60,Net Zero Costs - Admin-Subsistence UK,,EMPLOYEE
"Department for Business, Energy and Industrial Strategy","Department for Business, Energy and Industrial Strategy",04/10/2022,Subsistence UK,Energy Transformation and Clean Growth - Science and Innovation,"Personal Expense, Name Withheld",465282,17.99,Net Zero Costs - Admin-Subsistence UK,,EMPLOYEE
"Department for Business, Energy and Industrial Strategy","Department for Business, Energy and Industrial Strategy",04/10/2022,Rail Travel UK,Energy Transformation and Clean Growth - Science and Innovation,"Personal Expense, Name Withheld",465282,21.30,Net Zero Costs - Admin-Rail Travel UK,,EMPLOYEE
"Department for Business, Energy and Industrial Strategy","Department for Business, Energy and Industrial Strategy",04/10/2022,Subsistence UK,Energy Transformation and Clean Growth - Science and Innovation,"Personal Expense, Name Withheld",465282,23.08,Net Zero Costs - Admin-Subsistence UK,,EMPLOYEE
"Department for Business, Energy and Industrial Strategy","Department for Business, Energy and Industrial Strategy",04/10/2022,Taxi Services UK,Energy Transformation and Clean Growth - Science and Innovation,"Personal Expense, Name Withheld",465282,24.52,Net Zero Costs - Admin-Taxi Services UK,,EMPLOYEE
"Department for Business, Energy and Industrial Strategy","Department for Business, Energy and Industrial Strategy",04/10/2022,Subsistence UK,Energy Transformation and Clean Growth - Science and Innovation,"Personal Expense, Name Withheld",465282,33.77,Net Zero Costs - Admin-Subsistence UK,,EMPLOYEE
"Department for Business, Energy and Industrial Strategy","Department for Business, Energy and Industrial Strategy",04/10/2022,Subsistence UK,Energy Transformation and Clean Growth - Science and Innovation,"Personal Expense, Name Withheld",465282,45.07,Net Zero Costs - Admin-Subsistence UK,,EMPLOYEE
"Department for Business, Energy and Industrial Strategy","Department for Business, Energy and Industrial Strategy",04/10/2022,Taxi Services UK,Energy Transformation and Clean Growth - Science and Innovation,"Personal Expense, Name Withheld",465282,57.50,Net Zero Costs - Admin-Taxi Services UK,,EMPLOYEE
"Department for Business, Energy and Industrial Strategy","Department for Business, Energy and Industrial Strategy",04/10/2022,Taxi Services UK,Energy Transformation and Clean Growth - Science and Innovation,"Personal Expense, Name Withheld",465282,65.30,Net Zero Costs - Admin-Taxi Services UK,,EMPLOYEE
"Department for Business, Energy and Industrial Strategy","Department for Business, Energy and Industrial Strategy",04/10/2022,Subsistence Overseas,Energy Transformation and Clean Growth - INZ: Climate Finance & Strategy,"Personal Expense, Name Withheld",465283,3.05,International Climate Finance (ICF)-Subsistence Overseas,,EMPLOYEE
"Department for Business, Energy and Industrial Strategy","Department for Business, Energy and Industrial Strategy",04/10/2022,Rail Travel Overseas,Energy Transformation and Clean Growth - INZ: Climate Finance & Strategy,"Personal Expense, Name Withheld",465283,6.00,International Climate Finance (ICF)-Rail Travel Overseas,,EMPLOYEE
"Department for Business, Energy and Industrial Strategy","Department for Business, Energy and Industrial Strategy",04/10/2022,Rail Travel Overseas,Energy Transformation and Clean Growth - INZ: Climate Finance & Strategy,"Personal Expense, Name Withheld",465283,6.49,International Climate Finance (ICF)-Rail Travel Overseas,,EMPLOYEE
"Department for Business, Energy and Industrial Strategy","Department for Business, Energy and Industrial Strategy",04/10/2022,Subsistence Overseas,Energy Transformation and Clean Growth - INZ: Climate Finance & Strategy,"Personal Expense, Name Withheld",465283,7.00,International Climate Finance (ICF)-Subsistence Overseas,,EMPLOYEE
"Department for Business, Energy and Industrial Strategy","Department for Business, Energy and Industrial Strategy",04/10/2022,Subsistence Overseas,Energy Transformation and Clean Growth - INZ: Climate Finance & Strategy,"Personal Expense, Name Withheld",465283,8.80,International Climate Finance (ICF)-Subsistence Overseas,,EMPLOYEE
"Department for Business, Energy and Industrial Strategy","Department for Business, Energy and Industrial Strategy",04/10/2022,Subsistence Overseas,Energy Transformation and Clean Growth - INZ: Climate Finance & Strategy,"Personal Expense, Name Withheld",465283,8.93,International Climate Finance (ICF)-Subsistence Overseas,,EMPLOYEE
"Department for Business, Energy and Industrial Strategy","Department for Business, Energy and Industrial Strategy",04/10/2022,Subsistence Overseas,Energy Transformation and Clean Growth - INZ: Climate Finance & Strategy,"Personal Expense, Name Withheld",465283,12.35,International Climate Finance (ICF)-Subsistence Overseas,,EMPLOYEE
"Department for Business, Energy and Industrial Strategy","Department for Business, Energy and Industrial Strategy",04/10/2022,Subsistence Overseas,Energy Transformation and Clean Growth - INZ: Climate Finance & Strategy,"Personal Expense, Name Withheld",465283,16.36,International Climate Finance (ICF)-Subsistence Overseas,,EMPLOYEE
"Department for Business, Energy and Industrial Strategy","Department for Business, Energy and Industrial Strategy",04/10/2022,Subsistence Overseas,Energy Transformation and Clean Growth - INZ: Climate Finance & Strategy,"Personal Expense, Name Withheld",465283,18.45,International Climate Finance (ICF)-Subsistence Overseas,,EMPLOYEE
"Department for Business, Energy and Industrial Strategy","Department for Business, Energy and Industrial Strategy",04/10/2022,Subsistence Overseas,Energy Transformation and Clean Growth - INZ: Climate Finance & Strategy,"Personal Expense, Name Withheld",465283,22.52,International Climate Finance (ICF)-Subsistence Overseas,,EMPLOYEE
"Department for Business, Energy and Industrial Strategy","Department for Business, Energy and Industrial Strategy",04/10/2022,Air Travel Overseas,Energy Transformation and Clean Growth - INZ: Climate Finance & Strategy,"Personal Expense, Name Withheld",465283,28.36,International Climate Finance (ICF)-Air Travel Overseas,,EMPLOYEE
"Department for Business, Energy and Industrial Strategy","Department for Business, Energy and Industrial Strategy",04/10/2022,Subsistence Overseas,Energy Transformation and Clean Growth - INZ: Climate Finance & Strategy,"Personal Expense, Name Withheld",465283,38.02,International Climate Finance (ICF)-Subsistence Overseas,,EMPLOYEE
"Department for Business, Energy and Industrial Strategy","Department for Business, Energy and Industrial Strategy",04/10/2022,Subsistence Overseas,Energy Transformation and Clean Growth - INZ: Climate Finance & Strategy,"Personal Expense, Name Withheld",465283,41.59,International Climate Finance (ICF)-Subsistence Overseas,,EMPLOYEE
"Department for Business, Energy and Industrial Strategy","Department for Business, Energy and Industrial Strategy",04/10/2022,Taxi Services Overseas,Energy Transformation and Clean Growth - INZ: Climate Finance & Strategy,"Personal Expense, Name Withheld",465283,42.29,International Climate Finance (ICF)-Taxi Services Overseas,,EMPLOYEE
"Department for Business, Energy and Industrial Strategy","Department for Business, Energy and Industrial Strategy",04/10/2022,Hotel & Accommodation Overseas,Energy Transformation and Clean Growth - INZ: Climate Finance & Strategy,"Personal Expense, Name Withheld",465284,660.60,International Climate Finance (ICF)-Hotel & Accommodation Overseas,,EMPLOYEE
"Department for Business, Energy and Industrial Strategy","Department for Business, Energy and Industrial Strategy",04/10/2022,Mileage Allowance UK,Business Sectors - Cities and Local Growth,"Personal Expense, Name Withheld",465285,30.60,MF Devolved Admin-Mileage Allowance UK,,EMPLOYEE
"Department for Business, Energy and Industrial Strategy","Department for Business, Energy and Industrial Strategy",04/10/2022,Mileage Allowance UK,Business Sectors - Cities and Local Growth,"Personal Expense, Name Withheld",465285,50.40,MF Devolved Admin-Mileage Allowance UK,,EMPLOYEE
"Department for Business, Energy and Industrial Strategy","Department for Business, Energy and Industrial Strategy",04/10/2022,Other Travel,Market Frameworks - Labour Market,"Personal Expense, Name Withheld",465286,4.00,EAS Enforcement-Other Travel,,EMPLOYEE
"Department for Business, Energy and Industrial Strategy","Department for Business, Energy and Industrial Strategy",04/10/2022,Mileage Allowance UK,Market Frameworks - Labour Market,"Personal Expense, Name Withheld",465286,8.50,EAS Enforcement-Mileage Allowance UK,,EMPLOYEE
"Department for Business, Energy and Industrial Strategy","Department for Business, Energy and Industrial Strategy",04/10/2022,Subsistence UK,Market Frameworks - Labour Market,"Personal Expense, Name Withheld",465286,8.90,EAS Enforcement-Subsistence UK,,EMPLOYEE
"Department for Business, Energy and Industrial Strategy","Department for Business, Energy and Industrial Strategy",04/10/2022,Subsistence UK,Energy and Security - Nuclear Projects and Development Directorate,"Personal Expense, Name Withheld",465288,3.05,MF Devolved Admin-Subsistence UK,,EMPLOYEE
"Department for Business, Energy and Industrial Strategy","Department for Business, Energy and Industrial Strategy",04/10/2022,Subsistence UK,Energy and Security - Nuclear Projects and Development Directorate,"Personal Expense, Name Withheld",465288,5.00,MF Devolved Admin-Subsistence UK,,EMPLOYEE
"Department for Business, Energy and Industrial Strategy","Department for Business, Energy and Industrial Strategy",04/10/2022,Subsistence UK,Energy and Security - Nuclear Projects and Development Directorate,"Personal Expense, Name Withheld",465288,7.99,MF Devolved Admin-Subsistence UK,,EMPLOYEE
"Department for Business, Energy and Industrial Strategy","Department for Business, Energy and Industrial Strategy",04/10/2022,Taxi Services UK,Energy and Security - Nuclear Projects and Development Directorate,"Personal Expense, Name Withheld",465288,9.06,MF Devolved Admin-Taxi Services UK,,EMPLOYEE
"Department for Business, Energy and Industrial Strategy","Department for Business, Energy and Industrial Strategy",04/10/2022,Taxi Services UK,Energy and Security - Nuclear Projects and Development Directorate,"Personal Expense, Name Withheld",465288,9.92,MF Devolved Admin-Taxi Services UK,,EMPLOYEE
"Department for Business, Energy and Industrial Strategy","Department for Business, Energy and Industrial Strategy",04/10/2022,Taxi Services UK,Energy and Security - Nuclear Projects and Development Directorate,"Personal Expense, Name Withheld",465288,10.00,MF Devolved Admin-Taxi Services UK,,EMPLOYEE
"Department for Business, Energy and Industrial Strategy","Department for Business, Energy and Industrial Strategy",04/10/2022,Subsistence UK,Energy and Security - Nuclear Projects and Development Directorate,"Personal Expense, Name Withheld",465289,3.05,MF Devolved Admin-Subsistence UK,,EMPLOYEE
"Department for Business, Energy and Industrial Strategy","Department for Business, Energy and Industrial Strategy",04/10/2022,Subsistence UK,Energy and Security - Nuclear Projects and Development Directorate,"Personal Expense, Name Withheld",465289,5.00,MF Devolved Admin-Subsistence UK,,EMPLOYEE
"Department for Business, Energy and Industrial Strategy","Department for Business, Energy and Industrial Strategy",04/10/2022,Subsistence UK,Energy and Security - Nuclear Projects and Development Directorate,"Personal Expense, Name Withheld",465289,5.00,MF Devolved Admin-Subsistence UK,,EMPLOYEE
"Department for Business, Energy and Industrial Strategy","Department for Business, Energy and Industrial Strategy",04/10/2022,Subsistence UK,Energy and Security - Nuclear Projects and Development Directorate,"Personal Expense, Name Withheld",465289,5.00,MF Devolved Admin-Subsistence UK,,EMPLOYEE
"Department for Business, Energy and Industrial Strategy","Department for Business, Energy and Industrial Strategy",04/10/2022,Subsistence UK,Energy and Security - Nuclear Projects and Development Directorate,"Personal Expense, Name Withheld",465289,7.99,MF Devolved Admin-Subsistence UK,,EMPLOYEE
"Department for Business, Energy and Industrial Strategy","Department for Business, Energy and Industrial Strategy",04/10/2022,Subsistence UK,Energy and Security - Nuclear Projects and Development Directorate,"Personal Expense, Name Withheld",465289,7.99,MF Devolved Admin-Subsistence UK,,EMPLOYEE
"Department for Business, Energy and Industrial Strategy","Department for Business, Energy and Industrial Strategy",04/10/2022,Taxi Services UK,Energy and Security - Nuclear Projects and Development Directorate,"Personal Expense, Name Withheld",465289,9.64,MF Devolved Admin-Taxi Services UK,,EMPLOYEE
"Department for Business, Energy and Industrial Strategy","Department for Business, Energy and Industrial Strategy",04/10/2022,Taxi Services UK,Energy and Security - Nuclear Projects and Development Directorate,"Personal Expense, Name Withheld",465289,9.71,MF Devolved Admin-Taxi Services UK,,EMPLOYEE
"Department for Business, Energy and Industrial Strategy","Department for Business, Energy and Industrial Strategy",04/10/2022,Taxi Services UK,Energy and Security - Nuclear Projects and Development Directorate,"Personal Expense, Name Withheld",465289,9.81,MF Devolved Admin-Taxi Services UK,,EMPLOYEE
"Department for Business, Energy and Industrial Strategy","Department for Business, Energy and Industrial Strategy",04/10/2022,Taxi Services UK,Energy and Security - Nuclear Projects and Development Directorate,"Personal Expense, Name Withheld",465289,10.00,MF Devolved Admin-Taxi Services UK,,EMPLOYEE
"Department for Business, Energy and Industrial Strategy","Department for Business, Energy and Industrial Strategy",04/10/2022,Taxi Services UK,Energy and Security - Nuclear Projects and Development Directorate,"Personal Expense, Name Withheld",465289,11.00,MF Devolved Admin-Taxi Services UK,,EMPLOYEE
"Department for Business, Energy and Industrial Strategy","Department for Business, Energy and Industrial Strategy",04/10/2022,Taxi Services UK,Energy and Security - Nuclear Projects and Development Directorate,"Personal Expense, Name Withheld",465289,13.00,MF Devolved Admin-Taxi Services UK,,EMPLOYEE
"Department for Business, Energy and Industrial Strategy","Department for Business, Energy and Industrial Strategy",04/10/2022,Subsistence UK,Market Frameworks - Better Regulation Executive,"Personal Expense, Name Withheld",465290,1.35,MF Devolved Admin-Subsistence UK,,EMPLOYEE
"Department for Business, Energy and Industrial Strategy","Department for Business, Energy and Industrial Strategy",04/10/2022,Subsistence UK,Market Frameworks - Better Regulation Executive,"Personal Expense, Name Withheld",465290,5.00,MF Devolved Admin-Subsistence UK,,EMPLOYEE
"Department for Business, Energy and Industrial Strategy","Department for Business, Energy and Industrial Strategy",04/10/2022,Taxi Services UK,Market Frameworks - Better Regulation Executive,"Personal Expense, Name Withheld",465290,7.50,MF Devolved Admin-Taxi Services UK,,EMPLOYEE
"Department for Business, Energy and Industrial Strategy","Department for Business, Energy and Industrial Strategy",04/10/2022,Taxi Services UK,"Science, Innovation and Growth - International Research and Innovation Directorate","Personal Expense, Name Withheld",465291,24.51,MF Devolved Admin-Taxi Services UK,,EMPLOYEE
"Department for Business, Energy and Industrial Strategy","Department for Business, Energy and Industrial Strategy",04/10/2022,Taxi Services UK,"Science, Innovation and Growth - International Research and Innovation Directorate","Personal Expense, Name Withheld",465291,71.00,MF Devolved Admin-Taxi Services UK,,EMPLOYEE
"Department for Business, Energy and Industrial Strategy","Department for Business, Energy and Industrial Strategy",04/10/2022,Subsistence UK,"Trade, International, the Union & Analysis - Analysis Directorate","Personal Expense, Name Withheld",465292,5.00,MF Devolved Admin-Subsistence UK,,EMPLOYEE
"Department for Business, Energy and Industrial Strategy","Department for Business, Energy and Industrial Strategy",04/10/2022,Subsistence UK,"Trade, International, the Union & Analysis - Analysis Directorate","Personal Expense, Name Withheld",465292,5.00,MF Devolved Admin-Subsistence UK,,EMPLOYEE
"Department for Business, Energy and Industrial Strategy","Department for Business, Energy and Industrial Strategy",04/10/2022,Subsistence UK,"Trade, International, the Union & Analysis - Analysis Directorate","Personal Expense, Name Withheld",465292,5.00,MF Devolved Admin-Subsistence UK,,EMPLOYEE
"Department for Business, Energy and Industrial Strategy","Department for Business, Energy and Industrial Strategy",04/10/2022,Subsistence UK,"Trade, International, the Union & Analysis - Analysis Directorate","Personal Expense, Name Withheld",465292,5.00,MF Devolved Admin-Subsistence UK,,EMPLOYEE
"Department for Business, Energy and Industrial Strategy","Department for Business, Energy and Industrial Strategy",04/10/2022,Subsistence UK,"Trade, International, the Union & Analysis - Analysis Directorate","Personal Expense, Name Withheld",465292,5.00,MF Devolved Admin-Subsistence UK,,EMPLOYEE
"Department for Business, Energy and Industrial Strategy","Department for Business, Energy and Industrial Strategy",04/10/2022,Subsistence UK,"Trade, International, the Union & Analysis - Analysis Directorate","Personal Expense, Name Withheld",465292,5.00,MF Devolved Admin-Subsistence UK,,EMPLOYEE
"Department for Business, Energy and Industrial Strategy","Department for Business, Energy and Industrial Strategy",04/10/2022,Subsistence UK,"Trade, International, the Union & Analysis - Analysis Directorate","Personal Expense, Name Withheld",465292,15.00,MF Devolved Admin-Subsistence UK,,EMPLOYEE
"Department for Business, Energy and Industrial Strategy","Department for Business, Energy and Industrial Strategy",04/10/2022,Subsistence UK,"Trade, International, the Union & Analysis - Analysis Directorate","Personal Expense, Name Withheld",465292,15.00,MF Devolved Admin-Subsistence UK,,EMPLOYEE
"Department for Business, Energy and Industrial Strategy","Department for Business, Energy and Industrial Strategy",04/10/2022,Subsistence UK,"Trade, International, the Union & Analysis - Analysis Directorate","Personal Expense, Name Withheld",465292,15.00,MF Devolved Admin-Subsistence UK,,EMPLOYEE
"Department for Business, Energy and Industrial Strategy","Department for Business, Energy and Industrial Strategy",04/10/2022,Subsistence UK,"Trade, International, the Union & Analysis - Analysis Directorate","Personal Expense, Name Withheld",465292,15.00,MF Devolved Admin-Subsistence UK,,EMPLOYEE
"Department for Business, Energy and Industrial Strategy","Department for Business, Energy and Industrial Strategy",04/10/2022,Subsistence UK,"Trade, International, the Union & Analysis - Analysis Directorate","Personal Expense, Name Withheld",465292,15.00,MF Devolved Admin-Subsistence UK,,EMPLOYEE
"Department for Business, Energy and Industrial Strategy","Department for Business, Energy and Industrial Strategy",04/10/2022,Other Relocation Costs,Corporate Services - Human Resources,"Personal Expense, Name Withheld",465293,636.00,OPSS: Primary Authority-Other Relocation Costs,,EMPLOYEE
"Department for Business, Energy and Industrial Strategy","Department for Business, Energy and Industrial Strategy",04/10/2022,Subsistence UK,Energy Transformation and Clean Growth - Science and Innovation,"Personal Expense, Name Withheld",465294,5.00,MF Devolved Admin-Subsistence UK,,EMPLOYEE
"Department for Business, Energy and Industrial Strategy","Department for Business, Energy and Industrial Strategy",04/10/2022,Rail Travel UK,Energy Transformation and Clean Growth - Science and Innovation,"Personal Expense, Name Withheld",465294,8.10,MF Devolved Admin-Rail Travel UK,,EMPLOYEE
"Department for Business, Energy and Industrial Strategy","Department for Business, Energy and Industrial Strategy",04/10/2022,Rail Travel UK,Energy Transformation and Clean Growth - Science and Innovation,"Personal Expense, Name Withheld",465294,13.10,MF Devolved Admin-Rail Travel UK,,EMPLOYEE
"Department for Business, Energy and Industrial Strategy","Department for Business, Energy and Industrial Strategy",04/10/2022,Mileage Allowance UK,Corporate Services - Communications,"Personal Expense, Name Withheld",465295,122.85,MF Devolved Admin-Mileage Allowance UK,,EMPLOYEE
"Department for Business, Energy and Industrial Strategy","Department for Business, Energy and Industrial Strategy",04/10/2022,Training And Development Expenditure,Energy Transformation and Clean Growth - Hydrogen and Industrial Carbon Capture,"Personal Expense, Name Withheld",465296,178.80,Net Zero Costs - Admin-Training And Development Expenditure,,EMPLOYEE
"Department for Business, Energy and Industrial Strategy","Department for Business, Energy and Industrial Strategy",04/10/2022,Rail Travel UK,Market Frameworks - Office of Manpower Economics,"Personal Expense, Name Withheld",465297,8.10,MF Devolved Admin-Rail Travel UK,,EMPLOYEE
"Department for Business, Energy and Industrial Strategy","Department for Business, Energy and Industrial Strategy",04/10/2022,Rail Travel UK,Market Frameworks - Office of Manpower Economics,"Personal Expense, Name Withheld",465297,8.10,MF Devolved Admin-Rail Travel UK,,EMPLOYEE
"Department for Business, Energy and Industrial Strategy","Department for Business, Energy and Industrial Strategy",04/10/2022,Subsistence UK,Market Frameworks - Office of Manpower Economics,"Personal Expense, Name Withheld",465297,15.50,MF Devolved Admin-Subsistence UK,,EMPLOYEE
"Department for Business, Energy and Industrial Strategy","Department for Business, Energy and Industrial Strategy",04/10/2022,Subsistence UK,Market Frameworks - Office of Manpower Economics,"Personal Expense, Name Withheld",465297,22.20,MF Devolved Admin-Subsistence UK,,EMPLOYEE
"Department for Business, Energy and Industrial Strategy","Department for Business, Energy and Industrial Strategy",04/10/2022,Hotel & Accommodation UK,Market Frameworks - Office of Manpower Economics,"Personal Expense, Name Withheld",465297,85.00,MF Devolved Admin-Hotel & Accommodation UK,,EMPLOYEE
"Department for Business, Energy and Industrial Strategy","Department for Business, Energy and Industrial Strategy",04/10/2022,Hotel & Accommodation UK,Market Frameworks - Office of Manpower Economics,"Personal Expense, Name Withheld",465297,85.00,MF Devolved Admin-Hotel & Accommodation UK,,EMPLOYEE
"Department for Business, Energy and Industrial Strategy","Department for Business, Energy and Industrial Strategy",04/10/2022,Subsistence Overseas,Energy and Security - Carbon Capture Usage and Storage,"Personal Expense, Name Withheld",465298,2.83,CCS Projects-Subsistence Overseas,,EMPLOYEE
"Department for Business, Energy and Industrial Strategy","Department for Business, Energy and Industrial Strategy",04/10/2022,Subsistence Overseas,Energy and Security - Carbon Capture Usage and Storage,"Personal Expense, Name Withheld",465298,3.49,CCS Projects-Subsistence Overseas,,EMPLOYEE
"Department for Business, Energy and Industrial Strategy","Department for Business, Energy and Industrial Strategy",04/10/2022,Subsistence Overseas,Energy and Security - Carbon Capture Usage and Storage,"Personal Expense, Name Withheld",465298,3.62,CCS Projects-Subsistence Overseas,,EMPLOYEE
"Department for Business, Energy and Industrial Strategy","Department for Business, Energy and Industrial Strategy",04/10/2022,Subsistence Overseas,Energy and Security - Carbon Capture Usage and Storage,"Personal Expense, Name Withheld",465298,6.67,CCS Projects-Subsistence Overseas,,EMPLOYEE
"Department for Business, Energy and Industrial Strategy","Department for Business, Energy and Industrial Strategy",04/10/2022,Subsistence Overseas,Energy and Security - Carbon Capture Usage and Storage,"Personal Expense, Name Withheld",465298,10.13,CCS Projects-Subsistence Overseas,,EMPLOYEE
"Department for Business, Energy and Industrial Strategy","Department for Business, Energy and Industrial Strategy",04/10/2022,Subsistence Overseas,Energy and Security - Carbon Capture Usage and Storage,"Personal Expense, Name Withheld",465298,11.94,CCS Projects-Subsistence Overseas,,EMPLOYEE
"Department for Business, Energy and Industrial Strategy","Department for Business, Energy and Industrial Strategy",04/10/2022,Subsistence Overseas,Energy and Security - Carbon Capture Usage and Storage,"Personal Expense, Name Withheld",465298,13.93,CCS Projects-Subsistence Overseas,,EMPLOYEE
"Department for Business, Energy and Industrial Strategy","Department for Business, Energy and Industrial Strategy",04/10/2022,Subsistence Overseas,Energy and Security - Carbon Capture Usage and Storage,"Personal Expense, Name Withheld",465298,16.92,CCS Projects-Subsistence Overseas,,EMPLOYEE
